Department Family,Entity,Date,Expense Type,Expense Area,Supplier,Transaction Number,Amount,Item Description
BEIS,UKRI - AHRC,02/09/2019,Contract Staff,PSU JRS,Alexander Mann Solutions Ltd,98568295,3423.12,Contract Staff
BEIS,UKRI - AHRC,02/09/2019,T&S UK - Mileage,PSU Project Office,Unspecified,98568484,31.50,T&S UK - Mileage
BEIS,UKRI - AHRC,02/09/2019,T&S UK - Public Transport,PSU Project Office,Unspecified,98568484,13.10,T&S UK - Public Transport
BEIS,UKRI - AHRC,02/09/2019,T&S UK - Subsistence,PSU Project Office,Unspecified,98568485,6.04,T&S UK - Subsistence
BEIS,UKRI - AHRC,03/09/2019,T&S UK - Subsistence,Digital Arts and Humanities and Creative Industries,Unspecified,98570135,8.40,T&S UK - Subsistence
BEIS,UKRI - AHRC,03/09/2019,T&S UK - Subsistence,Digital Arts and Humanities and Creative Industries,Unspecified,98570135,12.55,T&S UK - Subsistence
BEIS,UKRI - AHRC,03/09/2019,T&S UK - Subsistence,Digital Arts and Humanities and Creative Industries,Unspecified,98570135,1.09,T&S UK - Subsistence
BEIS,UKRI - AHRC,04/09/2019,T&S Overseas - Accommodation,HERA JRP Project,Corporate Travel Management (North) Ltd,98570221,2.00,T&S Overseas - Accommodation
BEIS,UKRI - AHRC,04/09/2019,T&S Overseas - Accommodation,HERA JRP Project,Corporate Travel Management (North) Ltd,98570221,368.10,T&S Overseas - Accommodation
BEIS,UKRI - AHRC,04/09/2019,T&S Overseas - Accommodation,HERA JRP Project,Corporate Travel Management (North) Ltd,98570221,0.40,T&S Overseas - Accommodation
BEIS,UKRI - AHRC,04/09/2019,T&S Overseas - Flights,Executive Office,Corporate Travel Management (North) Ltd,98570221,2.50,T&S Overseas - Flights
BEIS,UKRI - AHRC,04/09/2019,T&S Overseas - Flights,Executive Office,Corporate Travel Management (North) Ltd,98570221,2301.62,T&S Overseas - Flights
BEIS,UKRI - AHRC,04/09/2019,T&S Overseas - Flights,SMT,Corporate Travel Management (North) Ltd,98570221,2.50,T&S Overseas - Flights
BEIS,UKRI - AHRC,04/09/2019,T&S Overseas - Flights,SMT,Corporate Travel Management (North) Ltd,98570221,5239.12,T&S Overseas - Flights
BEIS,UKRI - AHRC,04/09/2019,T&S Overseas - Flights,SMT,Corporate Travel Management (North) Ltd,98570221,2.16,T&S Overseas - Flights
BEIS,UKRI - AHRC,04/09/2019,T&S Overseas - Flights,SMT,Corporate Travel Management (North) Ltd,98570221,293.10,T&S Overseas - Flights
BEIS,UKRI - AHRC,04/09/2019,T&S Overseas - Flights,SMT,Corporate Travel Management (North) Ltd,98570221,2.50,T&S Overseas - Flights
BEIS,UKRI - AHRC,04/09/2019,T&S Overseas - Flights,SMT,Corporate Travel Management (North) Ltd,98570221,168.55,T&S Overseas - Flights
BEIS,UKRI - AHRC,04/09/2019,T&S UK - Accommodation,HR,Corporate Travel Management (North) Ltd,98570221,0.80,T&S UK - Accommodation
BEIS,UKRI - AHRC,04/09/2019,T&S UK - Accommodation,HR,Corporate Travel Management (North) Ltd,98570221,130.00,T&S UK - Accommodation
BEIS,UKRI - AHRC,04/09/2019,T&S UK - Accommodation,HR,Corporate Travel Management (North) Ltd,98570221,0.80,T&S UK - Accommodation
BEIS,UKRI - AHRC,04/09/2019,T&S UK - Accommodation,HR,Corporate Travel Management (North) Ltd,98570221,225.00,T&S UK - Accommodation
BEIS,UKRI - AHRC,04/09/2019,T&S UK - Accommodation,HR,Corporate Travel Management (North) Ltd,98570221,0.32,T&S UK - Accommodation
BEIS,UKRI - AHRC,04/09/2019,T&S UK - Accommodation,"History, Heritage, Languages and Literature",Corporate Travel Management (North) Ltd,98570221,0.50,T&S UK - Accommodation
BEIS,UKRI - AHRC,04/09/2019,T&S UK - Accommodation,"History, Heritage, Languages and Literature",Corporate Travel Management (North) Ltd,98570221,138.00,T&S UK - Accommodation
BEIS,UKRI - AHRC,04/09/2019,T&S UK - Accommodation,"History, Heritage, Languages and Literature",Corporate Travel Management (North) Ltd,98570221,0.10,T&S UK - Accommodation
BEIS,UKRI - AHRC,04/09/2019,T&S UK - Accommodation,Industrial Strategy Challenge Fund (ISCF) - Creative Clusters,Corporate Travel Management (North) Ltd,98570221,0.50,T&S UK - Accommodation
BEIS,UKRI - AHRC,04/09/2019,T&S UK - Accommodation,Industrial Strategy Challenge Fund (ISCF) - Creative Clusters,Corporate Travel Management (North) Ltd,98570221,68.00,T&S UK - Accommodation
BEIS,UKRI - AHRC,04/09/2019,T&S UK - Accommodation,Industrial Strategy Challenge Fund (ISCF) - Creative Clusters,Corporate Travel Management (North) Ltd,98570221,0.10,T&S UK - Accommodation
BEIS,UKRI - AHRC,04/09/2019,T&S UK - Accommodation,International Partnership and Engagement,Corporate Travel Management (North) Ltd,98570221,0.80,T&S UK - Accommodation
BEIS,UKRI - AHRC,04/09/2019,T&S UK - Accommodation,International Partnership and Engagement,Corporate Travel Management (North) Ltd,98570221,167.24,T&S UK - Accommodation
BEIS,UKRI - AHRC,04/09/2019,T&S UK - Accommodation,International Partnership and Engagement,Corporate Travel Management (North) Ltd,98570221,0.80,T&S UK - Accommodation
BEIS,UKRI - AHRC,04/09/2019,T&S UK - Accommodation,International Partnership and Engagement,Corporate Travel Management (North) Ltd,98570221,177.24,T&S UK - Accommodation
BEIS,UKRI - AHRC,04/09/2019,T&S UK - Accommodation,International Partnership and Engagement,Corporate Travel Management (North) Ltd,98570221,0.80,T&S UK - Accommodation
BEIS,UKRI - AHRC,04/09/2019,T&S UK - Accommodation,International Partnership and Engagement,Corporate Travel Management (North) Ltd,98570221,0.80,T&S UK - Accommodation
BEIS,UKRI - AHRC,04/09/2019,T&S UK - Accommodation,International Partnership and Engagement,Corporate Travel Management (North) Ltd,98570221,138.00,T&S UK - Accommodation
BEIS,UKRI - AHRC,04/09/2019,T&S UK - Accommodation,International Partnership and Engagement,Corporate Travel Management (North) Ltd,98570221,0.64,T&S UK - Accommodation
BEIS,UKRI - AHRC,04/09/2019,T&S UK - Accommodation,Operations,Corporate Travel Management (North) Ltd,98570221,0.80,T&S UK - Accommodation
BEIS,UKRI - AHRC,04/09/2019,T&S UK - Accommodation,Operations,Corporate Travel Management (North) Ltd,98570221,0.16,T&S UK - Accommodation
BEIS,UKRI - AHRC,04/09/2019,T&S UK - Accommodation,SMT,Corporate Travel Management (North) Ltd,98570221,0.80,T&S UK - Accommodation
BEIS,UKRI - AHRC,04/09/2019,T&S UK - Accommodation,SMT,Corporate Travel Management (North) Ltd,98570221,0.80,T&S UK - Accommodation
BEIS,UKRI - AHRC,04/09/2019,T&S UK - Accommodation,SMT,Corporate Travel Management (North) Ltd,98570221,97.50,T&S UK - Accommodation
BEIS,UKRI - AHRC,04/09/2019,T&S UK - Accommodation,SMT,Corporate Travel Management (North) Ltd,98570221,0.80,T&S UK - Accommodation
BEIS,UKRI - AHRC,04/09/2019,T&S UK - Accommodation,SMT,Corporate Travel Management (North) Ltd,98570221,126.16,T&S UK - Accommodation
BEIS,UKRI - AHRC,04/09/2019,T&S UK - Accommodation,SMT,Corporate Travel Management (North) Ltd,98570221,0.48,T&S UK - Accommodation
BEIS,UKRI - AHRC,04/09/2019,T&S UK - Flights,HERA JRP Project,Corporate Travel Management (North) Ltd,98570221,2.50,T&S UK - Flights
BEIS,UKRI - AHRC,04/09/2019,T&S UK - Flights,HERA JRP Project,Corporate Travel Management (North) Ltd,98570221,13.50,T&S UK - Flights
BEIS,UKRI - AHRC,04/09/2019,T&S UK - Flights,HERA JRP Project,Corporate Travel Management (North) Ltd,98570221,7.00,T&S UK - Flights
BEIS,UKRI - AHRC,04/09/2019,T&S UK - Flights,HERA JRP Project,Corporate Travel Management (North) Ltd,98570221,47.23,T&S UK - Flights
BEIS,UKRI - AHRC,04/09/2019,T&S UK - Flights,"History, Heritage, Languages and Literature",Corporate Travel Management (North) Ltd,98570221,1.25,T&S UK - Flights
BEIS,UKRI - AHRC,04/09/2019,T&S UK - Flights,"History, Heritage, Languages and Literature",Corporate Travel Management (North) Ltd,98570221,96.44,T&S UK - Flights
BEIS,UKRI - AHRC,04/09/2019,T&S UK - Flights,SMT,Corporate Travel Management (North) Ltd,98570221,2.50,T&S UK - Flights
BEIS,UKRI - AHRC,04/09/2019,T&S UK - Flights,SMT,Corporate Travel Management (North) Ltd,98570221,132.24,T&S UK - Flights
BEIS,UKRI - AHRC,04/09/2019,T&S UK - Flights,SMT,Corporate Travel Management (North) Ltd,98570221,1.25,T&S UK - Flights
BEIS,UKRI - AHRC,04/09/2019,T&S UK - Flights,SMT,Corporate Travel Management (North) Ltd,98570221,96.44,T&S UK - Flights
BEIS,UKRI - AHRC,04/09/2019,T&S UK - Flights,SMT,Corporate Travel Management (North) Ltd,98570221,2.50,T&S UK - Flights
BEIS,UKRI - AHRC,04/09/2019,T&S UK - Flights,SMT,Corporate Travel Management (North) Ltd,98570221,233.17,T&S UK - Flights
BEIS,UKRI - AHRC,04/09/2019,T&S UK - Flights,SMT,Corporate Travel Management (North) Ltd,98570221,2.50,T&S UK - Flights
BEIS,UKRI - AHRC,04/09/2019,T&S UK - Flights,SMT,Corporate Travel Management (North) Ltd,98570221,163.28,T&S UK - Flights
BEIS,UKRI - AHRC,04/09/2019,T&S UK - Flights,SMT,Corporate Travel Management (North) Ltd,98570221,2.50,T&S UK - Flights
BEIS,UKRI - AHRC,04/09/2019,T&S UK - Flights,SMT,Corporate Travel Management (North) Ltd,98570221,110.94,T&S UK - Flights
BEIS,UKRI - AHRC,04/09/2019,T&S UK - Public Transport,Digital Arts and Humanities and Creative Industries,Corporate Travel Management (North) Ltd,98570221,10.00,T&S UK - Public Transport
BEIS,UKRI - AHRC,04/09/2019,T&S UK - Public Transport,Digital Arts and Humanities and Creative Industries,Corporate Travel Management (North) Ltd,98570221,-104.40,T&S UK - Public Transport
BEIS,UKRI - AHRC,04/09/2019,T&S UK - Public Transport,Digital Arts and Humanities and Creative Industries,Corporate Travel Management (North) Ltd,98570221,0.25,T&S UK - Public Transport
BEIS,UKRI - AHRC,04/09/2019,T&S UK - Public Transport,Digital Arts and Humanities and Creative Industries,Corporate Travel Management (North) Ltd,98570221,36.00,T&S UK - Public Transport
BEIS,UKRI - AHRC,04/09/2019,T&S UK - Public Transport,Digital Arts and Humanities and Creative Industries,Corporate Travel Management (North) Ltd,98570221,0.50,T&S UK - Public Transport
BEIS,UKRI - AHRC,04/09/2019,T&S UK - Public Transport,Digital Arts and Humanities and Creative Industries,Corporate Travel Management (North) Ltd,98570221,13.10,T&S UK - Public Transport
BEIS,UKRI - AHRC,04/09/2019,T&S UK - Public Transport,Digital Arts and Humanities and Creative Industries,Corporate Travel Management (North) Ltd,98570221,120.00,T&S UK - Public Transport
BEIS,UKRI - AHRC,04/09/2019,T&S UK - Public Transport,Digital Arts and Humanities and Creative Industries,Corporate Travel Management (North) Ltd,98570221,-64.90,T&S UK - Public Transport
BEIS,UKRI - AHRC,04/09/2019,T&S UK - Public Transport,Digital Arts and Humanities and Creative Industries,Corporate Travel Management (North) Ltd,98570221,0.50,T&S UK - Public Transport
BEIS,UKRI - AHRC,04/09/2019,T&S UK - Public Transport,Digital Arts and Humanities and Creative Industries,Corporate Travel Management (North) Ltd,98570221,42.40,T&S UK - Public Transport
BEIS,UKRI - AHRC,04/09/2019,T&S UK - Public Transport,Digital Arts and Humanities and Creative Industries,Corporate Travel Management (North) Ltd,98570221,112.00,T&S UK - Public Transport
BEIS,UKRI - AHRC,04/09/2019,T&S UK - Public Transport,Digital Arts and Humanities and Creative Industries,Corporate Travel Management (North) Ltd,98570221,0.25,T&S UK - Public Transport
BEIS,UKRI - AHRC,04/09/2019,T&S UK - Public Transport,Digital Arts and Humanities and Creative Industries,Corporate Travel Management (North) Ltd,98570221,120.00,T&S UK - Public Transport
BEIS,UKRI - AHRC,04/09/2019,T&S UK - Public Transport,Executive Office,Corporate Travel Management (North) Ltd,98570221,0.25,T&S UK - Public Transport
BEIS,UKRI - AHRC,04/09/2019,T&S UK - Public Transport,Executive Office,Corporate Travel Management (North) Ltd,98570221,108.40,T&S UK - Public Transport
BEIS,UKRI - AHRC,04/09/2019,T&S UK - Public Transport,Finance,Corporate Travel Management (North) Ltd,98570221,0.25,T&S UK - Public Transport
BEIS,UKRI - AHRC,04/09/2019,T&S UK - Public Transport,Finance,Corporate Travel Management (North) Ltd,98570221,23.70,T&S UK - Public Transport
BEIS,UKRI - AHRC,04/09/2019,T&S UK - Public Transport,Finance,Corporate Travel Management (North) Ltd,98570221,0.25,T&S UK - Public Transport
BEIS,UKRI - AHRC,04/09/2019,T&S UK - Public Transport,Finance,Corporate Travel Management (North) Ltd,98570221,23.70,T&S UK - Public Transport
BEIS,UKRI - AHRC,04/09/2019,T&S UK - Public Transport,Finance,Corporate Travel Management (North) Ltd,98570221,0.25,T&S UK - Public Transport
BEIS,UKRI - AHRC,04/09/2019,T&S UK - Public Transport,Finance,Corporate Travel Management (North) Ltd,98570221,23.70,T&S UK - Public Transport
BEIS,UKRI - AHRC,04/09/2019,T&S UK - Public Transport,Finance,Corporate Travel Management (North) Ltd,98570221,0.25,T&S UK - Public Transport
BEIS,UKRI - AHRC,04/09/2019,T&S UK - Public Transport,Finance,Corporate Travel Management (North) Ltd,98570221,23.70,T&S UK - Public Transport
BEIS,UKRI - AHRC,04/09/2019,T&S UK - Public Transport,GCRF - Programme Delivery,Corporate Travel Management (North) Ltd,98570221,0.25,T&S UK - Public Transport
BEIS,UKRI - AHRC,04/09/2019,T&S UK - Public Transport,GCRF - Programme Delivery,Corporate Travel Management (North) Ltd,98570221,224.00,T&S UK - Public Transport
BEIS,UKRI - AHRC,04/09/2019,T&S UK - Public Transport,GCRF - Programme Delivery,Corporate Travel Management (North) Ltd,98570221,0.25,T&S UK - Public Transport
BEIS,UKRI - AHRC,04/09/2019,T&S UK - Public Transport,GCRF - Programme Delivery,Corporate Travel Management (North) Ltd,98570221,80.15,T&S UK - Public Transport
BEIS,UKRI - AHRC,04/09/2019,T&S UK - Public Transport,GCRF - Programme Delivery,Corporate Travel Management (North) Ltd,98570221,0.25,T&S UK - Public Transport
BEIS,UKRI - AHRC,04/09/2019,T&S UK - Public Transport,GCRF - Programme Delivery,Corporate Travel Management (North) Ltd,98570221,31.90,T&S UK - Public Transport
BEIS,UKRI - AHRC,04/09/2019,T&S UK - Public Transport,HERA JRP Project,Corporate Travel Management (North) Ltd,98570221,0.25,T&S UK - Public Transport
BEIS,UKRI - AHRC,04/09/2019,T&S UK - Public Transport,HERA JRP Project,Corporate Travel Management (North) Ltd,98570221,13.20,T&S UK - Public Transport
BEIS,UKRI - AHRC,04/09/2019,T&S UK - Public Transport,HERA JRP Project,Corporate Travel Management (North) Ltd,98570221,0.50,T&S UK - Public Transport
BEIS,UKRI - AHRC,04/09/2019,T&S UK - Public Transport,HERA JRP Project,Corporate Travel Management (North) Ltd,98570221,10.55,T&S UK - Public Transport
BEIS,UKRI - AHRC,04/09/2019,T&S UK - Public Transport,HERA JRP Project,Corporate Travel Management (North) Ltd,98570221,2.40,T&S UK - Public Transport
BEIS,UKRI - AHRC,04/09/2019,T&S UK - Public Transport,HR,Corporate Travel Management (North) Ltd,98570221,0.25,T&S UK - Public Transport
BEIS,UKRI - AHRC,04/09/2019,T&S UK - Public Transport,HR,Corporate Travel Management (North) Ltd,98570221,23.70,T&S UK - Public Transport
BEIS,UKRI - AHRC,04/09/2019,T&S UK - Public Transport,HR,Corporate Travel Management (North) Ltd,98570221,0.25,T&S UK - Public Transport
BEIS,UKRI - AHRC,04/09/2019,T&S UK - Public Transport,HR,Corporate Travel Management (North) Ltd,98570221,96.10,T&S UK - Public Transport
BEIS,UKRI - AHRC,04/09/2019,T&S UK - Public Transport,HR,Corporate Travel Management (North) Ltd,98570221,0.25,T&S UK - Public Transport
BEIS,UKRI - AHRC,04/09/2019,T&S UK - Public Transport,HR,Corporate Travel Management (North) Ltd,98570221,23.70,T&S UK - Public Transport
BEIS,UKRI - AHRC,04/09/2019,T&S UK - Public Transport,HR,Corporate Travel Management (North) Ltd,98570221,0.25,T&S UK - Public Transport
BEIS,UKRI - AHRC,04/09/2019,T&S UK - Public Transport,HR,Corporate Travel Management (North) Ltd,98570221,40.70,T&S UK - Public Transport
BEIS,UKRI - AHRC,04/09/2019,T&S UK - Public Transport,HR,Corporate Travel Management (North) Ltd,98570221,95.85,T&S UK - Public Transport
BEIS,UKRI - AHRC,04/09/2019,T&S UK - Public Transport,HR,Corporate Travel Management (North) Ltd,98570221,0.25,T&S UK - Public Transport
BEIS,UKRI - AHRC,04/09/2019,T&S UK - Public Transport,HR,Corporate Travel Management (North) Ltd,98570221,96.10,T&S UK - Public Transport
BEIS,UKRI - AHRC,04/09/2019,T&S UK - Public Transport,"History, Heritage, Languages and Literature",Corporate Travel Management (North) Ltd,98570221,5.00,T&S UK - Public Transport
BEIS,UKRI - AHRC,04/09/2019,T&S UK - Public Transport,"History, Heritage, Languages and Literature",Corporate Travel Management (North) Ltd,98570221,-74.50,T&S UK - Public Transport
BEIS,UKRI - AHRC,04/09/2019,T&S UK - Public Transport,"History, Heritage, Languages and Literature",Corporate Travel Management (North) Ltd,98570221,5.00,T&S UK - Public Transport
BEIS,UKRI - AHRC,04/09/2019,T&S UK - Public Transport,"History, Heritage, Languages and Literature",Corporate Travel Management (North) Ltd,98570221,-74.50,T&S UK - Public Transport
BEIS,UKRI - AHRC,04/09/2019,T&S UK - Public Transport,"History, Heritage, Languages and Literature",Corporate Travel Management (North) Ltd,98570221,0.25,T&S UK - Public Transport
BEIS,UKRI - AHRC,04/09/2019,T&S UK - Public Transport,"History, Heritage, Languages and Literature",Corporate Travel Management (North) Ltd,98570221,165.10,T&S UK - Public Transport
BEIS,UKRI - AHRC,04/09/2019,T&S UK - Public Transport,"History, Heritage, Languages and Literature",Corporate Travel Management (North) Ltd,98570221,0.25,T&S UK - Public Transport
BEIS,UKRI - AHRC,04/09/2019,T&S UK - Public Transport,"History, Heritage, Languages and Literature",Corporate Travel Management (North) Ltd,98570221,114.40,T&S UK - Public Transport
BEIS,UKRI - AHRC,04/09/2019,T&S UK - Public Transport,"History, Heritage, Languages and Literature",Corporate Travel Management (North) Ltd,98570221,0.25,T&S UK - Public Transport
BEIS,UKRI - AHRC,04/09/2019,T&S UK - Public Transport,"History, Heritage, Languages and Literature",Corporate Travel Management (North) Ltd,98570221,23.70,T&S UK - Public Transport
BEIS,UKRI - AHRC,04/09/2019,T&S UK - Public Transport,"History, Heritage, Languages and Literature",Corporate Travel Management (North) Ltd,98570221,5.00,T&S UK - Public Transport
BEIS,UKRI - AHRC,04/09/2019,T&S UK - Public Transport,"History, Heritage, Languages and Literature",Corporate Travel Management (North) Ltd,98570221,-139.00,T&S UK - Public Transport
BEIS,UKRI - AHRC,04/09/2019,T&S UK - Public Transport,Industrial Strategy Challenge Fund (ISCF) - Creative Clusters,Corporate Travel Management (North) Ltd,98570221,0.25,T&S UK - Public Transport
BEIS,UKRI - AHRC,04/09/2019,T&S UK - Public Transport,Industrial Strategy Challenge Fund (ISCF) - Creative Clusters,Corporate Travel Management (North) Ltd,98570221,108.40,T&S UK - Public Transport
BEIS,UKRI - AHRC,04/09/2019,T&S UK - Public Transport,Industrial Strategy Challenge Fund (ISCF) - Creative Clusters,Corporate Travel Management (North) Ltd,98570221,0.25,T&S UK - Public Transport
BEIS,UKRI - AHRC,04/09/2019,T&S UK - Public Transport,Industrial Strategy Challenge Fund (ISCF) - Creative Clusters,Corporate Travel Management (North) Ltd,98570221,69.00,T&S UK - Public Transport
BEIS,UKRI - AHRC,04/09/2019,T&S UK - Public Transport,International Partnership and Engagement,Corporate Travel Management (North) Ltd,98570221,0.25,T&S UK - Public Transport
BEIS,UKRI - AHRC,04/09/2019,T&S UK - Public Transport,International Partnership and Engagement,Corporate Travel Management (North) Ltd,98570221,204.30,T&S UK - Public Transport
BEIS,UKRI - AHRC,04/09/2019,T&S UK - Public Transport,Operations,Corporate Travel Management (North) Ltd,98570221,0.25,T&S UK - Public Transport
BEIS,UKRI - AHRC,04/09/2019,T&S UK - Public Transport,Operations,Corporate Travel Management (North) Ltd,98570221,35.65,T&S UK - Public Transport
BEIS,UKRI - AHRC,04/09/2019,T&S UK - Public Transport,Operations,Corporate Travel Management (North) Ltd,98570221,0.25,T&S UK - Public Transport
BEIS,UKRI - AHRC,04/09/2019,T&S UK - Public Transport,Operations,Corporate Travel Management (North) Ltd,98570221,44.80,T&S UK - Public Transport
BEIS,UKRI - AHRC,04/09/2019,T&S UK - Public Transport,PSU Project Office,Corporate Travel Management (North) Ltd,98570221,0.25,T&S UK - Public Transport
BEIS,UKRI - AHRC,04/09/2019,T&S UK - Public Transport,PSU Project Office,Corporate Travel Management (North) Ltd,98570221,94.10,T&S UK - Public Transport
BEIS,UKRI - AHRC,04/09/2019,T&S UK - Public Transport,PSU Project Office,Corporate Travel Management (North) Ltd,98570221,0.25,T&S UK - Public Transport
BEIS,UKRI - AHRC,04/09/2019,T&S UK - Public Transport,PSU Project Office,Corporate Travel Management (North) Ltd,98570221,144.70,T&S UK - Public Transport
BEIS,UKRI - AHRC,04/09/2019,T&S UK - Public Transport,PSU Project Office,Corporate Travel Management (North) Ltd,98570221,0.25,T&S UK - Public Transport
BEIS,UKRI - AHRC,04/09/2019,T&S UK - Public Transport,PSU Project Office,Corporate Travel Management (North) Ltd,98570221,138.00,T&S UK - Public Transport
BEIS,UKRI - AHRC,04/09/2019,T&S UK - Public Transport,PSU Project Office,Corporate Travel Management (North) Ltd,98570221,5.00,T&S UK - Public Transport
BEIS,UKRI - AHRC,04/09/2019,T&S UK - Public Transport,PSU Project Office,Corporate Travel Management (North) Ltd,98570221,-133.00,T&S UK - Public Transport
BEIS,UKRI - AHRC,04/09/2019,T&S UK - Public Transport,Public and Stakeholder Engagement,Corporate Travel Management (North) Ltd,98570221,0.25,T&S UK - Public Transport
BEIS,UKRI - AHRC,04/09/2019,T&S UK - Public Transport,Public and Stakeholder Engagement,Corporate Travel Management (North) Ltd,98570221,101.30,T&S UK - Public Transport
BEIS,UKRI - AHRC,04/09/2019,T&S UK - Public Transport,Public and Stakeholder Engagement,Corporate Travel Management (North) Ltd,98570221,0.25,T&S UK - Public Transport
BEIS,UKRI - AHRC,04/09/2019,T&S UK - Public Transport,Public and Stakeholder Engagement,Corporate Travel Management (North) Ltd,98570221,142.90,T&S UK - Public Transport
BEIS,UKRI - AHRC,04/09/2019,T&S UK - Public Transport,Public and Stakeholder Engagement,Corporate Travel Management (North) Ltd,98570221,0.25,T&S UK - Public Transport
BEIS,UKRI - AHRC,04/09/2019,T&S UK - Public Transport,Public and Stakeholder Engagement,Corporate Travel Management (North) Ltd,98570221,142.90,T&S UK - Public Transport
BEIS,UKRI - AHRC,04/09/2019,T&S UK - Public Transport,Public and Stakeholder Engagement,Corporate Travel Management (North) Ltd,98570221,0.25,T&S UK - Public Transport
BEIS,UKRI - AHRC,04/09/2019,T&S UK - Public Transport,Public and Stakeholder Engagement,Corporate Travel Management (North) Ltd,98570221,36.45,T&S UK - Public Transport
BEIS,UKRI - AHRC,04/09/2019,T&S UK - Public Transport,Public and Stakeholder Engagement,Corporate Travel Management (North) Ltd,98570221,0.25,T&S UK - Public Transport
BEIS,UKRI - AHRC,04/09/2019,T&S UK - Public Transport,Public and Stakeholder Engagement,Corporate Travel Management (North) Ltd,98570221,132.30,T&S UK - Public Transport
BEIS,UKRI - AHRC,04/09/2019,T&S UK - Public Transport,Public and Stakeholder Engagement,Corporate Travel Management (North) Ltd,98570221,0.25,T&S UK - Public Transport
BEIS,UKRI - AHRC,04/09/2019,T&S UK - Public Transport,Public and Stakeholder Engagement,Corporate Travel Management (North) Ltd,98570221,124.85,T&S UK - Public Transport
BEIS,UKRI - AHRC,04/09/2019,T&S UK - Public Transport,Public and Stakeholder Engagement,Corporate Travel Management (North) Ltd,98570221,0.25,T&S UK - Public Transport
BEIS,UKRI - AHRC,04/09/2019,T&S UK - Public Transport,Public and Stakeholder Engagement,Corporate Travel Management (North) Ltd,98570221,19.00,T&S UK - Public Transport
BEIS,UKRI - AHRC,04/09/2019,T&S UK - Public Transport,SMT,Corporate Travel Management (North) Ltd,98570221,0.25,T&S UK - Public Transport
BEIS,UKRI - AHRC,04/09/2019,T&S UK - Public Transport,SMT,Corporate Travel Management (North) Ltd,98570221,65.20,T&S UK - Public Transport
BEIS,UKRI - AHRC,04/09/2019,T&S UK - Public Transport,SMT,Corporate Travel Management (North) Ltd,98570221,0.50,T&S UK - Public Transport
BEIS,UKRI - AHRC,04/09/2019,T&S UK - Public Transport,SMT,Corporate Travel Management (North) Ltd,98570221,22.00,T&S UK - Public Transport
BEIS,UKRI - AHRC,04/09/2019,T&S UK - Public Transport,SMT,Corporate Travel Management (North) Ltd,98570221,39.40,T&S UK - Public Transport
BEIS,UKRI - AHRC,04/09/2019,T&S UK - Public Transport,SMT,Corporate Travel Management (North) Ltd,98570221,-68.50,T&S UK - Public Transport
BEIS,UKRI - AHRC,04/09/2019,T&S UK - Public Transport,SMT,Corporate Travel Management (North) Ltd,98570221,0.50,T&S UK - Public Transport
BEIS,UKRI - AHRC,04/09/2019,T&S UK - Public Transport,SMT,Corporate Travel Management (North) Ltd,98570221,25.00,T&S UK - Public Transport
BEIS,UKRI - AHRC,04/09/2019,T&S UK - Public Transport,SMT,Corporate Travel Management (North) Ltd,98570221,39.40,T&S UK - Public Transport
BEIS,UKRI - AHRC,04/09/2019,T&S UK - Public Transport,SMT,Corporate Travel Management (North) Ltd,98570221,0.25,T&S UK - Public Transport
BEIS,UKRI - AHRC,04/09/2019,T&S UK - Public Transport,SMT,Corporate Travel Management (North) Ltd,98570221,71.10,T&S UK - Public Transport
BEIS,UKRI - AHRC,04/09/2019,T&S UK - Public Transport,SMT,Corporate Travel Management (North) Ltd,98570221,0.50,T&S UK - Public Transport
BEIS,UKRI - AHRC,04/09/2019,T&S UK - Public Transport,SMT,Corporate Travel Management (North) Ltd,98570221,109.00,T&S UK - Public Transport
BEIS,UKRI - AHRC,04/09/2019,T&S UK - Public Transport,SMT,Corporate Travel Management (North) Ltd,98570221,28.80,T&S UK - Public Transport
BEIS,UKRI - AHRC,04/09/2019,T&S UK - Public Transport,SMT,Corporate Travel Management (North) Ltd,98570221,0.25,T&S UK - Public Transport
BEIS,UKRI - AHRC,04/09/2019,T&S UK - Public Transport,SMT,Corporate Travel Management (North) Ltd,98570221,20.50,T&S UK - Public Transport
BEIS,UKRI - AHRC,04/09/2019,T&S UK - Public Transport,SMT,Corporate Travel Management (North) Ltd,98570221,0.25,T&S UK - Public Transport
BEIS,UKRI - AHRC,04/09/2019,T&S UK - Public Transport,SMT,Corporate Travel Management (North) Ltd,98570221,20.50,T&S UK - Public Transport
BEIS,UKRI - AHRC,04/09/2019,T&S UK - Public Transport,SMT,Corporate Travel Management (North) Ltd,98570221,0.25,T&S UK - Public Transport
BEIS,UKRI - AHRC,04/09/2019,T&S UK - Public Transport,SMT,Corporate Travel Management (North) Ltd,98570221,74.60,T&S UK - Public Transport
BEIS,UKRI - AHRC,04/09/2019,T&S UK - Public Transport,SMT,Corporate Travel Management (North) Ltd,98570221,0.25,T&S UK - Public Transport
BEIS,UKRI - AHRC,04/09/2019,T&S UK - Public Transport,SMT,Corporate Travel Management (North) Ltd,98570221,27.30,T&S UK - Public Transport
BEIS,UKRI - AHRC,04/09/2019,T&S UK - Public Transport,SMT,Corporate Travel Management (North) Ltd,98570221,0.25,T&S UK - Public Transport
BEIS,UKRI - AHRC,04/09/2019,T&S UK - Public Transport,SMT,Corporate Travel Management (North) Ltd,98570221,71.10,T&S UK - Public Transport
BEIS,UKRI - AHRC,04/09/2019,T&S UK - Public Transport,SMT,Corporate Travel Management (North) Ltd,98570221,0.25,T&S UK - Public Transport
BEIS,UKRI - AHRC,04/09/2019,T&S UK - Public Transport,SMT,Corporate Travel Management (North) Ltd,98570221,45.60,T&S UK - Public Transport
BEIS,UKRI - AHRC,04/09/2019,T&S UK - Public Transport,SMT,Corporate Travel Management (North) Ltd,98570221,0.25,T&S UK - Public Transport
BEIS,UKRI - AHRC,04/09/2019,T&S UK - Public Transport,SMT,Corporate Travel Management (North) Ltd,98570221,15.60,T&S UK - Public Transport
BEIS,UKRI - AHRC,04/09/2019,T&S UK - Public Transport,SMT,Corporate Travel Management (North) Ltd,98570221,0.25,T&S UK - Public Transport
BEIS,UKRI - AHRC,04/09/2019,T&S UK - Public Transport,SMT,Corporate Travel Management (North) Ltd,98570221,218.00,T&S UK - Public Transport
BEIS,UKRI - AHRC,04/09/2019,T&S UK - Public Transport,SMT,Corporate Travel Management (North) Ltd,98570221,0.25,T&S UK - Public Transport
BEIS,UKRI - AHRC,04/09/2019,T&S UK - Public Transport,SMT,Corporate Travel Management (North) Ltd,98570221,71.10,T&S UK - Public Transport
BEIS,UKRI - AHRC,04/09/2019,T&S UK - Public Transport,SMT,Corporate Travel Management (North) Ltd,98570221,0.25,T&S UK - Public Transport
BEIS,UKRI - AHRC,04/09/2019,T&S UK - Public Transport,SMT,Corporate Travel Management (North) Ltd,98570221,71.10,T&S UK - Public Transport
BEIS,UKRI - AHRC,04/09/2019,T&S UK - Public Transport,SMT,Corporate Travel Management (North) Ltd,98570221,0.25,T&S UK - Public Transport
BEIS,UKRI - AHRC,04/09/2019,T&S UK - Public Transport,SMT,Corporate Travel Management (North) Ltd,98570221,97.80,T&S UK - Public Transport
BEIS,UKRI - AHRC,04/09/2019,T&S UK - Public Transport,SMT,Corporate Travel Management (North) Ltd,98570221,5.00,T&S UK - Public Transport
BEIS,UKRI - AHRC,04/09/2019,T&S UK - Public Transport,SMT,Corporate Travel Management (North) Ltd,98570221,-68.80,T&S UK - Public Transport
BEIS,UKRI - AHRC,04/09/2019,T&S UK - Public Transport,SMT,Corporate Travel Management (North) Ltd,98570221,0.25,T&S UK - Public Transport
BEIS,UKRI - AHRC,04/09/2019,T&S UK - Public Transport,SMT,Corporate Travel Management (North) Ltd,98570221,28.80,T&S UK - Public Transport
BEIS,UKRI - AHRC,04/09/2019,T&S UK - Public Transport,SMT,Corporate Travel Management (North) Ltd,98570221,0.25,T&S UK - Public Transport
BEIS,UKRI - AHRC,04/09/2019,T&S UK - Public Transport,SMT,Corporate Travel Management (North) Ltd,98570221,109.00,T&S UK - Public Transport
BEIS,UKRI - AHRC,04/09/2019,T&S UK - Public Transport,SMT,Corporate Travel Management (North) Ltd,98570221,0.25,T&S UK - Public Transport
BEIS,UKRI - AHRC,04/09/2019,T&S UK - Public Transport,SMT,Corporate Travel Management (North) Ltd,98570221,138.00,T&S UK - Public Transport
BEIS,UKRI - AHRC,04/09/2019,T&S UK - Public Transport,SMT,Corporate Travel Management (North) Ltd,98570221,0.25,T&S UK - Public Transport
BEIS,UKRI - AHRC,04/09/2019,T&S UK - Public Transport,SMT,Corporate Travel Management (North) Ltd,98570221,68.20,T&S UK - Public Transport
BEIS,UKRI - AHRC,04/09/2019,T&S UK - Public Transport,SMT,Corporate Travel Management (North) Ltd,98570221,0.25,T&S UK - Public Transport
BEIS,UKRI - AHRC,04/09/2019,T&S UK - Public Transport,SMT,Corporate Travel Management (North) Ltd,98570221,69.00,T&S UK - Public Transport
BEIS,UKRI - AHRC,04/09/2019,T&S UK - Public Transport,SMT,Corporate Travel Management (North) Ltd,98570221,5.00,T&S UK - Public Transport
BEIS,UKRI - AHRC,04/09/2019,T&S UK - Public Transport,SMT,Corporate Travel Management (North) Ltd,98570221,-87.80,T&S UK - Public Transport
BEIS,UKRI - AHRC,04/09/2019,T&S UK - Public Transport,SMT,Corporate Travel Management (North) Ltd,98570221,-21.00,T&S UK - Public Transport
BEIS,UKRI - AHRC,04/09/2019,T&S UK - Public Transport,SMT,Corporate Travel Management (North) Ltd,98570221,0.25,T&S UK - Public Transport
BEIS,UKRI - AHRC,04/09/2019,T&S UK - Public Transport,SMT,Corporate Travel Management (North) Ltd,98570221,97.80,T&S UK - Public Transport
BEIS,UKRI - AHRC,04/09/2019,T&S UK - Public Transport,SMT,Corporate Travel Management (North) Ltd,98570221,5.00,T&S UK - Public Transport
BEIS,UKRI - AHRC,04/09/2019,T&S UK - Public Transport,SMT,Corporate Travel Management (North) Ltd,98570221,-28.70,T&S UK - Public Transport
BEIS,UKRI - AHRC,04/09/2019,T&S UK - Public Transport,SMT,Corporate Travel Management (North) Ltd,98570221,10.00,T&S UK - Public Transport
BEIS,UKRI - AHRC,04/09/2019,T&S UK - Public Transport,SMT,Corporate Travel Management (North) Ltd,98570221,-103.50,T&S UK - Public Transport
BEIS,UKRI - AHRC,04/09/2019,T&S UK - Public Transport,SMT,Corporate Travel Management (North) Ltd,98570221,0.25,T&S UK - Public Transport
BEIS,UKRI - AHRC,04/09/2019,T&S UK - Public Transport,SMT,Corporate Travel Management (North) Ltd,98570221,30.60,T&S UK - Public Transport
BEIS,UKRI - AHRC,04/09/2019,Health & Safety (inc. Medicals & Opticians),HR,Swindon Occupational Medical Services Ltd,98572210,525.00,Health & Safety (inc. Medicals & Opticians)
BEIS,UKRI - AHRC,05/09/2019,Non-staff travel and subsistance,Fund for International Collaboration (FIC),Non Employee Expenses Supplier,98573193,3111.20,Non-staff travel and subsistance
BEIS,UKRI - AHRC,05/09/2019,Non-staff travel and subsistance,Fund for International Collaboration (FIC),Non Employee Expenses Supplier,98573194,1592.86,Non-staff travel and subsistance
BEIS,UKRI - AHRC,05/09/2019,Non-staff travel and subsistance,Fund for International Collaboration (FIC),Non Employee Expenses Supplier,98573195,967.08,Non-staff travel and subsistance
BEIS,UKRI - AHRC,05/09/2019,T&S UK - Mileage,Public and Stakeholder Engagement,Unspecified,98573389,11.00,T&S UK - Mileage
BEIS,UKRI - AHRC,06/09/2019,Recruitment Costs,Corporate Services,Agenda Resource Management Ltd,98573260,155.91,Recruitment Costs
BEIS,UKRI - AHRC,06/09/2019,Recruitment Costs,Corporate Services,Agenda Resource Management Ltd,98573261,155.91,Recruitment Costs
BEIS,UKRI - AHRC,06/09/2019,T&S UK - Mileage,SMT,Unspecified,98575473,139.50,T&S UK - Mileage
BEIS,UKRI - AHRC,06/09/2019,T&S UK - Parking Tolls Congestion Charges,SMT,Unspecified,98575473,6.80,T&S UK - Parking Tolls Congestion Charges
BEIS,UKRI - AHRC,06/09/2019,T&S UK - Public Transport,SMT,Unspecified,98575473,3.60,T&S UK - Public Transport
BEIS,UKRI - AHRC,06/09/2019,T&S UK - Subsistence,SMT,Unspecified,98575473,1.60,T&S UK - Subsistence
BEIS,UKRI - AHRC,06/09/2019,Health & Safety (inc. Medicals & Opticians),"History, Heritage, Languages and Literature",Unspecified,98575474,19.50,Health & Safety (inc. Medicals & Opticians)
BEIS,UKRI - AHRC,09/09/2019,Secondments,SMT,University of Exeter,98561077,109868.00,Secondments
BEIS,UKRI - AHRC,09/09/2019,Secondments,SMT,University of Exeter,98561077,60641.00,Secondments
BEIS,UKRI - AHRC,09/09/2019,Non-staff travel and subsistance,Digital Arts and Humanities and Creative Industries,Non Employee Expenses Supplier,98576026,619.89,Non-staff travel and subsistance
BEIS,UKRI - AHRC,09/09/2019,Conferences & Seminars,Secretariat,CH and Co Catering Ltd,98576505,1681.20,Conferences & Seminars
BEIS,UKRI - AHRC,10/09/2019,Research Grant Expenditure,11546,Imperial War Museum Trading Company Ltd,98576305,100000.00,Research Grant Expenditure
BEIS,UKRI - AHRC,10/09/2019,Conferences & Seminars,SMT,Calder Conference Ltd,98577722,720.00,Conferences & Seminars
BEIS,UKRI - AHRC,10/09/2019,Other Programme Costs,Commissioned Research,UKRI - Engineering & Physical Sciences Research Council,98577729,3750.00,Other Programme Costs
BEIS,UKRI - AHRC,10/09/2019,Contract Staff,PSU JRS,Alexander Mann Solutions Ltd,98579464,2738.50,Contract Staff
BEIS,UKRI - AHRC,10/09/2019,Contract Staff,PSU Project Office,Alexander Mann Solutions Ltd,98579465,5032.04,Contract Staff
BEIS,UKRI - AHRC,11/09/2019,Advertising & Promotion,Public and Stakeholder Engagement,Unspecified,98577385,1400.00,Advertising & Promotion
BEIS,UKRI - AHRC,11/09/2019,Recruitment Costs,Corporate Services,Onefix Recruitment Ltd,98580136,450.00,Recruitment Costs
BEIS,UKRI - AHRC,12/09/2019,NI Payable Salaries,Balance Sheet,HM Revenue & Customs,98574959,47449.25,NI Payable Salaries
BEIS,UKRI - AHRC,12/09/2019,PAYE Payable Salaries,Balance Sheet,HM Revenue & Customs,98574960,38754.42,PAYE Payable Salaries
BEIS,UKRI - AHRC,12/09/2019,Student Loans,Balance Sheet,HM Revenue & Customs,98574961,4351.00,Student Loans
BEIS,UKRI - AHRC,12/09/2019,Apprenticeship Levy,Corporate Services,HM Revenue & Customs,98574962,1295.00,Apprenticeship Levy
BEIS,UKRI - AHRC,12/09/2019,Recruitment Costs,Corporate Services,Warwick University Services Ltd,98579707,250.00,Recruitment Costs
BEIS,UKRI - AHRC,12/09/2019,Non-staff travel and subsistance,Fund for International Collaboration (FIC),Non Employee Expenses Supplier,98582125,1949.72,Non-staff travel and subsistance
BEIS,UKRI - AHRC,12/09/2019,T&S Overseas - Accommodation,SMT,Unspecified,98582299,182.60,T&S Overseas - Accommodation
BEIS,UKRI - AHRC,12/09/2019,T&S Overseas - Other Charges,SMT,Unspecified,98582299,4.14,T&S Overseas - Other Charges
BEIS,UKRI - AHRC,12/09/2019,T&S Overseas - Public Transport,SMT,Unspecified,98582299,9.00,T&S Overseas - Public Transport
BEIS,UKRI - AHRC,12/09/2019,T&S Overseas - Subsistence,SMT,Unspecified,98582299,13.83,T&S Overseas - Subsistence
BEIS,UKRI - AHRC,12/09/2019,T&S UK - Public Transport,SMT,Unspecified,98582300,8.50,T&S UK - Public Transport
BEIS,UKRI - AHRC,12/09/2019,T&S UK - Public Transport,SMT,Unspecified,98582300,2.10,T&S UK - Public Transport
BEIS,UKRI - AHRC,12/09/2019,T&S UK - Public Transport,SMT,Unspecified,98582300,10.00,T&S UK - Public Transport
BEIS,UKRI - AHRC,12/09/2019,T&S UK - Subsistence,SMT,Unspecified,98582300,37.02,T&S UK - Subsistence
BEIS,UKRI - AHRC,12/09/2019,T&S UK - Subsistence,SMT,Unspecified,98582300,4.80,T&S UK - Subsistence
BEIS,UKRI - AHRC,13/09/2019,Research Grant Expenditure,Care for the Future,University of Nottingham,98573451,4376.05,Research Grant Expenditure
BEIS,UKRI - AHRC,13/09/2019,Research Grant Expenditure,Connected Communities Programme,University of Nottingham,98573451,4376.03,Research Grant Expenditure
BEIS,UKRI - AHRC,13/09/2019,Research Grant Expenditure,Research Grants,The Open University,98573452,54044.36,Research Grant Expenditure
BEIS,UKRI - AHRC,13/09/2019,Research Grant Expenditure,Research Grants,The University of Manchester,98573453,45521.16,Research Grant Expenditure
BEIS,UKRI - AHRC,13/09/2019,Research Grant Expenditure,Research Grants,University of Newcastle Upon Tyne,98573454,36655.04,Research Grant Expenditure
BEIS,UKRI - AHRC,13/09/2019,Research Grant Expenditure,Research Grants,University of Leeds,98573455,36068.56,Research Grant Expenditure
BEIS,UKRI - AHRC,13/09/2019,Research Grant Expenditure,Research Grants,University of Stirling,98573456,7075.65,Research Grant Expenditure
BEIS,UKRI - AHRC,13/09/2019,Research Grant Expenditure,Research Grants,University College London,98573457,30559.11,Research Grant Expenditure
BEIS,UKRI - AHRC,13/09/2019,Research Grant Expenditure,Research Grants,University of Oxford,98573458,40176.96,Research Grant Expenditure
BEIS,UKRI - AHRC,13/09/2019,Research Grant Expenditure,Research Grants,The University of Manchester,98573459,48755.22,Research Grant Expenditure
BEIS,UKRI - AHRC,13/09/2019,Research Grant Expenditure,Research Grants,University of Reading,98573460,34388.29,Research Grant Expenditure
BEIS,UKRI - AHRC,13/09/2019,Research Grant Expenditure,Research Grants,University of Exeter,98573461,42343.14,Research Grant Expenditure
BEIS,UKRI - AHRC,13/09/2019,Research Grant Expenditure,Research Grants,University of Oxford,98573462,45655.42,Research Grant Expenditure
BEIS,UKRI - AHRC,13/09/2019,Research Grant Expenditure,Open World Research Initiative (OWRI).,King's College London,98573463,195850.77,Research Grant Expenditure
BEIS,UKRI - AHRC,13/09/2019,Research Grant Expenditure,Open World Research Initiative (OWRI).,The University of Manchester,98573464,195501.31,Research Grant Expenditure
BEIS,UKRI - AHRC,13/09/2019,Research Grant Expenditure,Open World Research Initiative (OWRI).,University of Oxford,98573465,182904.69,Research Grant Expenditure
BEIS,UKRI - AHRC,13/09/2019,Research Grant Expenditure,Open World Research Initiative (OWRI).,University of Cambridge,98573466,172615.06,Research Grant Expenditure
BEIS,UKRI - AHRC,13/09/2019,Research Grant Expenditure,Research Grants,University of Newcastle Upon Tyne,98573467,52925.20,Research Grant Expenditure
BEIS,UKRI - AHRC,13/09/2019,Research Grant Expenditure,Research Grants,Queen's University Belfast GRANT,98573468,33697.08,Research Grant Expenditure
BEIS,UKRI - AHRC,13/09/2019,Research Grant Expenditure,Research Grants,University of Birmingham GRANT,98573469,52210.90,Research Grant Expenditure
BEIS,UKRI - AHRC,13/09/2019,Research Grant Expenditure,Research Grants,Loughborough University,98573470,47585.88,Research Grant Expenditure
BEIS,UKRI - AHRC,13/09/2019,Research Grant Expenditure,Research Grants,Birkbeck College,98573471,64816.13,Research Grant Expenditure
BEIS,UKRI - AHRC,13/09/2019,Research Grant Expenditure,Research Grants,Historic Environment Scotland (GRANT),98573472,35822.16,Research Grant Expenditure
BEIS,UKRI - AHRC,13/09/2019,Research Grant Expenditure,Research Grants,"Royal Holloway, University of London",98573473,65108.49,Research Grant Expenditure
BEIS,UKRI - AHRC,13/09/2019,Research Grant Expenditure,Research Grants,University of Southampton GRANT,98573474,44127.03,Research Grant Expenditure
BEIS,UKRI - AHRC,13/09/2019,Research Grant Expenditure,Research Grants,University of Warwick,98573475,22923.84,Research Grant Expenditure
BEIS,UKRI - AHRC,13/09/2019,Research Grant Expenditure,Research Grants,Birkbeck College,98573476,15343.11,Research Grant Expenditure
BEIS,UKRI - AHRC,13/09/2019,Research Grant Expenditure,Research Grants,University of Warwick,98573477,37954.73,Research Grant Expenditure
BEIS,UKRI - AHRC,13/09/2019,Research Grant Expenditure,Global Challenges Research Fund (GCRF),Institute of Development Studies,98573478,53613.52,Research Grant Expenditure
BEIS,UKRI - AHRC,13/09/2019,Research Grant Expenditure,Global Uncertainties Programme,University of Oxford,98573479,43064.09,Research Grant Expenditure
BEIS,UKRI - AHRC,13/09/2019,Research Grant Expenditure,Global Uncertainties Programme,Queen's University Belfast GRANT,98573480,40947.60,Research Grant Expenditure
BEIS,UKRI - AHRC,13/09/2019,Research Grant Expenditure,Global Challenges Research Fund (GCRF),University College London,98573481,40977.88,Research Grant Expenditure
BEIS,UKRI - AHRC,13/09/2019,Research Grant Expenditure,Research Grants,University of Surrey,98573482,32213.77,Research Grant Expenditure
BEIS,UKRI - AHRC,13/09/2019,Research Grant Expenditure,Research Grants,University of East Anglia,98573483,46785.49,Research Grant Expenditure
BEIS,UKRI - AHRC,13/09/2019,Research Grant Expenditure,Research Grants,University College London,98573484,42016.24,Research Grant Expenditure
BEIS,UKRI - AHRC,13/09/2019,Research Grant Expenditure,Care for the Future,University of Kent,98573485,21074.26,Research Grant Expenditure
BEIS,UKRI - AHRC,13/09/2019,Research Grant Expenditure,Connected Communities Programme,University of Kent,98573485,21074.21,Research Grant Expenditure
BEIS,UKRI - AHRC,13/09/2019,Research Grant Expenditure,Care for the Future,Queen's University Belfast GRANT,98573486,17389.03,Research Grant Expenditure
BEIS,UKRI - AHRC,13/09/2019,Research Grant Expenditure,Connected Communities Programme,Queen's University Belfast GRANT,98573486,17389.00,Research Grant Expenditure
BEIS,UKRI - AHRC,13/09/2019,Research Grant Expenditure,Care for the Future,University of Hertfordshire,98573487,20165.85,Research Grant Expenditure
BEIS,UKRI - AHRC,13/09/2019,Research Grant Expenditure,Connected Communities Programme,University of Hertfordshire,98573487,20165.81,Research Grant Expenditure
BEIS,UKRI - AHRC,13/09/2019,Research Grant Expenditure,Care for the Future,University of Birmingham GRANT,98573488,20400.34,Research Grant Expenditure
BEIS,UKRI - AHRC,13/09/2019,Research Grant Expenditure,Connected Communities Programme,University of Birmingham GRANT,98573488,20400.31,Research Grant Expenditure
BEIS,UKRI - AHRC,13/09/2019,Research Grant Expenditure,Research Grants,University of Liverpool,98573489,49512.01,Research Grant Expenditure
BEIS,UKRI - AHRC,13/09/2019,Research Grant Expenditure,Research Grants,Queen's University Belfast GRANT,98573490,51018.15,Research Grant Expenditure
BEIS,UKRI - AHRC,13/09/2019,Research Grant Expenditure,Research Grants,"SOAS, University of London",98573491,48422.95,Research Grant Expenditure
BEIS,UKRI - AHRC,13/09/2019,Research Grant Expenditure,Research Grants,University of Leeds,98573492,72983.20,Research Grant Expenditure
BEIS,UKRI - AHRC,13/09/2019,Research Grant Expenditure,Research Grants,University of Glasgow,98573493,40744.13,Research Grant Expenditure
BEIS,UKRI - AHRC,13/09/2019,Research Grant Expenditure,Research Grants,University of Surrey,98573494,47325.59,Research Grant Expenditure
BEIS,UKRI - AHRC,13/09/2019,Research Grant Expenditure,Research Grants,University of Birmingham GRANT,98573495,40495.49,Research Grant Expenditure
BEIS,UKRI - AHRC,13/09/2019,Research Grant Expenditure,Research Grants,University of Durham,98573496,59264.75,Research Grant Expenditure
BEIS,UKRI - AHRC,13/09/2019,Research Grant Expenditure,Research Grants,"SOAS, University of London",98573497,60224.82,Research Grant Expenditure
BEIS,UKRI - AHRC,13/09/2019,Research Grant Expenditure,Research Grants,University of Cambridge,98573498,62074.86,Research Grant Expenditure
BEIS,UKRI - AHRC,13/09/2019,Research Grant Expenditure,Science and Heritage Programme,University College London,98573499,77341.51,Research Grant Expenditure
BEIS,UKRI - AHRC,13/09/2019,Research Grant Expenditure,Research Grants,The University of Manchester,98573500,60454.10,Research Grant Expenditure
BEIS,UKRI - AHRC,13/09/2019,Research Grant Expenditure,Research Grants,Cardiff University,98573501,15782.42,Research Grant Expenditure
BEIS,UKRI - AHRC,13/09/2019,Research Grant Expenditure,Research Grants,University of Kent,98573502,67449.18,Research Grant Expenditure
BEIS,UKRI - AHRC,13/09/2019,Research Grant Expenditure,Research Grants,Cardiff University,98573503,16839.23,Research Grant Expenditure
BEIS,UKRI - AHRC,13/09/2019,Research Grant Expenditure,Research Grants,Queen's University Belfast GRANT,98573504,54598.69,Research Grant Expenditure
BEIS,UKRI - AHRC,13/09/2019,Research Grant Expenditure,Research Grants,University of Leicester,98573505,51183.64,Research Grant Expenditure
BEIS,UKRI - AHRC,13/09/2019,Research Grant Expenditure,Research Grants,National Museums of Scotland,98573506,32787.32,Research Grant Expenditure
BEIS,UKRI - AHRC,13/09/2019,Research Grant Expenditure,Research Grants,University of Wolverhampton,98573507,54643.52,Research Grant Expenditure
BEIS,UKRI - AHRC,13/09/2019,Research Grant Expenditure,Research Grants,University of Sussex,98573508,43506.45,Research Grant Expenditure
BEIS,UKRI - AHRC,13/09/2019,Research Grant Expenditure,Care for the Future,University of Nottingham,98573509,73246.65,Research Grant Expenditure
BEIS,UKRI - AHRC,13/09/2019,Research Grant Expenditure,Design: Strategic Initiatives,Lancaster University,98573510,57839.81,Research Grant Expenditure
BEIS,UKRI - AHRC,13/09/2019,Research Grant Expenditure,Open World Research Initiative (OWRI).,Queen's University Belfast GRANT,98573511,85515.17,Research Grant Expenditure
BEIS,UKRI - AHRC,13/09/2019,Research Grant Expenditure,Research Grants,University of Exeter,98573512,25812.72,Research Grant Expenditure
BEIS,UKRI - AHRC,13/09/2019,Research Grant Expenditure,Research Grants,Royal College of Music,98573513,71184.66,Research Grant Expenditure
BEIS,UKRI - AHRC,13/09/2019,Research Grant Expenditure,Research Grants,University of Exeter,98573514,53816.33,Research Grant Expenditure
BEIS,UKRI - AHRC,13/09/2019,Research Grant Expenditure,Research Grants,Queen's University Belfast GRANT,98573515,46380.73,Research Grant Expenditure
BEIS,UKRI - AHRC,13/09/2019,Research Grant Expenditure,Research Grants,Aberystwyth University,98573516,48820.32,Research Grant Expenditure
BEIS,UKRI - AHRC,13/09/2019,Research Grant Expenditure,Connected Communities Programme,Bath Spa University,98573517,91367.02,Research Grant Expenditure
BEIS,UKRI - AHRC,13/09/2019,Research Grant Expenditure,Creative Economy,"Royal Holloway, University of London",98573518,74728.51,Research Grant Expenditure
BEIS,UKRI - AHRC,13/09/2019,Research Grant Expenditure,Networks & Workshops,University of Warwick,98573519,4570.55,Research Grant Expenditure
BEIS,UKRI - AHRC,13/09/2019,Research Grant Expenditure,Research Grants,University of Southampton GRANT,98573520,54819.66,Research Grant Expenditure
BEIS,UKRI - AHRC,13/09/2019,Research Grant Expenditure,Research Grants,Lancaster University,98573521,62323.20,Research Grant Expenditure
BEIS,UKRI - AHRC,13/09/2019,Research Grant Expenditure,Research Grants,University of Nottingham,98573522,48221.93,Research Grant Expenditure
BEIS,UKRI - AHRC,13/09/2019,Research Grant Expenditure,Research Grants,Queen Mary University of London,98573523,16937.30,Research Grant Expenditure
BEIS,UKRI - AHRC,13/09/2019,Research Grant Expenditure,Research Grants,University of Leeds,98573524,63313.38,Research Grant Expenditure
BEIS,UKRI - AHRC,13/09/2019,Research Grant Expenditure,Research Grants,King's College London,98573525,67745.11,Research Grant Expenditure
BEIS,UKRI - AHRC,13/09/2019,Research Grant Expenditure,Research Grants,University of Leicester,98573526,62502.84,Research Grant Expenditure
BEIS,UKRI - AHRC,13/09/2019,Research Grant Expenditure,Research Grants,University of the Arts London,98573527,31837.79,Research Grant Expenditure
BEIS,UKRI - AHRC,13/09/2019,Research Grant Expenditure,Research Grants,"SOAS, University of London",98573528,66269.92,Research Grant Expenditure
BEIS,UKRI - AHRC,13/09/2019,Research Grant Expenditure,Research Grants,The University of Manchester,98573529,31082.40,Research Grant Expenditure
BEIS,UKRI - AHRC,13/09/2019,Research Grant Expenditure,Research Grants,University of Hull,98573530,30862.64,Research Grant Expenditure
BEIS,UKRI - AHRC,13/09/2019,Research Grant Expenditure,Research Grants,University of the West of England,98573531,16440.11,Research Grant Expenditure
BEIS,UKRI - AHRC,13/09/2019,Research Grant Expenditure,Research Grants,University of York,98573532,58200.97,Research Grant Expenditure
BEIS,UKRI - AHRC,13/09/2019,Research Grant Expenditure,Research Grants,University of Edinburgh,98573533,8677.63,Research Grant Expenditure
BEIS,UKRI - AHRC,13/09/2019,Research Grant Expenditure,Research Grants,University of Bradford,98573534,10157.00,Research Grant Expenditure
BEIS,UKRI - AHRC,13/09/2019,Research Grant Expenditure,Anti-microbial Resistance (AMR),University of Exeter,98573535,22264.76,Research Grant Expenditure
BEIS,UKRI - AHRC,13/09/2019,Research Grant Expenditure,Anti-microbial Resistance (AMR),Glasgow School of Art,98573536,27946.75,Research Grant Expenditure
BEIS,UKRI - AHRC,13/09/2019,Research Grant Expenditure,Anti-microbial Resistance (AMR),University of York,98573537,28304.72,Research Grant Expenditure
BEIS,UKRI - AHRC,13/09/2019,Research Grant Expenditure,Anti-microbial Resistance (AMR),Glasgow School of Art,98573538,26005.13,Research Grant Expenditure
BEIS,UKRI - AHRC,13/09/2019,Research Grant Expenditure,Research Grants,Birmingham City University,98573539,42558.28,Research Grant Expenditure
BEIS,UKRI - AHRC,13/09/2019,Research Grant Expenditure,Research Grants,University of Liverpool,98573540,47588.66,Research Grant Expenditure
BEIS,UKRI - AHRC,13/09/2019,Research Grant Expenditure,Research Grants,The Open University,98573541,36992.76,Research Grant Expenditure
BEIS,UKRI - AHRC,13/09/2019,Research Grant Expenditure,Research Grants,University of Nottingham,98573542,53575.46,Research Grant Expenditure
BEIS,UKRI - AHRC,13/09/2019,Research Grant Expenditure,Research Grants,Keele University,98573543,61681.33,Research Grant Expenditure
BEIS,UKRI - AHRC,13/09/2019,Research Grant Expenditure,Research Grants,Cardiff University,98573544,27158.03,Research Grant Expenditure
BEIS,UKRI - AHRC,13/09/2019,Research Grant Expenditure,Research Grants,University of Glasgow,98573545,43094.30,Research Grant Expenditure
BEIS,UKRI - AHRC,13/09/2019,Research Grant Expenditure,Research Grants,University of Birmingham GRANT,98573546,28779.59,Research Grant Expenditure
BEIS,UKRI - AHRC,13/09/2019,Research Grant Expenditure,Anti-microbial Resistance (AMR),Lancaster University,98573547,27063.66,Research Grant Expenditure
BEIS,UKRI - AHRC,13/09/2019,Research Grant Expenditure,Networks & Workshops,University of Chester,98573548,3120.60,Research Grant Expenditure
BEIS,UKRI - AHRC,13/09/2019,Research Grant Expenditure,Networks & Workshops,Cardiff University,98573549,4521.99,Research Grant Expenditure
BEIS,UKRI - AHRC,13/09/2019,Research Grant Expenditure,Global Challenges Research Fund (GCRF),De Montfort University,98573550,45511.15,Research Grant Expenditure
BEIS,UKRI - AHRC,13/09/2019,Research Grant Expenditure,Global Challenges Research Fund (GCRF),Keele University,98573551,44159.74,Research Grant Expenditure
BEIS,UKRI - AHRC,13/09/2019,Research Grant Expenditure,Global Challenges Research Fund (GCRF),University of Leeds,98573552,43647.79,Research Grant Expenditure
BEIS,UKRI - AHRC,13/09/2019,Research Grant Expenditure,Global Challenges Research Fund (GCRF),University of Leeds,98573553,50500.00,Research Grant Expenditure
BEIS,UKRI - AHRC,13/09/2019,Research Grant Expenditure,Global Challenges Research Fund (GCRF),University of Leeds,98573553,206103.00,Research Grant Expenditure
BEIS,UKRI - AHRC,13/09/2019,Research Grant Expenditure,Global Challenges Research Fund (GCRF),University of Nottingham,98573554,103068.31,Research Grant Expenditure
BEIS,UKRI - AHRC,13/09/2019,Research Grant Expenditure,Global Challenges Research Fund (GCRF),London School of Hygiene & Tropical Medicine,98573555,43274.15,Research Grant Expenditure
BEIS,UKRI - AHRC,13/09/2019,Research Grant Expenditure,Global Challenges Research Fund (GCRF),University College London,98573556,115336.62,Research Grant Expenditure
BEIS,UKRI - AHRC,13/09/2019,Research Grant Expenditure,Global Challenges Research Fund (GCRF),University of Liverpool,98573557,139362.09,Research Grant Expenditure
BEIS,UKRI - AHRC,13/09/2019,Research Grant Expenditure,Global Challenges Research Fund (GCRF),"SOAS, University of London",98573558,153580.33,Research Grant Expenditure
BEIS,UKRI - AHRC,13/09/2019,Research Grant Expenditure,Global Challenges Research Fund (GCRF),The University of Manchester,98573559,48801.43,Research Grant Expenditure
BEIS,UKRI - AHRC,13/09/2019,Research Grant Expenditure,Global Challenges Research Fund (GCRF),University of York,98573560,14524.37,Research Grant Expenditure
BEIS,UKRI - AHRC,13/09/2019,Research Grant Expenditure,Global Challenges Research Fund (GCRF),The University of Manchester,98573561,14531.73,Research Grant Expenditure
BEIS,UKRI - AHRC,13/09/2019,Research Grant Expenditure,Global Challenges Research Fund (GCRF),Northumbria University,98573562,15969.72,Research Grant Expenditure
BEIS,UKRI - AHRC,13/09/2019,Research Grant Expenditure,RCUK Global Challenges Research Fund (RCUK GCRF),Goldsmiths College University of London,98573563,203857.00,Research Grant Expenditure
BEIS,UKRI - AHRC,13/09/2019,Research Grant Expenditure,RCUK Global Challenges Research Fund (RCUK GCRF),University of Huddersfield,98573564,274300.00,Research Grant Expenditure
BEIS,UKRI - AHRC,13/09/2019,Research Grant Expenditure,Networks & Workshops,University of Warwick,98573565,3322.02,Research Grant Expenditure
BEIS,UKRI - AHRC,13/09/2019,Research Grant Expenditure,Research Grants,University of Durham,98573566,34802.03,Research Grant Expenditure
BEIS,UKRI - AHRC,13/09/2019,Research Grant Expenditure,Research Grants,University of York,98573567,23058.71,Research Grant Expenditure
BEIS,UKRI - AHRC,13/09/2019,Research Grant Expenditure,Research Grants,University of Leicester,98573568,68385.09,Research Grant Expenditure
BEIS,UKRI - AHRC,13/09/2019,Research Grant Expenditure,Research Grants,University College London,98573569,62699.82,Research Grant Expenditure
BEIS,UKRI - AHRC,13/09/2019,Research Grant Expenditure,Research Grants,Goldsmiths College University of London,98573570,71850.04,Research Grant Expenditure
BEIS,UKRI - AHRC,13/09/2019,Research Grant Expenditure,Research Grants,University College London,98573571,34099.53,Research Grant Expenditure
BEIS,UKRI - AHRC,13/09/2019,Research Grant Expenditure,Research Grants,University of Durham,98573572,64234.19,Research Grant Expenditure
BEIS,UKRI - AHRC,13/09/2019,Research Grant Expenditure,Research Grants,University of East Anglia,98573573,33942.72,Research Grant Expenditure
BEIS,UKRI - AHRC,13/09/2019,Research Grant Expenditure,Research Grants,University College London,98573574,20415.77,Research Grant Expenditure
BEIS,UKRI - AHRC,13/09/2019,Research Grant Expenditure,Global Challenges Research Fund (GCRF),University of Nottingham,98573575,14610.60,Research Grant Expenditure
BEIS,UKRI - AHRC,13/09/2019,Research Grant Expenditure,Care for the Future,University of Essex,98573576,11413.30,Research Grant Expenditure
BEIS,UKRI - AHRC,13/09/2019,Research Grant Expenditure,Connected Communities Programme,University of Essex,98573576,11413.26,Research Grant Expenditure
BEIS,UKRI - AHRC,13/09/2019,Research Grant Expenditure,Research Grants,London School of Economics and Political Science,98573577,60864.19,Research Grant Expenditure
BEIS,UKRI - AHRC,13/09/2019,Research Grant Expenditure,Research Grants,Oxford Brookes University,98573578,61770.61,Research Grant Expenditure
BEIS,UKRI - AHRC,13/09/2019,Research Grant Expenditure,Research Grants,University of Surrey,98573579,34608.12,Research Grant Expenditure
BEIS,UKRI - AHRC,13/09/2019,Research Grant Expenditure,Research Grants,University of Sheffield,98573580,52805.84,Research Grant Expenditure
BEIS,UKRI - AHRC,13/09/2019,Research Grant Expenditure,Research Grants,University of Glasgow,98573581,56519.63,Research Grant Expenditure
BEIS,UKRI - AHRC,13/09/2019,Research Grant Expenditure,Research Grants,University of Newcastle Upon Tyne,98573582,60315.00,Research Grant Expenditure
BEIS,UKRI - AHRC,13/09/2019,Research Grant Expenditure,Research Grants,Cardiff University,98573583,22584.42,Research Grant Expenditure
BEIS,UKRI - AHRC,13/09/2019,Research Grant Expenditure,Research Grants,Manchester Metropolitan University,98573584,25849.98,Research Grant Expenditure
BEIS,UKRI - AHRC,13/09/2019,Research Grant Expenditure,Research Grants,University of Dundee,98573585,24229.26,Research Grant Expenditure
BEIS,UKRI - AHRC,13/09/2019,Research Grant Expenditure,Care for the Future,University of Exeter,98573586,83889.61,Research Grant Expenditure
BEIS,UKRI - AHRC,13/09/2019,Research Grant Expenditure,Networks & Workshops,Lancaster University,98573587,5179.88,Research Grant Expenditure
BEIS,UKRI - AHRC,13/09/2019,Research Grant Expenditure,Networks & Workshops,Northumbria University,98573588,4255.32,Research Grant Expenditure
BEIS,UKRI - AHRC,13/09/2019,Research Grant Expenditure,Networks & Workshops,The Open University,98573589,5198.19,Research Grant Expenditure
BEIS,UKRI - AHRC,13/09/2019,Research Grant Expenditure,Networks & Workshops,University of Glasgow,98573590,4617.10,Research Grant Expenditure
BEIS,UKRI - AHRC,13/09/2019,Research Grant Expenditure,Networks & Workshops,Cardiff University,98573591,4248.96,Research Grant Expenditure
BEIS,UKRI - AHRC,13/09/2019,Research Grant Expenditure,Networks & Workshops,King's College London,98573592,6096.15,Research Grant Expenditure
BEIS,UKRI - AHRC,13/09/2019,Research Grant Expenditure,Newton Programme,Cardiff University,98573593,13951.50,Research Grant Expenditure
BEIS,UKRI - AHRC,13/09/2019,Research Grant Expenditure,Newton Programme,University of Liverpool,98573594,21190.13,Research Grant Expenditure
BEIS,UKRI - AHRC,13/09/2019,Research Grant Expenditure,Newton Programme,University of Salford,98573595,11756.84,Research Grant Expenditure
BEIS,UKRI - AHRC,13/09/2019,Research Grant Expenditure,JPI Cultural Heritage,University College London,98573596,8129.83,Research Grant Expenditure
BEIS,UKRI - AHRC,13/09/2019,Research Grant Expenditure,JPI Cultural Heritage,University of Oxford,98573597,11092.96,Research Grant Expenditure
BEIS,UKRI - AHRC,13/09/2019,Research Grant Expenditure,JPI Cultural Heritage,De Montfort University,98573598,13329.15,Research Grant Expenditure
BEIS,UKRI - AHRC,13/09/2019,Research Grant Expenditure,Research Grants,University of Strathclyde,98573599,54541.72,Research Grant Expenditure
BEIS,UKRI - AHRC,13/09/2019,Research Grant Expenditure,Research Grants,The University of Manchester,98573600,57275.09,Research Grant Expenditure
BEIS,UKRI - AHRC,13/09/2019,Research Grant Expenditure,Research Grants,"Royal Holloway, University of London",98573601,33048.33,Research Grant Expenditure
BEIS,UKRI - AHRC,13/09/2019,Research Grant Expenditure,Research Grants,University of Westminster,98573602,40011.30,Research Grant Expenditure
BEIS,UKRI - AHRC,13/09/2019,Research Grant Expenditure,Research Grants,University of the Arts London,98573603,44877.19,Research Grant Expenditure
BEIS,UKRI - AHRC,13/09/2019,Research Grant Expenditure,Research Grants,The University of Manchester,98573604,58389.51,Research Grant Expenditure
BEIS,UKRI - AHRC,13/09/2019,Research Grant Expenditure,JPI Cultural Heritage,The Open University,98573605,13257.20,Research Grant Expenditure
BEIS,UKRI - AHRC,13/09/2019,Research Grant Expenditure,Research Grants,University of Reading,98573606,67145.01,Research Grant Expenditure
BEIS,UKRI - AHRC,13/09/2019,Research Grant Expenditure,JPI Cultural Heritage,University of Warwick,98573607,8885.49,Research Grant Expenditure
BEIS,UKRI - AHRC,13/09/2019,Research Grant Expenditure,Networks & Workshops,National Museums of Scotland,98573608,5646.66,Research Grant Expenditure
BEIS,UKRI - AHRC,13/09/2019,Research Grant Expenditure,Networks & Workshops,University of Lincoln,98573609,5892.11,Research Grant Expenditure
BEIS,UKRI - AHRC,13/09/2019,Research Grant Expenditure,Networks & Workshops,Northumbria University,98573610,6772.54,Research Grant Expenditure
BEIS,UKRI - AHRC,13/09/2019,Research Grant Expenditure,Networks & Workshops,Arts University Bournemouth,98573611,3005.46,Research Grant Expenditure
BEIS,UKRI - AHRC,13/09/2019,Research Grant Expenditure,Networks & Workshops,Queen's University Belfast GRANT,98573612,5989.19,Research Grant Expenditure
BEIS,UKRI - AHRC,13/09/2019,Research Grant Expenditure,Networks & Workshops,University of Birmingham GRANT,98573613,3862.78,Research Grant Expenditure
BEIS,UKRI - AHRC,13/09/2019,Research Grant Expenditure,Research Grants,University of Exeter,98573614,81585.13,Research Grant Expenditure
BEIS,UKRI - AHRC,13/09/2019,Research Grant Expenditure,Networks & Workshops,Birmingham City University,98573615,4090.71,Research Grant Expenditure
BEIS,UKRI - AHRC,13/09/2019,Research Grant Expenditure,Research Grants,The University of Manchester,98573616,66859.62,Research Grant Expenditure
BEIS,UKRI - AHRC,13/09/2019,Research Grant Expenditure,Research Grants,University of Warwick,98573617,57062.38,Research Grant Expenditure
BEIS,UKRI - AHRC,13/09/2019,Research Grant Expenditure,Research Grants,The Royal Central School of Speech and Drama,98573618,47959.80,Research Grant Expenditure
BEIS,UKRI - AHRC,13/09/2019,Research Grant Expenditure,Research Grants,Queen's University Belfast GRANT,98573619,20530.42,Research Grant Expenditure
BEIS,UKRI - AHRC,13/09/2019,Research Grant Expenditure,Networks & Workshops,University of Glasgow,98573620,4924.82,Research Grant Expenditure
BEIS,UKRI - AHRC,13/09/2019,Research Grant Expenditure,Networks & Workshops,University of Leeds,98573621,4297.81,Research Grant Expenditure
BEIS,UKRI - AHRC,13/09/2019,Research Grant Expenditure,Research Grants,Northumbria University,98573622,21674.11,Research Grant Expenditure
BEIS,UKRI - AHRC,13/09/2019,Research Grant Expenditure,Research Grants,University of Liverpool,98573623,48171.34,Research Grant Expenditure
BEIS,UKRI - AHRC,13/09/2019,Research Grant Expenditure,Research Grants,University of Newcastle Upon Tyne,98573624,54407.74,Research Grant Expenditure
BEIS,UKRI - AHRC,13/09/2019,Research Grant Expenditure,RCUK Newton Programme,University of Bristol GRANT,98573625,60624.29,Research Grant Expenditure
BEIS,UKRI - AHRC,13/09/2019,Research Grant Expenditure,Research Grants,Queen Mary University of London,98573626,33272.59,Research Grant Expenditure
BEIS,UKRI - AHRC,13/09/2019,Research Grant Expenditure,Research Grants,University of Liverpool,98573627,21836.75,Research Grant Expenditure
BEIS,UKRI - AHRC,13/09/2019,Research Grant Expenditure,Research Grants,King's College London,98573628,65274.21,Research Grant Expenditure
BEIS,UKRI - AHRC,13/09/2019,Research Grant Expenditure,RCUK Newton Programme,"Royal Holloway, University of London",98573629,34585.25,Research Grant Expenditure
BEIS,UKRI - AHRC,13/09/2019,Research Grant Expenditure,Research Grants,University of Sussex,98573630,49594.42,Research Grant Expenditure
BEIS,UKRI - AHRC,13/09/2019,Research Grant Expenditure,Research Grants,University of Southampton GRANT,98573631,77832.01,Research Grant Expenditure
BEIS,UKRI - AHRC,13/09/2019,Research Grant Expenditure,Research Grants,University of Reading,98573632,55722.66,Research Grant Expenditure
BEIS,UKRI - AHRC,13/09/2019,Research Grant Expenditure,Research Grants,University of Exeter,98573633,19890.46,Research Grant Expenditure
BEIS,UKRI - AHRC,13/09/2019,Research Grant Expenditure,Research Grants,University of Oxford,98573634,61957.28,Research Grant Expenditure
BEIS,UKRI - AHRC,13/09/2019,Research Grant Expenditure,Networks & Workshops,Kingston University,98573635,4506.86,Research Grant Expenditure
BEIS,UKRI - AHRC,13/09/2019,Research Grant Expenditure,RCUK Newton Programme,Aberystwyth University,98573636,31207.22,Research Grant Expenditure
BEIS,UKRI - AHRC,13/09/2019,Research Grant Expenditure,RCUK Newton Programme,University of Nottingham,98573637,43604.35,Research Grant Expenditure
BEIS,UKRI - AHRC,13/09/2019,Research Grant Expenditure,Research Grants,The University of Manchester,98573638,27342.62,Research Grant Expenditure
BEIS,UKRI - AHRC,13/09/2019,Research Grant Expenditure,Research Grants,Birkbeck College,98573639,66354.48,Research Grant Expenditure
BEIS,UKRI - AHRC,13/09/2019,Research Grant Expenditure,Research Grants,University of East Anglia,98573640,34447.74,Research Grant Expenditure
BEIS,UKRI - AHRC,13/09/2019,Research Grant Expenditure,Research Grants,University of Chester,98573641,37616.38,Research Grant Expenditure
BEIS,UKRI - AHRC,13/09/2019,Research Grant Expenditure,Newton Programme,Loughborough University,98573642,29653.19,Research Grant Expenditure
BEIS,UKRI - AHRC,13/09/2019,Research Grant Expenditure,Newton Programme,Queen Mary University of London,98573643,32088.41,Research Grant Expenditure
BEIS,UKRI - AHRC,13/09/2019,Research Grant Expenditure,Newton Programme,Lancaster University,98573644,16444.18,Research Grant Expenditure
BEIS,UKRI - AHRC,13/09/2019,Research Grant Expenditure,Newton Programme,Brunel University London,98573645,18479.91,Research Grant Expenditure
BEIS,UKRI - AHRC,13/09/2019,Research Grant Expenditure,Newton Programme,University College London,98573646,25190.52,Research Grant Expenditure
BEIS,UKRI - AHRC,13/09/2019,Research Grant Expenditure,Newton Programme,Liverpool John Moores University,98573647,16485.42,Research Grant Expenditure
BEIS,UKRI - AHRC,13/09/2019,Research Grant Expenditure,Newton Programme,Science Museum Group,98573648,41494.11,Research Grant Expenditure
BEIS,UKRI - AHRC,13/09/2019,Research Grant Expenditure,Research Grants,University of Leeds,98573649,25804.88,Research Grant Expenditure
BEIS,UKRI - AHRC,13/09/2019,Research Grant Expenditure,Research Grants,The University of Manchester,98573650,45247.89,Research Grant Expenditure
BEIS,UKRI - AHRC,13/09/2019,Research Grant Expenditure,Research Grants,University of Kent,98573651,53827.04,Research Grant Expenditure
BEIS,UKRI - AHRC,13/09/2019,Research Grant Expenditure,Research Grants,University of Wales Trinity St David,98573652,62819.51,Research Grant Expenditure
BEIS,UKRI - AHRC,13/09/2019,Research Grant Expenditure,Research Grants,University of Bristol GRANT,98573653,42943.45,Research Grant Expenditure
BEIS,UKRI - AHRC,13/09/2019,Research Grant Expenditure,Research Grants,UNIVERSITY OF ULSTER,98573654,27042.81,Research Grant Expenditure
BEIS,UKRI - AHRC,13/09/2019,Research Grant Expenditure,Research Grants,University of Oxford,98573655,71431.30,Research Grant Expenditure
BEIS,UKRI - AHRC,13/09/2019,Research Grant Expenditure,Research Grants,University of the Arts London,98573656,40126.17,Research Grant Expenditure
BEIS,UKRI - AHRC,13/09/2019,Research Grant Expenditure,Industrial Strategy Challenge Fund (ISCF) - Creative Clusters,NESTA,98573657,333633.07,Research Grant Expenditure
BEIS,UKRI - AHRC,13/09/2019,Research Grant Expenditure,Research Grants,University of Exeter,98573658,33414.55,Research Grant Expenditure
BEIS,UKRI - AHRC,13/09/2019,Research Grant Expenditure,Networks & Workshops,Northumbria University,98573659,5890.95,Research Grant Expenditure
BEIS,UKRI - AHRC,13/09/2019,Research Grant Expenditure,Research Grants,The University of Manchester,98573660,67324.13,Research Grant Expenditure
BEIS,UKRI - AHRC,13/09/2019,Research Grant Expenditure,Research Grants,University of the Arts London,98573661,31927.93,Research Grant Expenditure
BEIS,UKRI - AHRC,13/09/2019,Research Grant Expenditure,Research Grants,University of Sussex,98573662,54650.34,Research Grant Expenditure
BEIS,UKRI - AHRC,13/09/2019,Research Grant Expenditure,Research Grants,Birkbeck College,98573663,30168.50,Research Grant Expenditure
BEIS,UKRI - AHRC,13/09/2019,Research Grant Expenditure,Networks & Workshops,Birmingham City University,98573664,3377.71,Research Grant Expenditure
BEIS,UKRI - AHRC,13/09/2019,Research Grant Expenditure,Research Grants,University of Oxford,98573665,56828.64,Research Grant Expenditure
BEIS,UKRI - AHRC,13/09/2019,Research Grant Expenditure,Research Grants,University of Newcastle Upon Tyne,98573666,64573.93,Research Grant Expenditure
BEIS,UKRI - AHRC,13/09/2019,Research Grant Expenditure,Research Grants,University of Exeter,98573667,52199.44,Research Grant Expenditure
BEIS,UKRI - AHRC,13/09/2019,Research Grant Expenditure,Newton Programme,University of Leeds,98573668,16546.06,Research Grant Expenditure
BEIS,UKRI - AHRC,13/09/2019,Research Grant Expenditure,JPI Cultural Heritage,University of Hull,98573669,11191.91,Research Grant Expenditure
BEIS,UKRI - AHRC,13/09/2019,Research Grant Expenditure,Global Challenges Research Fund (GCRF),University of York,98573670,21564.17,Research Grant Expenditure
BEIS,UKRI - AHRC,13/09/2019,Research Grant Expenditure,Research Grants,University of Glasgow,98573671,72191.97,Research Grant Expenditure
BEIS,UKRI - AHRC,13/09/2019,Research Grant Expenditure,JPI Cultural Heritage,University of Lincoln,98573672,14551.09,Research Grant Expenditure
BEIS,UKRI - AHRC,13/09/2019,Research Grant Expenditure,Newton Programme,University of Salford,98573673,20891.36,Research Grant Expenditure
BEIS,UKRI - AHRC,13/09/2019,Research Grant Expenditure,JPI Cultural Heritage,University of Bradford,98573674,11740.23,Research Grant Expenditure
BEIS,UKRI - AHRC,13/09/2019,Research Grant Expenditure,Audience of the Future (ISCF 2),The National Film & Television School,98573675,423293.39,Research Grant Expenditure
BEIS,UKRI - AHRC,13/09/2019,Research Grant Expenditure,Follow-on Fund,Lancaster University,98573676,20156.01,Research Grant Expenditure
BEIS,UKRI - AHRC,13/09/2019,Research Grant Expenditure,Industrial Strategy Challenge Fund (ISCF) - Creative Clusters,University of Edinburgh,98573677,277698.30,Research Grant Expenditure
BEIS,UKRI - AHRC,13/09/2019,Research Grant Expenditure,Industrial Strategy Challenge Fund (ISCF) - Creative Clusters,University of Leeds,98573678,272512.48,Research Grant Expenditure
BEIS,UKRI - AHRC,13/09/2019,Research Grant Expenditure,Industrial Strategy Challenge Fund (ISCF) - Creative Clusters,University of the Arts London,98573679,275410.66,Research Grant Expenditure
BEIS,UKRI - AHRC,13/09/2019,Research Grant Expenditure,Industrial Strategy Challenge Fund (ISCF) - Creative Clusters,UNIVERSITY OF ULSTER,98573680,277444.77,Research Grant Expenditure
BEIS,UKRI - AHRC,13/09/2019,Research Grant Expenditure,Industrial Strategy Challenge Fund (ISCF) - Creative Clusters,Abertay University,98573681,259011.77,Research Grant Expenditure
BEIS,UKRI - AHRC,13/09/2019,Research Grant Expenditure,Industrial Strategy Challenge Fund (ISCF) - Creative Clusters,University of the West of England,98573682,278292.84,Research Grant Expenditure
BEIS,UKRI - AHRC,13/09/2019,Research Grant Expenditure,Creative Economy,University of Edinburgh,98573683,7856.03,Research Grant Expenditure
BEIS,UKRI - AHRC,13/09/2019,Research Grant Expenditure,Innovation Placements (NPIF),Royal College of Art,98573684,7560.75,Research Grant Expenditure
BEIS,UKRI - AHRC,13/09/2019,Research Grant Expenditure,Innovation Placements (NPIF),Royal College of Art,98573684,7560.75,Research Grant Expenditure
BEIS,UKRI - AHRC,13/09/2019,Research Grant Expenditure,Innovation Placements (NPIF),University of Glasgow,98573685,15330.81,Research Grant Expenditure
BEIS,UKRI - AHRC,13/09/2019,Research Grant Expenditure,Innovation Placements (NPIF),University of York,98573686,15330.81,Research Grant Expenditure
BEIS,UKRI - AHRC,13/09/2019,Research Grant Expenditure,Innovation Placements (NPIF),The University of Manchester,98573687,15877.57,Research Grant Expenditure
BEIS,UKRI - AHRC,13/09/2019,Research Grant Expenditure,Innovation Placements (NPIF),"Royal Holloway, University of London",98573688,15877.56,Research Grant Expenditure
BEIS,UKRI - AHRC,13/09/2019,Research Grant Expenditure,Industrial Strategy Challenge Fund (ISCF) - Creative Clusters,University of York,98573689,273467.32,Research Grant Expenditure
BEIS,UKRI - AHRC,13/09/2019,Research Grant Expenditure,Industrial Strategy Challenge Fund (ISCF) - Creative Clusters,Cardiff University,98573690,265994.55,Research Grant Expenditure
BEIS,UKRI - AHRC,13/09/2019,Research Grant Expenditure,Industrial Strategy Challenge Fund (ISCF) - Creative Clusters,"Royal Holloway, University of London",98573691,277442.89,Research Grant Expenditure
BEIS,UKRI - AHRC,13/09/2019,Research Grant Expenditure,Creative Economy,University of Nottingham,98573692,8656.80,Research Grant Expenditure
BEIS,UKRI - AHRC,13/09/2019,Research Grant Expenditure,Newton Programme,Nottingham Trent University,98573693,21130.73,Research Grant Expenditure
BEIS,UKRI - AHRC,13/09/2019,Research Grant Expenditure,Creative Economy,Goldsmiths College University of London,98573694,8024.94,Research Grant Expenditure
BEIS,UKRI - AHRC,13/09/2019,Research Grant Expenditure,Innovation Placements (NPIF),University of the West of England,98573695,7560.75,Research Grant Expenditure
BEIS,UKRI - AHRC,13/09/2019,Research Grant Expenditure,Innovation Placements (NPIF),University of Newcastle Upon Tyne,98573696,15877.56,Research Grant Expenditure
BEIS,UKRI - AHRC,13/09/2019,Research Grant Expenditure,Global Challenges Research Fund (GCRF),Goldsmiths College University of London,98573697,53.62,Research Grant Expenditure
BEIS,UKRI - AHRC,13/09/2019,Research Grant Expenditure,Networks & Workshops,Birkbeck College,98573698,6953.67,Research Grant Expenditure
BEIS,UKRI - AHRC,13/09/2019,Research Grant Expenditure,Global Challenges Research Fund (GCRF),University of Leeds,98573699,34247.18,Research Grant Expenditure
BEIS,UKRI - AHRC,13/09/2019,Research Grant Expenditure,Global Challenges Research Fund (GCRF),University of Bath,98573700,15358.27,Research Grant Expenditure
BEIS,UKRI - AHRC,13/09/2019,Research Grant Expenditure,Global Challenges Research Fund (GCRF),Lancaster University,98573701,16438.22,Research Grant Expenditure
BEIS,UKRI - AHRC,13/09/2019,Research Grant Expenditure,Global Challenges Research Fund (GCRF),University of Leeds,98573702,75.90,Research Grant Expenditure
BEIS,UKRI - AHRC,13/09/2019,Research Grant Expenditure,Global Challenges Research Fund (GCRF),University of Glasgow,98573703,0.05,Research Grant Expenditure
BEIS,UKRI - AHRC,13/09/2019,Research Grant Expenditure,Networks & Workshops,University of Birmingham GRANT,98573704,3134.33,Research Grant Expenditure
BEIS,UKRI - AHRC,13/09/2019,Research Grant Expenditure,Networks & Workshops,University of the Arts London,98573705,7819.20,Research Grant Expenditure
BEIS,UKRI - AHRC,13/09/2019,Research Grant Expenditure,Networks & Workshops,Coventry University,98573706,3850.90,Research Grant Expenditure
BEIS,UKRI - AHRC,13/09/2019,Research Grant Expenditure,Networks & Workshops,University of the Arts London,98573707,5913.36,Research Grant Expenditure
BEIS,UKRI - AHRC,13/09/2019,Research Grant Expenditure,Newton Programme,University of Durham,98573708,26911.03,Research Grant Expenditure
BEIS,UKRI - AHRC,13/09/2019,Research Grant Expenditure,Innovation Placements (NPIF),University of Nottingham,98573709,15784.47,Research Grant Expenditure
BEIS,UKRI - AHRC,13/09/2019,Research Grant Expenditure,Newton Programme,University of Durham,98573710,24019.64,Research Grant Expenditure
BEIS,UKRI - AHRC,13/09/2019,Research Grant Expenditure,Research Grants,University of Leicester,98573711,28295.06,Research Grant Expenditure
BEIS,UKRI - AHRC,13/09/2019,Research Grant Expenditure,Research Grants,University of Stirling,98573712,34949.68,Research Grant Expenditure
BEIS,UKRI - AHRC,13/09/2019,Research Grant Expenditure,Research Grants,University of the Arts London,98573713,63298.08,Research Grant Expenditure
BEIS,UKRI - AHRC,13/09/2019,Research Grant Expenditure,Research Grants,University of Exeter,98573714,39556.32,Research Grant Expenditure
BEIS,UKRI - AHRC,13/09/2019,Research Grant Expenditure,Newton Programme,Oxford Brookes University,98573715,16728.87,Research Grant Expenditure
BEIS,UKRI - AHRC,13/09/2019,Research Grant Expenditure,Research Grants,University of Newcastle Upon Tyne,98573716,50156.21,Research Grant Expenditure
BEIS,UKRI - AHRC,13/09/2019,Research Grant Expenditure,Research Grants,University of Kent,98573717,60010.53,Research Grant Expenditure
BEIS,UKRI - AHRC,13/09/2019,Research Grant Expenditure,Research Grants,University of York,98573718,71659.33,Research Grant Expenditure
BEIS,UKRI - AHRC,13/09/2019,Research Grant Expenditure,Research Grants,Northumbria University,98573719,25201.99,Research Grant Expenditure
BEIS,UKRI - AHRC,13/09/2019,Research Grant Expenditure,Newton Programme,University of Liverpool,98573720,26525.62,Research Grant Expenditure
BEIS,UKRI - AHRC,13/09/2019,Research Grant Expenditure,Living with Machines (SPF),The Alan Turing Institute,98573721,539127.09,Research Grant Expenditure
BEIS,UKRI - AHRC,13/09/2019,Research Grant Expenditure,Newton Programme,Imperial College London,98573722,16754.57,Research Grant Expenditure
BEIS,UKRI - AHRC,13/09/2019,Research Grant Expenditure,Networks & Workshops,Loughborough University,98573723,4730.52,Research Grant Expenditure
BEIS,UKRI - AHRC,13/09/2019,Research Grant Expenditure,Networks & Workshops,The Royal Central School of Speech and Drama,98573724,18440.41,Research Grant Expenditure
BEIS,UKRI - AHRC,13/09/2019,Research Grant Expenditure,Networks & Workshops,University of Southampton GRANT,98573725,4453.38,Research Grant Expenditure
BEIS,UKRI - AHRC,13/09/2019,Research Grant Expenditure,Follow-on Fund,University of Birmingham GRANT,98573726,20130.52,Research Grant Expenditure
BEIS,UKRI - AHRC,13/09/2019,Research Grant Expenditure,Networks & Workshops,University of Kent,98573727,4533.17,Research Grant Expenditure
BEIS,UKRI - AHRC,13/09/2019,Research Grant Expenditure,Networks & Workshops,Liverpool John Moores University,98573728,6110.84,Research Grant Expenditure
BEIS,UKRI - AHRC,13/09/2019,Research Grant Expenditure,RCUK Global Challenges Research Fund (RCUK GCRF),London School of Economics and Political Science,98573729,749270.03,Research Grant Expenditure
BEIS,UKRI - AHRC,13/09/2019,Research Grant Expenditure,Research Grants,Lancaster University,98573730,57172.93,Research Grant Expenditure
BEIS,UKRI - AHRC,13/09/2019,Research Grant Expenditure,Networks & Workshops,University of East Anglia,98573731,4917.38,Research Grant Expenditure
BEIS,UKRI - AHRC,13/09/2019,Research Grant Expenditure,Networks & Workshops,University of London,98573732,11953.36,Research Grant Expenditure
BEIS,UKRI - AHRC,13/09/2019,Research Grant Expenditure,NPIF Research Talent (RCUK Innovation Fellowships),"Royal Holloway, University of London",98573733,390.58,Research Grant Expenditure
BEIS,UKRI - AHRC,13/09/2019,Research Grant Expenditure,Newton Programme,King's College London,98573734,22732.61,Research Grant Expenditure
BEIS,UKRI - AHRC,13/09/2019,Research Grant Expenditure,Newton Programme,University of Leeds,98573735,26524.73,Research Grant Expenditure
BEIS,UKRI - AHRC,13/09/2019,Research Grant Expenditure,Newton Programme,University of Reading,98573736,25658.72,Research Grant Expenditure
BEIS,UKRI - AHRC,13/09/2019,Research Grant Expenditure,JPI Cultural Heritage,University of Leeds,98573737,8418.35,Research Grant Expenditure
BEIS,UKRI - AHRC,13/09/2019,Research Grant Expenditure,Follow-on Fund,Roehampton University (University of Roehampton),98573738,80593.58,Research Grant Expenditure
BEIS,UKRI - AHRC,13/09/2019,Research Grant Expenditure,Research Grants,Lancaster University,98573739,50835.14,Research Grant Expenditure
BEIS,UKRI - AHRC,13/09/2019,Research Grant Expenditure,Research Grants,Lancaster University,98573739,50835.14,Research Grant Expenditure
BEIS,UKRI - AHRC,13/09/2019,Research Grant Expenditure,Research Grants,University College London,98573740,50644.72,Research Grant Expenditure
BEIS,UKRI - AHRC,13/09/2019,Research Grant Expenditure,Research Grants,Museum of London Archaeology,98573741,18477.58,Research Grant Expenditure
BEIS,UKRI - AHRC,13/09/2019,Research Grant Expenditure,RCUK Global Challenges Research Fund (RCUK GCRF),University of Sussex,98573742,62981.94,Research Grant Expenditure
BEIS,UKRI - AHRC,13/09/2019,Research Grant Expenditure,Research Grants,Manchester Metropolitan University,98573743,43638.70,Research Grant Expenditure
BEIS,UKRI - AHRC,13/09/2019,Research Grant Expenditure,Follow-on Fund,London School of Economics and Political Science,98573744,19543.51,Research Grant Expenditure
BEIS,UKRI - AHRC,13/09/2019,Research Grant Expenditure,Research Grants,University of Leeds,98573745,68132.30,Research Grant Expenditure
BEIS,UKRI - AHRC,13/09/2019,Research Grant Expenditure,Research Grants,University of Exeter,98573746,30680.41,Research Grant Expenditure
BEIS,UKRI - AHRC,13/09/2019,Research Grant Expenditure,Research Grants,University of Sheffield,98573747,22241.13,Research Grant Expenditure
BEIS,UKRI - AHRC,13/09/2019,Research Grant Expenditure,Research Grants,University of Oxford,98573748,71359.98,Research Grant Expenditure
BEIS,UKRI - AHRC,13/09/2019,Research Grant Expenditure,Research Grants,University of Oxford,98573748,71359.98,Research Grant Expenditure
BEIS,UKRI - AHRC,13/09/2019,Research Grant Expenditure,Research Grants,University of Reading,98573749,57592.32,Research Grant Expenditure
BEIS,UKRI - AHRC,13/09/2019,Research Grant Expenditure,Follow-on Fund,University of Leeds,98573750,20161.23,Research Grant Expenditure
BEIS,UKRI - AHRC,13/09/2019,Research Grant Expenditure,Networks & Workshops,University of Exeter,98573751,3775.77,Research Grant Expenditure
BEIS,UKRI - AHRC,13/09/2019,Research Grant Expenditure,Newton Programme,"City, University of London",98573752,30298.38,Research Grant Expenditure
BEIS,UKRI - AHRC,13/09/2019,Research Grant Expenditure,Newton Programme,"City, University of London",98573752,29766.91,Research Grant Expenditure
BEIS,UKRI - AHRC,13/09/2019,Research Grant Expenditure,Networks & Workshops,University of Cambridge,98573753,7826.04,Research Grant Expenditure
BEIS,UKRI - AHRC,13/09/2019,Research Grant Expenditure,Networks & Workshops,University of Cambridge,98573753,7826.04,Research Grant Expenditure
BEIS,UKRI - AHRC,13/09/2019,Research Grant Expenditure,Networks & Workshops,University of Cambridge,98573753,7826.04,Research Grant Expenditure
BEIS,UKRI - AHRC,13/09/2019,Research Grant Expenditure,Follow-on Fund,University of Portsmouth,98573754,24181.49,Research Grant Expenditure
BEIS,UKRI - AHRC,13/09/2019,Research Grant Expenditure,Follow-on Fund,University of Stirling,98573755,19937.49,Research Grant Expenditure
BEIS,UKRI - AHRC,13/09/2019,Research Grant Expenditure,Follow-on Fund,University of Stirling,98573755,19937.49,Research Grant Expenditure
BEIS,UKRI - AHRC,13/09/2019,Research Grant Expenditure,Networks & Workshops,University of Warwick,98573756,4521.93,Research Grant Expenditure
BEIS,UKRI - AHRC,13/09/2019,Research Grant Expenditure,Networks & Workshops,University of Westminster,98573757,6202.72,Research Grant Expenditure
BEIS,UKRI - AHRC,13/09/2019,Research Grant Expenditure,Networks & Workshops,The University of Manchester,98573758,4828.81,Research Grant Expenditure
BEIS,UKRI - AHRC,13/09/2019,Research Grant Expenditure,Networks & Workshops,The University of Manchester,98573758,4828.81,Research Grant Expenditure
BEIS,UKRI - AHRC,13/09/2019,Research Grant Expenditure,Networks & Workshops,University of Reading,98573759,6037.93,Research Grant Expenditure
BEIS,UKRI - AHRC,13/09/2019,Research Grant Expenditure,Networks & Workshops,University of Exeter,98573760,6165.41,Research Grant Expenditure
BEIS,UKRI - AHRC,13/09/2019,Research Grant Expenditure,Networks & Workshops,University of Hull,98573761,5793.35,Research Grant Expenditure
BEIS,UKRI - AHRC,13/09/2019,Research Grant Expenditure,Networks & Workshops,Nottingham Trent University,98573762,4533.87,Research Grant Expenditure
BEIS,UKRI - AHRC,13/09/2019,Research Grant Expenditure,Networks & Workshops,Loughborough University,98573763,4453.73,Research Grant Expenditure
BEIS,UKRI - AHRC,13/09/2019,Research Grant Expenditure,Networks & Workshops,University College London,98573764,4859.13,Research Grant Expenditure
BEIS,UKRI - AHRC,13/09/2019,Research Grant Expenditure,Networks & Workshops,University of Warwick,98573765,4856.22,Research Grant Expenditure
BEIS,UKRI - AHRC,13/09/2019,Research Grant Expenditure,Networks & Workshops,University of Warwick,98573765,4856.22,Research Grant Expenditure
BEIS,UKRI - AHRC,13/09/2019,Research Grant Expenditure,Networks & Workshops,University of Warwick,98573766,4535.23,Research Grant Expenditure
BEIS,UKRI - AHRC,13/09/2019,Research Grant Expenditure,Networks & Workshops,Science Museum Group,98573767,17979.00,Research Grant Expenditure
BEIS,UKRI - AHRC,13/09/2019,Research Grant Expenditure,Follow-on Fund,University of Leeds,98573768,46038.62,Research Grant Expenditure
BEIS,UKRI - AHRC,13/09/2019,Research Grant Expenditure,Follow-on Fund,University of Liverpool,98573769,18040.66,Research Grant Expenditure
BEIS,UKRI - AHRC,13/09/2019,Research Grant Expenditure,Research Grants,University of Oxford,98573770,31321.20,Research Grant Expenditure
BEIS,UKRI - AHRC,13/09/2019,Research Grant Expenditure,Research Grants,University of Durham,98573771,28214.80,Research Grant Expenditure
BEIS,UKRI - AHRC,13/09/2019,Research Grant Expenditure,Research Grants,University of Durham,98573771,28214.80,Research Grant Expenditure
BEIS,UKRI - AHRC,13/09/2019,Research Grant Expenditure,Research Grants,University of Durham,98573771,28214.80,Research Grant Expenditure
BEIS,UKRI - AHRC,13/09/2019,Research Grant Expenditure,Research Grants,University of Durham,98573771,28214.80,Research Grant Expenditure
BEIS,UKRI - AHRC,13/09/2019,Research Grant Expenditure,Global Challenges Research Fund (GCRF),University of Stirling,98573772,59509.67,Research Grant Expenditure
BEIS,UKRI - AHRC,13/09/2019,Research Grant Expenditure,Global Challenges Research Fund (GCRF),Keele University,98573773,55578.74,Research Grant Expenditure
BEIS,UKRI - AHRC,13/09/2019,Research Grant Expenditure,Global Challenges Research Fund (GCRF),University of Glasgow,98573774,53784.12,Research Grant Expenditure
BEIS,UKRI - AHRC,13/09/2019,Research Grant Expenditure,Global Challenges Research Fund (GCRF),University of Bristol GRANT,98573775,55342.84,Research Grant Expenditure
BEIS,UKRI - AHRC,13/09/2019,Research Grant Expenditure,Global Challenges Research Fund (GCRF),Aberystwyth University,98573776,54502.97,Research Grant Expenditure
BEIS,UKRI - AHRC,13/09/2019,Research Grant Expenditure,Global Challenges Research Fund (GCRF),University of Cambridge,98573777,50341.48,Research Grant Expenditure
BEIS,UKRI - AHRC,13/09/2019,Research Grant Expenditure,Global Challenges Research Fund (GCRF),University of Derby,98573778,55312.44,Research Grant Expenditure
BEIS,UKRI - AHRC,13/09/2019,Research Grant Expenditure,Global Challenges Research Fund (GCRF),Coventry University,98573779,58552.14,Research Grant Expenditure
BEIS,UKRI - AHRC,13/09/2019,Research Grant Expenditure,Global Challenges Research Fund (GCRF),University of Lincoln,98573780,53747.59,Research Grant Expenditure
BEIS,UKRI - AHRC,13/09/2019,Research Grant Expenditure,Global Challenges Research Fund (GCRF),University of Birmingham GRANT,98573781,52761.67,Research Grant Expenditure
BEIS,UKRI - AHRC,13/09/2019,Research Grant Expenditure,Global Challenges Research Fund (GCRF),University of Leeds,98573782,56270.33,Research Grant Expenditure
BEIS,UKRI - AHRC,13/09/2019,Research Grant Expenditure,Global Challenges Research Fund (GCRF),University of East Anglia,98573783,54718.35,Research Grant Expenditure
BEIS,UKRI - AHRC,13/09/2019,Research Grant Expenditure,Global Challenges Research Fund (GCRF),University of York,98573784,52571.43,Research Grant Expenditure
BEIS,UKRI - AHRC,13/09/2019,Research Grant Expenditure,Artificial Intelligence,Nottingham Trent University,98573785,56622.92,Research Grant Expenditure
BEIS,UKRI - AHRC,13/09/2019,Research Grant Expenditure,Follow-on Fund,University of York,98573786,12070.29,Research Grant Expenditure
BEIS,UKRI - AHRC,13/09/2019,Research Grant Expenditure,Follow-on Fund,University of Leeds,98573787,6048.11,Research Grant Expenditure
BEIS,UKRI - AHRC,13/09/2019,Research Grant Expenditure,Global Challenges Research Fund (GCRF),Queen's University Belfast GRANT,98573788,54309.16,Research Grant Expenditure
BEIS,UKRI - AHRC,13/09/2019,Research Grant Expenditure,Global Challenges Research Fund (GCRF),University of London,98573789,56105.55,Research Grant Expenditure
BEIS,UKRI - AHRC,13/09/2019,Research Grant Expenditure,Global Challenges Research Fund (GCRF),University of Birmingham GRANT,98573790,54665.80,Research Grant Expenditure
BEIS,UKRI - AHRC,13/09/2019,Research Grant Expenditure,Global Challenges Research Fund (GCRF),The Open University,98573791,53830.71,Research Grant Expenditure
BEIS,UKRI - AHRC,13/09/2019,Research Grant Expenditure,Global Challenges Research Fund (GCRF),University of Exeter,98573792,53641.44,Research Grant Expenditure
BEIS,UKRI - AHRC,13/09/2019,Research Grant Expenditure,Global Challenges Research Fund (GCRF),University of Leeds,98573793,52120.39,Research Grant Expenditure
BEIS,UKRI - AHRC,13/09/2019,Research Grant Expenditure,Global Challenges Research Fund (GCRF),UNIVERSITY OF ULSTER,98573794,48385.60,Research Grant Expenditure
BEIS,UKRI - AHRC,13/09/2019,Research Grant Expenditure,Global Challenges Research Fund (GCRF),University of Durham,98573795,54237.35,Research Grant Expenditure
BEIS,UKRI - AHRC,13/09/2019,Research Grant Expenditure,Global Challenges Research Fund (GCRF),University of Bath,98573796,50718.04,Research Grant Expenditure
BEIS,UKRI - AHRC,13/09/2019,Research Grant Expenditure,Follow-on Fund,University of Glasgow,98573797,80618.21,Research Grant Expenditure
BEIS,UKRI - AHRC,13/09/2019,Fellowships,Research Fellowships,Kingston University,98573884,14470.67,Fellowships
BEIS,UKRI - AHRC,13/09/2019,Fellowships,Research Fellowships,Keele University,98573885,28502.90,Fellowships
BEIS,UKRI - AHRC,13/09/2019,Fellowships,Research Fellowships,University of Edinburgh,98573886,17276.28,Fellowships
BEIS,UKRI - AHRC,13/09/2019,Fellowships,Research Fellowships,Cardiff University,98573887,29796.65,Fellowships
BEIS,UKRI - AHRC,13/09/2019,Fellowships,Research Fellowships,University of Sheffield,98573888,21554.78,Fellowships
BEIS,UKRI - AHRC,13/09/2019,Fellowships,Research Fellowships,University of Plymouth,98573889,21749.20,Fellowships
BEIS,UKRI - AHRC,13/09/2019,Fellowships,Research Fellowships,Northumbria University,98573890,18798.89,Fellowships
BEIS,UKRI - AHRC,13/09/2019,Fellowships,Research Fellowships,Nottingham Trent University,98573891,23616.09,Fellowships
BEIS,UKRI - AHRC,13/09/2019,Fellowships,Research Fellowships,University of Sussex,98573892,21855.60,Fellowships
BEIS,UKRI - AHRC,13/09/2019,Fellowships,Research Fellowships,University of Exeter,98573893,25577.30,Fellowships
BEIS,UKRI - AHRC,13/09/2019,Fellowships,Research Fellowships,University of Exeter,98573893,25577.30,Fellowships
BEIS,UKRI - AHRC,13/09/2019,Fellowships,Research Fellowships,University of Exeter,98573893,24870.86,Fellowships
BEIS,UKRI - AHRC,13/09/2019,Fellowships,Research Fellowships,University of Exeter,98573893,25577.30,Fellowships
BEIS,UKRI - AHRC,13/09/2019,Fellowships,Research Fellowships,University of Exeter,98573893,24870.86,Fellowships
BEIS,UKRI - AHRC,13/09/2019,Fellowships,Research Fellowships,University of Exeter,98573893,25577.30,Fellowships
BEIS,UKRI - AHRC,13/09/2019,Fellowships,Research Fellowships,University of Exeter,98573893,24870.86,Fellowships
BEIS,UKRI - AHRC,13/09/2019,Fellowships,Research Fellowships,University of Leicester,98573894,26464.76,Fellowships
BEIS,UKRI - AHRC,13/09/2019,Fellowships,Research Fellowships,Historic Royal Palaces,98573895,36132.01,Fellowships
BEIS,UKRI - AHRC,13/09/2019,Fellowships,Research Fellowships,Nottingham Trent University,98573896,33422.16,Fellowships
BEIS,UKRI - AHRC,13/09/2019,Fellowships,Research Fellowships,University of East Anglia,98573897,23309.50,Fellowships
BEIS,UKRI - AHRC,13/09/2019,Fellowships,Research Fellowships,University of Edinburgh,98573898,31555.37,Fellowships
BEIS,UKRI - AHRC,13/09/2019,Fellowships,Research Fellowships,University of Stirling,98573899,30663.34,Fellowships
BEIS,UKRI - AHRC,13/09/2019,Fellowships,Research Fellowships,University of Edinburgh,98573900,22391.62,Fellowships
BEIS,UKRI - AHRC,13/09/2019,Fellowships,Research Fellowships,University of Surrey,98573902,19569.52,Fellowships
BEIS,UKRI - AHRC,13/09/2019,Fellowships,Research Fellowships,University of Birmingham GRANT,98573903,25746.88,Fellowships
BEIS,UKRI - AHRC,13/09/2019,Fellowships,Research Fellowships,Loughborough University,98573904,26032.95,Fellowships
BEIS,UKRI - AHRC,13/09/2019,Fellowships,Research Fellowships,Queen Mary University of London,98573905,24861.25,Fellowships
BEIS,UKRI - AHRC,13/09/2019,Fellowships,Research Fellowships,Liverpool John Moores University,98573906,32544.68,Fellowships
BEIS,UKRI - AHRC,13/09/2019,Fellowships,Research Fellowships,University of Exeter,98573907,33638.24,Fellowships
BEIS,UKRI - AHRC,13/09/2019,Fellowships,Research Fellowships,Goldsmiths College University of London,98573908,22263.79,Fellowships
BEIS,UKRI - AHRC,13/09/2019,Fellowships,Research Fellowships,University of Bristol GRANT,98573909,35063.20,Fellowships
BEIS,UKRI - AHRC,13/09/2019,Fellowships,Research Fellowships,University of Bristol GRANT,98573910,41925.84,Fellowships
BEIS,UKRI - AHRC,13/09/2019,Fellowships,Research Fellowships,"Royal Holloway, University of London",98573911,30220.28,Fellowships
BEIS,UKRI - AHRC,13/09/2019,Fellowships,Research Fellowships,Bournemouth University GRANT,98573912,26444.03,Fellowships
BEIS,UKRI - AHRC,13/09/2019,Fellowships,Research Fellowships,University of Exeter,98573913,24175.04,Fellowships
BEIS,UKRI - AHRC,13/09/2019,Fellowships,Research Fellowships,University of Brighton,98573914,10721.35,Fellowships
BEIS,UKRI - AHRC,13/09/2019,Fellowships,Research Fellowships,University of Bristol GRANT,98573915,36492.08,Fellowships
BEIS,UKRI - AHRC,13/09/2019,Fellowships,Research Fellowships,University of Kent,98573916,30583.07,Fellowships
BEIS,UKRI - AHRC,13/09/2019,Fellowships,Research Fellowships,University of Newcastle Upon Tyne,98573917,36376.19,Fellowships
BEIS,UKRI - AHRC,13/09/2019,Fellowships,Research Fellowships,Goldsmiths College University of London,98573918,39077.76,Fellowships
BEIS,UKRI - AHRC,13/09/2019,Fellowships,NPIF Research Talent (RCUK Innovation Fellowships),Northumbria University,98573919,23804.54,Fellowships
BEIS,UKRI - AHRC,13/09/2019,Fellowships,NPIF Research Talent (RCUK Innovation Fellowships),University of the West of England,98573920,26746.21,Fellowships
BEIS,UKRI - AHRC,13/09/2019,Fellowships,NPIF Research Talent (RCUK Innovation Fellowships),University of Brighton,98573921,21692.44,Fellowships
BEIS,UKRI - AHRC,13/09/2019,Fellowships,Research Fellowships,Swansea University,98573922,27788.07,Fellowships
BEIS,UKRI - AHRC,13/09/2019,Fellowships,Research Fellowships,Swansea University,98573922,27788.07,Fellowships
BEIS,UKRI - AHRC,13/09/2019,Fellowships,Research Fellowships,University of Leicester,98573923,23673.33,Fellowships
BEIS,UKRI - AHRC,13/09/2019,Fellowships,Research Fellowships,Brunel University London,98573924,32373.76,Fellowships
BEIS,UKRI - AHRC,13/09/2019,Fellowships,Research Fellowships,Brunel University London,98573924,32373.76,Fellowships
BEIS,UKRI - AHRC,13/09/2019,Fellowships,NPIF Research Talent (RCUK Innovation Fellowships),University of Leicester,98573925,25172.30,Fellowships
BEIS,UKRI - AHRC,13/09/2019,Fellowships,NPIF Research Talent (RCUK Innovation Fellowships),Glasgow School of Art,98573926,25171.15,Fellowships
BEIS,UKRI - AHRC,13/09/2019,Fellowships,NPIF Research Talent (RCUK Innovation Fellowships),University of Sheffield,98573927,26010.70,Fellowships
BEIS,UKRI - AHRC,13/09/2019,Fellowships,NPIF Research Talent (RCUK Innovation Fellowships),University College London,98573928,24912.97,Fellowships
BEIS,UKRI - AHRC,13/09/2019,Fellowships,NPIF Research Talent (RCUK Innovation Fellowships),University of Glasgow,98573929,25187.72,Fellowships
BEIS,UKRI - AHRC,13/09/2019,Fellowships,NPIF Research Talent (RCUK Innovation Fellowships),University of Southampton GRANT,98573930,22997.27,Fellowships
BEIS,UKRI - AHRC,13/09/2019,Research Grant Expenditure,Research Grants,University of Cambridge,98574642,-2519.77,Research Grant Expenditure
BEIS,UKRI - AHRC,13/09/2019,Research Grant Expenditure,Research Grants,University of York,98574643,-1223.17,Research Grant Expenditure
BEIS,UKRI - AHRC,13/09/2019,Research Grant Expenditure,Research Grants,University of Edinburgh,98574644,46585.10,Research Grant Expenditure
BEIS,UKRI - AHRC,13/09/2019,Research Grant Expenditure,Research Grants,University of Glasgow,98574645,44396.67,Research Grant Expenditure
BEIS,UKRI - AHRC,13/09/2019,Research Grant Expenditure,Research Grants,"SOAS, University of London",98574646,34758.89,Research Grant Expenditure
BEIS,UKRI - AHRC,13/09/2019,Research Grant Expenditure,Research Grants,University of Lincoln,98574647,44220.80,Research Grant Expenditure
BEIS,UKRI - AHRC,13/09/2019,Research Grant Expenditure,Digital Transformations,University of Glasgow,98574648,45590.82,Research Grant Expenditure
BEIS,UKRI - AHRC,13/09/2019,Research Grant Expenditure,Research Grants,The British Museum,98574649,5659.65,Research Grant Expenditure
BEIS,UKRI - AHRC,13/09/2019,Research Grant Expenditure,Research Grants,University of Southampton GRANT,98574650,21808.69,Research Grant Expenditure
BEIS,UKRI - AHRC,13/09/2019,Research Grant Expenditure,Research Grants,The Open University,98574651,66258.04,Research Grant Expenditure
BEIS,UKRI - AHRC,13/09/2019,Research Grant Expenditure,RCUK Newton Programme,The British Library,98574652,53465.94,Research Grant Expenditure
BEIS,UKRI - AHRC,13/09/2019,Research Grant Expenditure,Care for the Future,Bath Spa University,98574653,4252.36,Research Grant Expenditure
BEIS,UKRI - AHRC,13/09/2019,Research Grant Expenditure,Networks & Workshops,University of Leicester,98574654,4362.50,Research Grant Expenditure
BEIS,UKRI - AHRC,13/09/2019,Research Grant Expenditure,Networks & Workshops,University of Leeds,98574655,239.25,Research Grant Expenditure
BEIS,UKRI - AHRC,13/09/2019,Research Grant Expenditure,Commissioned Research,University of Newcastle Upon Tyne,98574656,99843.31,Research Grant Expenditure
BEIS,UKRI - AHRC,13/09/2019,Research Grant Expenditure,Networks & Workshops,"SOAS, University of London",98574657,266.45,Research Grant Expenditure
BEIS,UKRI - AHRC,13/09/2019,Research Grant Expenditure,Research Grants,The University of Manchester,98574658,-136897.67,Research Grant Expenditure
BEIS,UKRI - AHRC,13/09/2019,Research Grant Expenditure,Networks & Workshops,National Museums of Scotland,98574659,4189.09,Research Grant Expenditure
BEIS,UKRI - AHRC,13/09/2019,Research Grant Expenditure,Networks & Workshops,University of York,98574660,2856.29,Research Grant Expenditure
BEIS,UKRI - AHRC,13/09/2019,Research Grant Expenditure,Global Challenges Research Fund (GCRF),University of Leeds,98574661,2994.78,Research Grant Expenditure
BEIS,UKRI - AHRC,13/09/2019,Research Grant Expenditure,Global Challenges Research Fund (GCRF),University of London,98574662,-2173.29,Research Grant Expenditure
BEIS,UKRI - AHRC,13/09/2019,Research Grant Expenditure,Networks & Workshops,University of Warwick,98574663,-2165.28,Research Grant Expenditure
BEIS,UKRI - AHRC,13/09/2019,Research Grant Expenditure,Networks & Workshops,University of Edinburgh,98574664,4951.18,Research Grant Expenditure
BEIS,UKRI - AHRC,13/09/2019,Research Grant Expenditure,Networks & Workshops,Aberystwyth University,98574665,4488.51,Research Grant Expenditure
BEIS,UKRI - AHRC,13/09/2019,Research Grant Expenditure,Research Grants,University of Leeds,98574666,11105.96,Research Grant Expenditure
BEIS,UKRI - AHRC,13/09/2019,Research Grant Expenditure,Follow-on Fund,Queen's University Belfast GRANT,98574667,-7030.12,Research Grant Expenditure
BEIS,UKRI - AHRC,13/09/2019,Research Grant Expenditure,Follow-on Fund,Goldsmiths College University of London,98574668,147326.91,Research Grant Expenditure
BEIS,UKRI - AHRC,13/09/2019,Research Grant Expenditure,Networks & Workshops,University of London,98574669,-2885.54,Research Grant Expenditure
BEIS,UKRI - AHRC,13/09/2019,Research Grant Expenditure,Research Grants,University of Kent,98574670,37510.80,Research Grant Expenditure
BEIS,UKRI - AHRC,13/09/2019,Research Grant Expenditure,Networks & Workshops,Lancaster University,98574671,644.75,Research Grant Expenditure
BEIS,UKRI - AHRC,13/09/2019,Research Grant Expenditure,Networks & Workshops,University of Winchester,98574672,861.30,Research Grant Expenditure
BEIS,UKRI - AHRC,13/09/2019,Research Grant Expenditure,Follow-on Fund,University of Liverpool,98574673,15546.34,Research Grant Expenditure
BEIS,UKRI - AHRC,13/09/2019,Research Grant Expenditure,Follow-on Fund,University of St Andrews,98574674,4766.40,Research Grant Expenditure
BEIS,UKRI - AHRC,13/09/2019,Research Grant Expenditure,Global Challenges Research Fund (GCRF),University of York,98574675,-18314.18,Research Grant Expenditure
BEIS,UKRI - AHRC,13/09/2019,Research Grant Expenditure,Global Challenges Research Fund (GCRF),University of Glasgow,98574676,-2588.69,Research Grant Expenditure
BEIS,UKRI - AHRC,13/09/2019,Research Grant Expenditure,Follow-on Fund,University of West London,98574677,10690.16,Research Grant Expenditure
BEIS,UKRI - AHRC,13/09/2019,Research Grant Expenditure,NPIF Research Talent (RCUK Innovation Fellowships),University of the West of England,98574678,-13351.93,Research Grant Expenditure
BEIS,UKRI - AHRC,13/09/2019,Research Grant Expenditure,Global Challenges Research Fund (GCRF),University of Glasgow,98574679,-1214.02,Research Grant Expenditure
BEIS,UKRI - AHRC,13/09/2019,Research Grant Expenditure,Creative Economy,University of Glasgow,98574680,-1754.18,Research Grant Expenditure
BEIS,UKRI - AHRC,13/09/2019,Research Grant Expenditure,NPIF Research Talent (RCUK Innovation Fellowships),University of Sheffield,98574681,1080.00,Research Grant Expenditure
BEIS,UKRI - AHRC,13/09/2019,Research Grant Expenditure,Networks & Workshops,University of the West of England,98574682,-1123.96,Research Grant Expenditure
BEIS,UKRI - AHRC,13/09/2019,Research Grant Expenditure,Care for the Future,Lancaster University,98574683,-60.49,Research Grant Expenditure
BEIS,UKRI - AHRC,13/09/2019,Research Grant Expenditure,Industrial Strategy Challenge Fund (ISCF) - Creative Clusters,"Royal Holloway, University of London",98574684,-48.43,Research Grant Expenditure
BEIS,UKRI - AHRC,13/09/2019,Research Grant Expenditure,Follow-on Fund,University of Oxford,98574685,20050.97,Research Grant Expenditure
BEIS,UKRI - AHRC,13/09/2019,Research Grant Expenditure,Networks & Workshops,University of Durham,98574686,-5047.76,Research Grant Expenditure
BEIS,UKRI - AHRC,13/09/2019,Research Grant Expenditure,Networks & Workshops,Historic Royal Palaces,98574687,7593.88,Research Grant Expenditure
BEIS,UKRI - AHRC,13/09/2019,Research Grant Expenditure,Follow-on Fund,Lancaster University,98574688,74782.48,Research Grant Expenditure
BEIS,UKRI - AHRC,13/09/2019,Research Grant Expenditure,Creative Economy,University of Surrey,98574689,-2276.05,Research Grant Expenditure
BEIS,UKRI - AHRC,13/09/2019,Research Grant Expenditure,Networks & Workshops,University of Newcastle Upon Tyne,98574690,-4090.96,Research Grant Expenditure
BEIS,UKRI - AHRC,13/09/2019,Research Grant Expenditure,International Other,Northumbria University,98574691,-2154.63,Research Grant Expenditure
BEIS,UKRI - AHRC,13/09/2019,Research Grant Expenditure,International Other,Northumbria University,98574692,-2801.37,Research Grant Expenditure
BEIS,UKRI - AHRC,13/09/2019,Fellowships,Research Fellowships,University of Kent,98574734,22076.56,Fellowships
BEIS,UKRI - AHRC,13/09/2019,Fellowships,Research Fellowships,University of Nottingham,98574735,15121.83,Fellowships
BEIS,UKRI - AHRC,13/09/2019,Fellowships,Research Fellowships,University of East Anglia,98574736,32901.48,Fellowships
BEIS,UKRI - AHRC,13/09/2019,Fellowships,Research Fellowships,University of Sussex,98574737,31356.94,Fellowships
BEIS,UKRI - AHRC,13/09/2019,Fellowships,Research Fellowships,Liverpool John Moores University,98574738,16175.47,Fellowships
BEIS,UKRI - AHRC,13/09/2019,Fellowships,Research Fellowships,University of Nottingham,98574739,10992.66,Fellowships
BEIS,UKRI - AHRC,13/09/2019,Fellowships,Research Fellowships,"SOAS, University of London",98574740,18797.83,Fellowships
BEIS,UKRI - AHRC,13/09/2019,Fellowships,Research Fellowships,University of Durham,98574741,18404.49,Fellowships
BEIS,UKRI - AHRC,13/09/2019,Fellowships,NPIF Research Talent (RCUK Innovation Fellowships),Birmingham City University,98574931,22868.53,Fellowships
BEIS,UKRI - AHRC,13/09/2019,Fellowships,NPIF Research Talent (RCUK Innovation Fellowships),University of Bristol GRANT,98574932,23307.06,Fellowships
BEIS,UKRI - AHRC,13/09/2019,Fellowships,NPIF Research Talent (RCUK Innovation Fellowships),University of Edinburgh,98574933,28248.69,Fellowships
BEIS,UKRI - AHRC,13/09/2019,Fellowships,Research Fellowships,University of Leeds,98574934,30744.63,Fellowships
BEIS,UKRI - AHRC,13/09/2019,Other Pension Deductions,Balance Sheet,Standard Life Assurance Ltd,98574963,100.00,Other Pension Deductions
BEIS,UKRI - AHRC,13/09/2019,Partnership Pension Deductions,Balance Sheet,Standard Life Assurance Ltd,98574964,4.29,Partnership Pension Deductions
BEIS,UKRI - AHRC,13/09/2019,Union Deductions,Balance Sheet,PCS Union,98574966,96.60,Union Deductions
BEIS,UKRI - AHRC,13/09/2019,Ees Pension Deductions - JSS,Balance Sheet,RCPS Pension,98574967,10139.31,Ees Pension Deductions - JSS
BEIS,UKRI - AHRC,13/09/2019,Ers Pension Deductions - JSS,Balance Sheet,RCPS Pension,98574968,44403.50,Ers Pension Deductions - JSS
BEIS,UKRI - AHRC,13/09/2019,Partnership Pension Deductions,Balance Sheet,Scottish Widows,98574969,369.68,Partnership Pension Deductions
BEIS,UKRI - AHRC,13/09/2019,Ers Pension Deductions - JSS,Balance Sheet,Cabinet Office RM Shared Services,98574970,12.83,Ers Pension Deductions - JSS
BEIS,UKRI - AHRC,13/09/2019,Ees Pension Deductions - MyCSP,Balance Sheet,Cabinet Office RM Shared Services,98574971,4102.90,Ees Pension Deductions - MyCSP
BEIS,UKRI - AHRC,13/09/2019,Ers Pension Deductions - MyCSP,Balance Sheet,Cabinet Office RM Shared Services,98574972,21164.33,Ers Pension Deductions - MyCSP
BEIS,UKRI - AHRC,13/09/2019,Ees Pension Deductions - MRC,Balance Sheet,UKRI - Medical Research Council,98574973,341.88,Ees Pension Deductions - MRC
BEIS,UKRI - AHRC,13/09/2019,Ers Pension Deductions - MRC,Balance Sheet,UKRI - Medical Research Council,98574974,788.94,Ers Pension Deductions - MRC
BEIS,UKRI - AHRC,13/09/2019,Contract Staff,PSU JRS,Alexander Mann Solutions Ltd,98582763,3423.12,Contract Staff
BEIS,UKRI - AHRC,16/09/2019,T&S UK - Other Charges,Operations,Unspecified,98583433,131.25,T&S UK - Other Charges
BEIS,UKRI - AHRC,16/09/2019,Hospitality,"History, Heritage, Languages and Literature",University of Leicester,98584345,-4539.90,Hospitality
BEIS,UKRI - AHRC,17/09/2019,Recharges JRS,Corporate Services,UKRI - Engineering & Physical Sciences Research Council,98451472,2697.81,Recharges JRS
BEIS,UKRI - AHRC,17/09/2019,Recharges JRS,Corporate Services,UKRI - Engineering & Physical Sciences Research Council,98451472,8179.44,Recharges JRS
BEIS,UKRI - AHRC,17/09/2019,Other Programme Costs,RCUK Other,UKRI - Engineering & Physical Sciences Research Council,98577712,234607.77,Other Programme Costs
BEIS,UKRI - AHRC,17/09/2019,Research Grant Expenditure,NPIF Research Talent (RCUK Innovation Fellowships),UKRI - Engineering & Physical Sciences Research Council,98582345,13937.96,Research Grant Expenditure
BEIS,UKRI - AHRC,17/09/2019,Research Grant Expenditure,NPIF Research Talent (RCUK Innovation Fellowships),UKRI - Engineering & Physical Sciences Research Council,98582346,7063.36,Research Grant Expenditure
BEIS,UKRI - AHRC,17/09/2019,Research Grant Expenditure,NPIF Research Talent (RCUK Innovation Fellowships),UKRI - Engineering & Physical Sciences Research Council,98582354,12445.06,Research Grant Expenditure
BEIS,UKRI - AHRC,17/09/2019,Research Grant Expenditure,NPIF Research Talent (RCUK Innovation Fellowships),UKRI - Engineering & Physical Sciences Research Council,98582356,21690.65,Research Grant Expenditure
BEIS,UKRI - AHRC,17/09/2019,Research Grant Expenditure,Digital Economy,UKRI - Engineering & Physical Sciences Research Council,98582370,25804.83,Research Grant Expenditure
BEIS,UKRI - AHRC,17/09/2019,Research Grant Expenditure,Digital Economy,UKRI - Engineering & Physical Sciences Research Council,98582371,25681.85,Research Grant Expenditure
BEIS,UKRI - AHRC,17/09/2019,Research Grant Expenditure,Digital Economy,UKRI - Engineering & Physical Sciences Research Council,98582412,6253.79,Research Grant Expenditure
BEIS,UKRI - AHRC,17/09/2019,Research Grant Expenditure,Digital Economy,UKRI - Engineering & Physical Sciences Research Council,98582413,21236.34,Research Grant Expenditure
BEIS,UKRI - AHRC,17/09/2019,Research Grant Expenditure,Digital Economy,UKRI - Engineering & Physical Sciences Research Council,98582415,10570.27,Research Grant Expenditure
BEIS,UKRI - AHRC,17/09/2019,Research Grant Expenditure,Digital Economy,UKRI - Engineering & Physical Sciences Research Council,98582416,17620.49,Research Grant Expenditure
BEIS,UKRI - AHRC,17/09/2019,Contract Staff,PSU Project Office,Alexander Mann Solutions Ltd,98582775,2236.46,Contract Staff
BEIS,UKRI - AHRC,17/09/2019,Research Grant Expenditure,RCUK Global Challenges Research Fund (RCUK GCRF),UKRI - Natural Environment Research Council,98583246,17334.50,Research Grant Expenditure
BEIS,UKRI - AHRC,17/09/2019,Research Grant Expenditure,RCUK Global Challenges Research Fund (RCUK GCRF),UKRI - Natural Environment Research Council,98583256,225687.17,Research Grant Expenditure
BEIS,UKRI - AHRC,17/09/2019,Research Grant Expenditure,RCUK Global Challenges Research Fund (RCUK GCRF),UKRI - Natural Environment Research Council,98583289,178913.97,Research Grant Expenditure
BEIS,UKRI - AHRC,17/09/2019,T&S UK - Other Charges,Public and Stakeholder Engagement,Unspecified,98584512,16.00,T&S UK - Other Charges
BEIS,UKRI - AHRC,17/09/2019,T&S UK - Public Transport,Public and Stakeholder Engagement,Unspecified,98584512,2.50,T&S UK - Public Transport
BEIS,UKRI - AHRC,17/09/2019,T&S UK - Public Transport,Public and Stakeholder Engagement,Unspecified,98584512,82.20,T&S UK - Public Transport
BEIS,UKRI - AHRC,17/09/2019,T&S UK - Subsistence,Public and Stakeholder Engagement,Unspecified,98584512,15.81,T&S UK - Subsistence
BEIS,UKRI - AHRC,17/09/2019,T&S UK - Subsistence,Public and Stakeholder Engagement,Unspecified,98584512,15.29,T&S UK - Subsistence
BEIS,UKRI - AHRC,17/09/2019,T&S UK - Subsistence,Public and Stakeholder Engagement,Unspecified,98584512,17.64,T&S UK - Subsistence
BEIS,UKRI - AHRC,17/09/2019,T&S UK - Subsistence,Public and Stakeholder Engagement,Unspecified,98584512,12.88,T&S UK - Subsistence
BEIS,UKRI - AHRC,17/09/2019,T&S UK - Subsistence,Public and Stakeholder Engagement,Unspecified,98584512,20.00,T&S UK - Subsistence
BEIS,UKRI - AHRC,17/09/2019,UK - Professional Memberships & Subscriptions,Public and Stakeholder Engagement,Unspecified,98584512,120.00,UK - Professional Memberships & Subscriptions
BEIS,UKRI - AHRC,18/09/2019,Other Income,Finance,Unspecified,98581055,250.36,Other Income
BEIS,UKRI - AHRC,19/09/2019,T&S UK - Mileage,PSU Project Office,Unspecified,98541187,38.70,T&S UK - Mileage
BEIS,UKRI - AHRC,19/09/2019,T&S UK - Parking Tolls Congestion Charges,PSU Project Office,Unspecified,98541187,8.20,T&S UK - Parking Tolls Congestion Charges
BEIS,UKRI - AHRC,19/09/2019,Nursery Deductions,Balance Sheet,EDENRED (UK GROUP) LTD,98588154,2268.73,Nursery Deductions
BEIS,UKRI - AHRC,19/09/2019,Financial Services,Corporate Services,CCI Credit Management Ltd,98588195,1.32,Financial Services
BEIS,UKRI - AHRC,19/09/2019,T&S UK - Other Charges,Public and Stakeholder Engagement,Unspecified,98588318,16.00,T&S UK - Other Charges
BEIS,UKRI - AHRC,19/09/2019,T&S UK - Public Transport,Public and Stakeholder Engagement,Unspecified,98588318,2.50,T&S UK - Public Transport
BEIS,UKRI - AHRC,19/09/2019,T&S UK - Public Transport,Public and Stakeholder Engagement,Unspecified,98588318,82.20,T&S UK - Public Transport
BEIS,UKRI - AHRC,19/09/2019,T&S UK - Subsistence,Public and Stakeholder Engagement,Unspecified,98588318,15.81,T&S UK - Subsistence
BEIS,UKRI - AHRC,19/09/2019,T&S UK - Subsistence,Public and Stakeholder Engagement,Unspecified,98588318,15.29,T&S UK - Subsistence
BEIS,UKRI - AHRC,19/09/2019,T&S UK - Subsistence,Public and Stakeholder Engagement,Unspecified,98588318,17.64,T&S UK - Subsistence
BEIS,UKRI - AHRC,19/09/2019,T&S UK - Subsistence,Public and Stakeholder Engagement,Unspecified,98588318,12.88,T&S UK - Subsistence
BEIS,UKRI - AHRC,19/09/2019,T&S UK - Subsistence,Public and Stakeholder Engagement,Unspecified,98588318,20.00,T&S UK - Subsistence
BEIS,UKRI - AHRC,19/09/2019,UK - Professional Memberships & Subscriptions,Public and Stakeholder Engagement,Unspecified,98588318,120.00,UK - Professional Memberships & Subscriptions
BEIS,UKRI - AHRC,20/09/2019,Corporate Events,SMT,Calder Conference Ltd,98584310,2560.00,Corporate Events
BEIS,UKRI - AHRC,20/09/2019,T&S UK - Other Charges,GCRF - Programme Delivery,Unspecified,98586917,3.10,T&S UK - Other Charges
BEIS,UKRI - AHRC,20/09/2019,T&S UK - Subsistence,GCRF - Programme Delivery,Unspecified,98586917,6.60,T&S UK - Subsistence
BEIS,UKRI - AHRC,20/09/2019,T&S UK - Public Transport,Public and Stakeholder Engagement,Unspecified,98586918,7.68,T&S UK - Public Transport
BEIS,UKRI - AHRC,20/09/2019,T&S UK - Subsistence,Public and Stakeholder Engagement,Unspecified,98586918,3.50,T&S UK - Subsistence
BEIS,UKRI - AHRC,20/09/2019,T&S UK - Subsistence,Public and Stakeholder Engagement,Unspecified,98586918,10.94,T&S UK - Subsistence
BEIS,UKRI - AHRC,20/09/2019,T&S UK - Subsistence,Public and Stakeholder Engagement,Unspecified,98586918,3.99,T&S UK - Subsistence
BEIS,UKRI - AHRC,20/09/2019,Conferences & Seminars,Secretariat,Nesta Enterprises Ltd,98588444,720.00,Conferences & Seminars
BEIS,UKRI - AHRC,23/09/2019,Recruitment Costs,Corporate Services,Warwick University Services Ltd,98586575,250.00,Recruitment Costs
BEIS,UKRI - AHRC,23/09/2019,Recruitment Costs,Corporate Services,Warwick University Services Ltd,98586578,250.00,Recruitment Costs
BEIS,UKRI - AHRC,23/09/2019,Contract Staff,PSU Project Office,Alexander Mann Solutions Ltd,98588768,1677.35,Contract Staff
BEIS,UKRI - AHRC,23/09/2019,Conferences & Seminars,Secretariat,Culture and Sport Glasgow and Culture and Sport (Trading) CIC T/A Glasgow Life,98589182,5773.20,Conferences & Seminars
BEIS,UKRI - AHRC,24/09/2019,Provision for Early Retirement Liability,Corporate Services,RCPS Pension,98565834,872.03,Provision for Early Retirement Liability
BEIS,UKRI - AHRC,24/09/2019,Research Grant Expenditure,RCUK Global Challenges Research Fund (RCUK GCRF),UKRI - Natural Environment Research Council,98583294,86913.44,Research Grant Expenditure
BEIS,UKRI - AHRC,24/09/2019,Research Grant Expenditure,Global Uncertainties Programme,UKRI - Economic & Social Research Council,98584727,6125.10,Research Grant Expenditure
BEIS,UKRI - AHRC,24/09/2019,Research Grant Expenditure,Global Challenges Research Fund (GCRF),UKRI - Economic & Social Research Council,98584728,8577.15,Research Grant Expenditure
BEIS,UKRI - AHRC,24/09/2019,Research Grant Expenditure,Global Challenges Research Fund (GCRF),UKRI - Economic & Social Research Council,98584734,15630.83,Research Grant Expenditure
BEIS,UKRI - AHRC,24/09/2019,Research Grant Expenditure,Cross Council Responsive Mode Awards,UKRI - Economic & Social Research Council,98584736,12601.65,Research Grant Expenditure
BEIS,UKRI - AHRC,24/09/2019,Research Grant Expenditure,Anti-microbial Resistance (AMR),UKRI - Economic & Social Research Council,98584738,22426.34,Research Grant Expenditure
BEIS,UKRI - AHRC,24/09/2019,Research Grant Expenditure,Commissioned Research,UKRI - Economic & Social Research Council,98584741,26474.50,Research Grant Expenditure
BEIS,UKRI - AHRC,24/09/2019,Research Grant Expenditure,Cross Council Responsive Mode Awards,UKRI - Economic & Social Research Council,98584742,14201.08,Research Grant Expenditure
BEIS,UKRI - AHRC,24/09/2019,Research Grant Expenditure,RCUK Global Challenges Research Fund (RCUK GCRF),UKRI - Economic & Social Research Council,98584751,36744.00,Research Grant Expenditure
BEIS,UKRI - AHRC,24/09/2019,Research Grant Expenditure,RCUK Global Challenges Research Fund (RCUK GCRF),UKRI - Economic & Social Research Council,98584763,51129.90,Research Grant Expenditure
BEIS,UKRI - AHRC,24/09/2019,Research Grant Expenditure,RCUK Global Challenges Research Fund (RCUK GCRF),UKRI - Economic & Social Research Council,98584767,21842.65,Research Grant Expenditure
BEIS,UKRI - AHRC,24/09/2019,Research Grant Expenditure,RCUK Global Challenges Research Fund (RCUK GCRF),UKRI - Economic & Social Research Council,98584771,18896.35,Research Grant Expenditure
BEIS,UKRI - AHRC,24/09/2019,Research Grant Expenditure,RCUK Global Challenges Research Fund (RCUK GCRF),UKRI - Economic & Social Research Council,98584774,21828.10,Research Grant Expenditure
BEIS,UKRI - AHRC,24/09/2019,Research Grant Expenditure,Urban Living,UKRI - Economic & Social Research Council,98584779,2796.34,Research Grant Expenditure
BEIS,UKRI - AHRC,24/09/2019,Research Grant Expenditure,Urban Living,UKRI - Economic & Social Research Council,98584782,5066.93,Research Grant Expenditure
BEIS,UKRI - AHRC,24/09/2019,Research Grant Expenditure,Urban Living,UKRI - Economic & Social Research Council,98584785,3363.10,Research Grant Expenditure
BEIS,UKRI - AHRC,24/09/2019,Research Grant Expenditure,Urban Living,UKRI - Economic & Social Research Council,98584788,4561.73,Research Grant Expenditure
BEIS,UKRI - AHRC,24/09/2019,Research Grant Expenditure,Commissioned Research,UKRI - Economic & Social Research Council,98584794,8959.66,Research Grant Expenditure
BEIS,UKRI - AHRC,24/09/2019,Research Grant Expenditure,Commissioned Research,UKRI - Economic & Social Research Council,98584819,6153.64,Research Grant Expenditure
BEIS,UKRI - AHRC,24/09/2019,Research Grant Expenditure,Commissioned Research,UKRI - Economic & Social Research Council,98584843,7295.78,Research Grant Expenditure
BEIS,UKRI - AHRC,24/09/2019,Research Grant Expenditure,Commissioned Research,UKRI - Economic & Social Research Council,98584851,6727.53,Research Grant Expenditure
BEIS,UKRI - AHRC,24/09/2019,Research Grant Expenditure,Commissioned Research,UKRI - Economic & Social Research Council,98584861,8010.77,Research Grant Expenditure
BEIS,UKRI - AHRC,24/09/2019,Research Grant Expenditure,Cross Council Responsive Mode Awards,UKRI - Economic & Social Research Council,98585329,29262.66,Research Grant Expenditure
BEIS,UKRI - AHRC,24/09/2019,Research Grant Expenditure,Commissioned Research,UKRI - Economic & Social Research Council,98585367,6741.89,Research Grant Expenditure
BEIS,UKRI - AHRC,24/09/2019,Research Grant Expenditure,RCUK Global Challenges Research Fund (RCUK GCRF),UKRI - Economic & Social Research Council,98585370,47131.10,Research Grant Expenditure
BEIS,UKRI - AHRC,24/09/2019,Research Grant Expenditure,RCUK Global Challenges Research Fund (RCUK GCRF),UKRI - Economic & Social Research Council,98585374,38826.50,Research Grant Expenditure
BEIS,UKRI - AHRC,24/09/2019,Research Grant Expenditure,Commissioned Research,UKRI - Economic & Social Research Council,98585375,6728.90,Research Grant Expenditure
BEIS,UKRI - AHRC,24/09/2019,Research Grant Expenditure,Commissioned Research,UKRI - Economic & Social Research Council,98585382,1201.35,Research Grant Expenditure
BEIS,UKRI - AHRC,24/09/2019,Research Grant Expenditure,RCUK Global Challenges Research Fund (RCUK GCRF),UKRI - Economic & Social Research Council,98585406,46571.80,Research Grant Expenditure
BEIS,UKRI - AHRC,24/09/2019,Research Grant Expenditure,Urban Living,UKRI - Economic & Social Research Council,98585408,3556.22,Research Grant Expenditure
BEIS,UKRI - AHRC,24/09/2019,Research Grant Expenditure,RCUK Global Challenges Research Fund (RCUK GCRF),UKRI - Economic & Social Research Council,98585416,369297.55,Research Grant Expenditure
BEIS,UKRI - AHRC,24/09/2019,Research Grant Expenditure,Urban Living,UKRI - Economic & Social Research Council,98585417,2518.36,Research Grant Expenditure
BEIS,UKRI - AHRC,24/09/2019,Research Grant Expenditure,Urban Living,UKRI - Economic & Social Research Council,98585451,7274.73,Research Grant Expenditure
BEIS,UKRI - AHRC,24/09/2019,Research Grant Expenditure,RCUK Global Challenges Research Fund (RCUK GCRF),UKRI - Economic & Social Research Council,98585456,182346.00,Research Grant Expenditure
BEIS,UKRI - AHRC,24/09/2019,Research Grant Expenditure,Urban Living,UKRI - Economic & Social Research Council,98585458,7169.00,Research Grant Expenditure
BEIS,UKRI - AHRC,24/09/2019,Research Grant Expenditure,RCUK Global Challenges Research Fund (RCUK GCRF),UKRI - Economic & Social Research Council,98585461,89708.76,Research Grant Expenditure
BEIS,UKRI - AHRC,24/09/2019,Research Grant Expenditure,Urban Living,UKRI - Economic & Social Research Council,98585470,2937.97,Research Grant Expenditure
BEIS,UKRI - AHRC,24/09/2019,Fellowships,Public Policy,UKRI - Economic & Social Research Council,98585475,7150.31,Fellowships
BEIS,UKRI - AHRC,24/09/2019,Fellowships,Public Policy,UKRI - Economic & Social Research Council,98585476,8503.88,Fellowships
BEIS,UKRI - AHRC,24/09/2019,Fellowships,Public Policy,UKRI - Economic & Social Research Council,98585477,10059.12,Fellowships
BEIS,UKRI - AHRC,24/09/2019,Research Grant Expenditure,Digital Transformations,UKRI - Economic & Social Research Council,98585479,6321.46,Research Grant Expenditure
BEIS,UKRI - AHRC,24/09/2019,Fellowships,Public Policy,UKRI - Economic & Social Research Council,98585480,7765.04,Fellowships
BEIS,UKRI - AHRC,24/09/2019,Research Grant Expenditure,Urban Living,UKRI - Economic & Social Research Council,98585481,7548.36,Research Grant Expenditure
BEIS,UKRI - AHRC,24/09/2019,Research Grant Expenditure,Digital Transformations,UKRI - Economic & Social Research Council,98585483,5306.54,Research Grant Expenditure
BEIS,UKRI - AHRC,24/09/2019,Research Grant Expenditure,Digital Transformations,UKRI - Economic & Social Research Council,98585485,5081.33,Research Grant Expenditure
BEIS,UKRI - AHRC,24/09/2019,Research Grant Expenditure,Digital Transformations,UKRI - Economic & Social Research Council,98585490,5588.32,Research Grant Expenditure
BEIS,UKRI - AHRC,24/09/2019,Research Grant Expenditure,Urban Living,UKRI - Economic & Social Research Council,98585491,6299.70,Research Grant Expenditure
BEIS,UKRI - AHRC,24/09/2019,Research Grant Expenditure,Cross Council Responsive Mode Awards,UKRI - Economic & Social Research Council,98585508,15890.03,Research Grant Expenditure
BEIS,UKRI - AHRC,24/09/2019,Research Grant Expenditure,Global Challenges Research Fund (GCRF),UKRI - Economic & Social Research Council,98585515,13933.95,Research Grant Expenditure
BEIS,UKRI - AHRC,24/09/2019,Research Grant Expenditure,Global Challenges Research Fund (GCRF),UKRI - Economic & Social Research Council,98585534,35041.02,Research Grant Expenditure
BEIS,UKRI - AHRC,24/09/2019,Research Grant Expenditure,Global Challenges Research Fund (GCRF),UKRI - Economic & Social Research Council,98585537,16559.90,Research Grant Expenditure
BEIS,UKRI - AHRC,24/09/2019,Research Grant Expenditure,Global Challenges Research Fund (GCRF),UKRI - Economic & Social Research Council,98585542,6370.06,Research Grant Expenditure
BEIS,UKRI - AHRC,24/09/2019,Research Grant Expenditure,Global Challenges Research Fund (GCRF),UKRI - Economic & Social Research Council,98585544,17232.61,Research Grant Expenditure
BEIS,UKRI - AHRC,24/09/2019,Research Grant Expenditure,Urban Living,UKRI - Economic & Social Research Council,98585547,10256.62,Research Grant Expenditure
BEIS,UKRI - AHRC,24/09/2019,Research Grant Expenditure,Urban Living,UKRI - Economic & Social Research Council,98585550,3953.66,Research Grant Expenditure
BEIS,UKRI - AHRC,24/09/2019,Contract Staff,PSU JRS,Alexander Mann Solutions Ltd,98588775,1369.25,Contract Staff
BEIS,UKRI - AHRC,24/09/2019,Non-staff travel and subsistance,Fund for International Collaboration (FIC),Non Employee Expenses Supplier,98589632,1127.32,Non-staff travel and subsistance
BEIS,UKRI - AHRC,24/09/2019,Non-staff travel and subsistance,SMT,Non Employee Expenses Supplier,98589633,77.10,Non-staff travel and subsistance
BEIS,UKRI - AHRC,24/09/2019,Non-staff travel and subsistance,SMT,Non Employee Expenses Supplier,98589634,245.40,Non-staff travel and subsistance
BEIS,UKRI - AHRC,24/09/2019,Non-staff travel and subsistance,SMT,Non Employee Expenses Supplier,98589635,371.95,Non-staff travel and subsistance
BEIS,UKRI - AHRC,24/09/2019,Non-staff travel and subsistance,SMT,Non Employee Expenses Supplier,98589636,1987.33,Non-staff travel and subsistance
BEIS,UKRI - AHRC,24/09/2019,Recruitment Costs,Corporate Services,Agenda Resource Management Ltd,98589956,157.81,Recruitment Costs
BEIS,UKRI - AHRC,24/09/2019,Recruitment Costs,Corporate Services,Agenda Resource Management Ltd,98589956,96.82,Recruitment Costs
BEIS,UKRI - AHRC,24/09/2019,Legal & Professional Services,Industrial Strategy Challenge Fund (ISCF) - Creative Clusters,Free Ice Cream Ltd,98590115,2694.00,Legal & Professional Services
BEIS,UKRI - AHRC,24/09/2019,T&S UK - Other Charges,HERA JRP Project,Unspecified,98590207,7.97,T&S UK - Other Charges
BEIS,UKRI - AHRC,24/09/2019,T&S UK - Public Transport,HERA JRP Project,Unspecified,98590207,20.02,T&S UK - Public Transport
BEIS,UKRI - AHRC,24/09/2019,T&S UK - Subsistence,HERA JRP Project,Unspecified,98590207,21.30,T&S UK - Subsistence
BEIS,UKRI - AHRC,24/09/2019,T&S UK - Subsistence,HERA JRP Project,Unspecified,98590207,25.29,T&S UK - Subsistence
BEIS,UKRI - AHRC,24/09/2019,T&S UK - Subsistence,HERA JRP Project,Unspecified,98590207,15.00,T&S UK - Subsistence
BEIS,UKRI - AHRC,25/09/2019,Voluntary Deductions,Balance Sheet,Swindon Office Sports and Social Club,98574965,38.00,Voluntary Deductions
BEIS,UKRI - AHRC,25/09/2019,T&S UK - Mileage,International Partnership and Engagement,Unspecified,98582297,60.75,T&S UK - Mileage
BEIS,UKRI - AHRC,25/09/2019,T&S UK - Parking Tolls Congestion Charges,International Partnership and Engagement,Unspecified,98582297,71.60,T&S UK - Parking Tolls Congestion Charges
BEIS,UKRI - AHRC,25/09/2019,T&S UK - Public Transport,International Partnership and Engagement,Unspecified,98582297,7.50,T&S UK - Public Transport
BEIS,UKRI - AHRC,25/09/2019,T&S UK - Subsistence,International Partnership and Engagement,Unspecified,98582297,3.80,T&S UK - Subsistence
BEIS,UKRI - AHRC,25/09/2019,T&S UK - Subsistence,International Partnership and Engagement,Unspecified,98582297,4.60,T&S UK - Subsistence
BEIS,UKRI - AHRC,25/09/2019,T&S UK - Subsistence,International Partnership and Engagement,Unspecified,98582297,15.00,T&S UK - Subsistence
BEIS,UKRI - AHRC,25/09/2019,T&S Overseas - Mileage,International Partnership and Engagement,Unspecified,98582298,60.75,T&S Overseas - Mileage
BEIS,UKRI - AHRC,25/09/2019,T&S Overseas - Parking Tolls Congestion Charges,International Partnership and Engagement,Unspecified,98582298,69.50,T&S Overseas - Parking Tolls Congestion Charges
BEIS,UKRI - AHRC,25/09/2019,T&S Overseas - Subsistence,International Partnership and Engagement,Unspecified,98582298,15.00,T&S Overseas - Subsistence
BEIS,UKRI - AHRC,25/09/2019,T&S Overseas - Subsistence,International Partnership and Engagement,Unspecified,98582298,3.67,T&S Overseas - Subsistence
BEIS,UKRI - AHRC,25/09/2019,T&S Overseas - Subsistence,International Partnership and Engagement,Unspecified,98582298,38.45,T&S Overseas - Subsistence
BEIS,UKRI - AHRC,25/09/2019,T&S Overseas - Subsistence,International Partnership and Engagement,Unspecified,98582298,11.35,T&S Overseas - Subsistence
BEIS,UKRI - AHRC,26/09/2019,Conferences & Seminars,SMT,Westminster Higher Education Forum,98591383,276.00,Conferences & Seminars
BEIS,UKRI - AHRC,26/09/2019,Corporate Events,SMT,Westminster Higher Education Forum,98591385,276.00,Corporate Events
BEIS,UKRI - AHRC,26/09/2019,Conferences & Seminars,Public and Stakeholder Engagement,The Hospital Group Ltd T/A H Club London,98591397,1000.00,Conferences & Seminars
BEIS,UKRI - AHRC,26/09/2019,T&S UK - Public Transport,Fund for International Collaboration,Unspecified,98592131,58.62,T&S UK - Public Transport
BEIS,UKRI - AHRC,26/09/2019,T&S UK - Public Transport,Fund for International Collaboration,Unspecified,98592131,4.00,T&S UK - Public Transport
BEIS,UKRI - AHRC,26/09/2019,T&S UK - Subsistence,Fund for International Collaboration,Unspecified,98592131,5.10,T&S UK - Subsistence
BEIS,UKRI - AHRC,26/09/2019,T&S UK - Subsistence,Fund for International Collaboration,Unspecified,98592131,20.00,T&S UK - Subsistence
BEIS,UKRI - AHRC,26/09/2019,T&S UK - Mileage,Public and Stakeholder Engagement,Unspecified,98592132,99.90,T&S UK - Mileage
BEIS,UKRI - AHRC,26/09/2019,T&S UK - Other Charges,Public and Stakeholder Engagement,Unspecified,98592132,42.49,T&S UK - Other Charges
BEIS,UKRI - AHRC,26/09/2019,T&S UK - Public Transport,Public and Stakeholder Engagement,Unspecified,98592132,13.30,T&S UK - Public Transport
BEIS,UKRI - AHRC,27/09/2019,Recruitment Costs,Corporate Services,Agenda Resource Management Ltd,98591431,155.91,Recruitment Costs
BEIS,UKRI - AHRC,27/09/2019,Hospitality,Operations,The University of Manchester,98591744,418.50,Hospitality
BEIS,UKRI - AHRC,27/09/2019,Hospitality,Operations,The University of Manchester,98591744,-0.31,Hospitality
BEIS,UKRI - AHRC,27/09/2019,Hospitality,Operations,The University of Manchester,98591744,-0.06,Hospitality
BEIS,UKRI - AHRC,27/09/2019,Hospitality,Operations,The University of Manchester,98591744,116.40,Hospitality
BEIS,UKRI - AHRC,27/09/2019,T&S UK - Subsistence,SMT,Unspecified,98592505,14.90,T&S UK - Subsistence
BEIS,UKRI - AHRC,27/09/2019,T&S UK - Subsistence,SMT,Unspecified,98592505,5.00,T&S UK - Subsistence
BEIS,UKRI - AHRC,27/09/2019,T&S UK - Subsistence,SMT,Unspecified,98592505,9.00,T&S UK - Subsistence
BEIS,UKRI - AHRC,30/09/2019,T&S UK - Other Charges,"History, Heritage, Languages and Literature",Unspecified,98593484,5.10,T&S UK - Other Charges
BEIS,UKRI - AHRC,30/09/2019,T&S UK - Parking Tolls Congestion Charges,"History, Heritage, Languages and Literature",Unspecified,98593484,6.60,T&S UK - Parking Tolls Congestion Charges
BEIS,UKRI - AHRC,30/09/2019,T&S UK - Subsistence,"History, Heritage, Languages and Literature",Unspecified,98593484,14.75,T&S UK - Subsistence
BEIS,UKRI - AHRC,30/09/2019,T&S UK - Subsistence,"History, Heritage, Languages and Literature",Unspecified,98593484,21.07,T&S UK - Subsistence
BEIS,UKRI - AHRC,30/09/2019,T&S UK - Subsistence,"History, Heritage, Languages and Literature",Unspecified,98593484,5.00,T&S UK - Subsistence
BEIS,UKRI - BBSRC,02/09/2019,T&S UK - Public Transport,Science Group,Unspecified,98567765,6.00,T&S UK - Public Transport
BEIS,UKRI - BBSRC,02/09/2019,T&S UK - Subsistence,Science Group,Unspecified,98567765,6.99,T&S UK - Subsistence
BEIS,UKRI - BBSRC,02/09/2019,T&S UK - Public Transport,Science Group,Unspecified,98567766,26.60,T&S UK - Public Transport
BEIS,UKRI - BBSRC,02/09/2019,T&S UK - Subsistence,Science Group,Unspecified,98567766,7.95,T&S UK - Subsistence
BEIS,UKRI - BBSRC,03/09/2019,Compensation Payments,FG - Accounts & Business Planning,RCPS Pension,98565836,3820.53,Compensation Payments
BEIS,UKRI - BBSRC,03/09/2019,Catering Contracts,JBOS - Restaurant,Aramark Ltd,98567849,-19842.46,Catering Contracts
BEIS,UKRI - BBSRC,03/09/2019,Catering Contracts,JBOS - Restaurant,Aramark Ltd,98567853,-3534.17,Catering Contracts
BEIS,UKRI - BBSRC,03/09/2019,Non-Capital Building Construction,JBOS - Maintenance,Aramark Ltd,98567861,10547.77,Non-Capital Building Construction
BEIS,UKRI - BBSRC,03/09/2019,Catering Contracts,JBOS - Restaurant,Aramark Ltd,98567889,15337.02,Catering Contracts
BEIS,UKRI - BBSRC,03/09/2019,T&S UK - Vehicle Hire,FG - Estates,Enterprise Rent-A-Car UK Ltd,98568933,56.13,T&S UK - Vehicle Hire
BEIS,UKRI - BBSRC,03/09/2019,T&S UK - Vehicle Hire,FG - Estates,Enterprise Rent-A-Car UK Ltd,98568933,11.23,T&S UK - Vehicle Hire
BEIS,UKRI - BBSRC,03/09/2019,T&S UK - Vehicle Hire,Science Group,Enterprise Rent-A-Car UK Ltd,98568933,12.57,T&S UK - Vehicle Hire
BEIS,UKRI - BBSRC,03/09/2019,T&S UK - Vehicle Hire,Science Group,Enterprise Rent-A-Car UK Ltd,98568933,62.86,T&S UK - Vehicle Hire
BEIS,UKRI - BBSRC,04/09/2019,Research Institutes - Capital Grants: Major Works,Estates - Projects,EMBL (European Molecular Biology Laboratory),98562674,76843.37,Research Institutes - Capital Grants: Major Works
BEIS,UKRI - BBSRC,04/09/2019,T&S UK - Vehicle Hire,FG - Director,Enterprise Rent-A-Car UK Ltd,98566753,34.33,T&S UK - Vehicle Hire
BEIS,UKRI - BBSRC,04/09/2019,T&S UK - Vehicle Hire,FG - Director,Enterprise Rent-A-Car UK Ltd,98566753,69.86,T&S UK - Vehicle Hire
BEIS,UKRI - BBSRC,04/09/2019,T&S UK - Vehicle Hire,FG - Director,Enterprise Rent-A-Car UK Ltd,98566753,101.79,T&S UK - Vehicle Hire
BEIS,UKRI - BBSRC,04/09/2019,T&S UK - Vehicle Hire,FG - Estates,Enterprise Rent-A-Car UK Ltd,98566753,129.92,T&S UK - Vehicle Hire
BEIS,UKRI - BBSRC,04/09/2019,T&S UK - Vehicle Hire,FG - Estates,Enterprise Rent-A-Car UK Ltd,98566753,55.17,T&S UK - Vehicle Hire
BEIS,UKRI - BBSRC,04/09/2019,T&S UK - Vehicle Hire,FG - Estates,Enterprise Rent-A-Car UK Ltd,98566753,145.93,T&S UK - Vehicle Hire
BEIS,UKRI - BBSRC,04/09/2019,Non-staff travel and subsistance,Science Group - Delivery Function,Corporate Travel Management (North) Ltd,98569122,0.50,Non-staff travel and subsistance
BEIS,UKRI - BBSRC,04/09/2019,Non-staff travel and subsistance,Science Group - Delivery Function,Corporate Travel Management (North) Ltd,98569122,145.00,Non-staff travel and subsistance
BEIS,UKRI - BBSRC,04/09/2019,Non-staff travel and subsistance,Science Group - Delivery Function,Corporate Travel Management (North) Ltd,98569122,0.25,Non-staff travel and subsistance
BEIS,UKRI - BBSRC,04/09/2019,Non-staff travel and subsistance,Science Group - Delivery Function,Corporate Travel Management (North) Ltd,98569122,49.30,Non-staff travel and subsistance
BEIS,UKRI - BBSRC,04/09/2019,Non-staff travel and subsistance,Science Group - Delivery Function,Corporate Travel Management (North) Ltd,98569122,0.10,Non-staff travel and subsistance
BEIS,UKRI - BBSRC,04/09/2019,T&S Overseas - Accommodation,CE - IRU,Corporate Travel Management (North) Ltd,98569122,928.84,T&S Overseas - Accommodation
BEIS,UKRI - BBSRC,04/09/2019,T&S Overseas - Accommodation,CE - IRU,Corporate Travel Management (North) Ltd,98569122,152.49,T&S Overseas - Accommodation
BEIS,UKRI - BBSRC,04/09/2019,T&S Overseas - Accommodation,CE - IRU,Corporate Travel Management (North) Ltd,98569122,134.91,T&S Overseas - Accommodation
BEIS,UKRI - BBSRC,04/09/2019,T&S Overseas - Accommodation,European Initiatives,Corporate Travel Management (North) Ltd,98569122,103.61,T&S Overseas - Accommodation
BEIS,UKRI - BBSRC,04/09/2019,T&S Overseas - Accommodation,Science Group,Corporate Travel Management (North) Ltd,98569122,197.00,T&S Overseas - Accommodation
BEIS,UKRI - BBSRC,04/09/2019,T&S Overseas - Accommodation,Science Group,Corporate Travel Management (North) Ltd,98569122,780.19,T&S Overseas - Accommodation
BEIS,UKRI - BBSRC,04/09/2019,T&S Overseas - Accommodation,Science Group,Corporate Travel Management (North) Ltd,98569122,780.19,T&S Overseas - Accommodation
BEIS,UKRI - BBSRC,04/09/2019,T&S Overseas - Flights,FG - RCUK Assurance,Corporate Travel Management (North) Ltd,98569122,1.25,T&S Overseas - Flights
BEIS,UKRI - BBSRC,04/09/2019,T&S Overseas - Flights,FG - RCUK Assurance,Corporate Travel Management (North) Ltd,98569122,286.84,T&S Overseas - Flights
BEIS,UKRI - BBSRC,04/09/2019,T&S Overseas - Flights,FG - RCUK Assurance,Corporate Travel Management (North) Ltd,98569122,1.25,T&S Overseas - Flights
BEIS,UKRI - BBSRC,04/09/2019,T&S Overseas - Flights,FG - RCUK Assurance,Corporate Travel Management (North) Ltd,98569122,286.84,T&S Overseas - Flights
BEIS,UKRI - BBSRC,04/09/2019,T&S Overseas - Flights,RISD - UKRO,Corporate Travel Management (North) Ltd,98569122,4.50,T&S Overseas - Flights
BEIS,UKRI - BBSRC,04/09/2019,T&S Overseas - Flights,RISD - UKRO,Corporate Travel Management (North) Ltd,98569122,94.00,T&S Overseas - Flights
BEIS,UKRI - BBSRC,04/09/2019,T&S Overseas - Flights,RISD - UKRO,Corporate Travel Management (North) Ltd,98569122,4.50,T&S Overseas - Flights
BEIS,UKRI - BBSRC,04/09/2019,T&S Overseas - Flights,RISD - UKRO,Corporate Travel Management (North) Ltd,98569122,136.00,T&S Overseas - Flights
BEIS,UKRI - BBSRC,04/09/2019,T&S Overseas - Flights,Science Group,Corporate Travel Management (North) Ltd,98569122,2.50,T&S Overseas - Flights
BEIS,UKRI - BBSRC,04/09/2019,T&S Overseas - Flights,Science Group,Corporate Travel Management (North) Ltd,98569122,198.53,T&S Overseas - Flights
BEIS,UKRI - BBSRC,04/09/2019,T&S Overseas - Flights,Science Group,Corporate Travel Management (North) Ltd,98569122,2.50,T&S Overseas - Flights
BEIS,UKRI - BBSRC,04/09/2019,T&S Overseas - Flights,Science Group,Corporate Travel Management (North) Ltd,98569122,2862.02,T&S Overseas - Flights
BEIS,UKRI - BBSRC,04/09/2019,T&S Overseas - Public Transport,CE - IRU,Corporate Travel Management (North) Ltd,98569122,2.16,T&S Overseas - Public Transport
BEIS,UKRI - BBSRC,04/09/2019,T&S Overseas - Public Transport,CE - IRU,Corporate Travel Management (North) Ltd,98569122,93.00,T&S Overseas - Public Transport
BEIS,UKRI - BBSRC,04/09/2019,T&S Overseas - Public Transport,RISD - UKRO,Corporate Travel Management (North) Ltd,98569122,4.50,T&S Overseas - Public Transport
BEIS,UKRI - BBSRC,04/09/2019,T&S Overseas - Public Transport,RISD - UKRO,Corporate Travel Management (North) Ltd,98569122,104.00,T&S Overseas - Public Transport
BEIS,UKRI - BBSRC,04/09/2019,T&S Overseas - Public Transport,RISD - UKRO,Corporate Travel Management (North) Ltd,98569122,2.50,T&S Overseas - Public Transport
BEIS,UKRI - BBSRC,04/09/2019,T&S Overseas - Public Transport,RISD - UKRO,Corporate Travel Management (North) Ltd,98569122,158.00,T&S Overseas - Public Transport
BEIS,UKRI - BBSRC,04/09/2019,T&S Overseas - Public Transport,Science Group,Corporate Travel Management (North) Ltd,98569122,2.50,T&S Overseas - Public Transport
BEIS,UKRI - BBSRC,04/09/2019,T&S Overseas - Public Transport,Science Group,Corporate Travel Management (North) Ltd,98569122,178.00,T&S Overseas - Public Transport
BEIS,UKRI - BBSRC,04/09/2019,T&S UK - Accommodation,CE - CPS,Corporate Travel Management (North) Ltd,98569122,0.80,T&S UK - Accommodation
BEIS,UKRI - BBSRC,04/09/2019,T&S UK - Accommodation,CE - CPS,Corporate Travel Management (North) Ltd,98569122,147.00,T&S UK - Accommodation
BEIS,UKRI - BBSRC,04/09/2019,T&S UK - Accommodation,CE - CPS,Corporate Travel Management (North) Ltd,98569122,0.80,T&S UK - Accommodation
BEIS,UKRI - BBSRC,04/09/2019,T&S UK - Accommodation,CE - CPS,Corporate Travel Management (North) Ltd,98569122,121.25,T&S UK - Accommodation
BEIS,UKRI - BBSRC,04/09/2019,T&S UK - Accommodation,CE - CPS,Corporate Travel Management (North) Ltd,98569122,0.16,T&S UK - Accommodation
BEIS,UKRI - BBSRC,04/09/2019,T&S UK - Accommodation,CE - CPS,Corporate Travel Management (North) Ltd,98569122,0.16,T&S UK - Accommodation
BEIS,UKRI - BBSRC,04/09/2019,T&S UK - Accommodation,CE - IRU,Corporate Travel Management (North) Ltd,98569122,0.80,T&S UK - Accommodation
BEIS,UKRI - BBSRC,04/09/2019,T&S UK - Accommodation,CE - IRU,Corporate Travel Management (North) Ltd,98569122,93.78,T&S UK - Accommodation
BEIS,UKRI - BBSRC,04/09/2019,T&S UK - Accommodation,CE - IRU,Corporate Travel Management (North) Ltd,98569122,0.16,T&S UK - Accommodation
BEIS,UKRI - BBSRC,04/09/2019,T&S UK - Accommodation,CIMG - Programme Office,Corporate Travel Management (North) Ltd,98569122,0.80,T&S UK - Accommodation
BEIS,UKRI - BBSRC,04/09/2019,T&S UK - Accommodation,CIMG - Programme Office,Corporate Travel Management (North) Ltd,98569122,106.46,T&S UK - Accommodation
BEIS,UKRI - BBSRC,04/09/2019,T&S UK - Accommodation,CIMG - Programme Office,Corporate Travel Management (North) Ltd,98569122,0.50,T&S UK - Accommodation
BEIS,UKRI - BBSRC,04/09/2019,T&S UK - Accommodation,CIMG - Programme Office,Corporate Travel Management (North) Ltd,98569122,1.44,T&S UK - Accommodation
BEIS,UKRI - BBSRC,04/09/2019,T&S UK - Accommodation,CIMG - Programme Office,Corporate Travel Management (North) Ltd,98569122,297.00,T&S UK - Accommodation
BEIS,UKRI - BBSRC,04/09/2019,T&S UK - Accommodation,CIMG - Programme Office,Corporate Travel Management (North) Ltd,98569122,0.55,T&S UK - Accommodation
BEIS,UKRI - BBSRC,04/09/2019,T&S UK - Accommodation,FG - Accounts & Business Planning,Corporate Travel Management (North) Ltd,98569122,0.80,T&S UK - Accommodation
BEIS,UKRI - BBSRC,04/09/2019,T&S UK - Accommodation,FG - Accounts & Business Planning,Corporate Travel Management (North) Ltd,98569122,160.00,T&S UK - Accommodation
BEIS,UKRI - BBSRC,04/09/2019,T&S UK - Accommodation,FG - Accounts & Business Planning,Corporate Travel Management (North) Ltd,98569122,0.16,T&S UK - Accommodation
BEIS,UKRI - BBSRC,04/09/2019,T&S UK - Accommodation,FG - Director,Corporate Travel Management (North) Ltd,98569122,0.80,T&S UK - Accommodation
BEIS,UKRI - BBSRC,04/09/2019,T&S UK - Accommodation,FG - Director,Corporate Travel Management (North) Ltd,98569122,95.00,T&S UK - Accommodation
BEIS,UKRI - BBSRC,04/09/2019,T&S UK - Accommodation,FG - Director,Corporate Travel Management (North) Ltd,98569122,0.80,T&S UK - Accommodation
BEIS,UKRI - BBSRC,04/09/2019,T&S UK - Accommodation,FG - Director,Corporate Travel Management (North) Ltd,98569122,100.00,T&S UK - Accommodation
BEIS,UKRI - BBSRC,04/09/2019,T&S UK - Accommodation,FG - Director,Corporate Travel Management (North) Ltd,98569122,0.80,T&S UK - Accommodation
BEIS,UKRI - BBSRC,04/09/2019,T&S UK - Accommodation,FG - Director,Corporate Travel Management (North) Ltd,98569122,110.00,T&S UK - Accommodation
BEIS,UKRI - BBSRC,04/09/2019,T&S UK - Accommodation,FG - Director,Corporate Travel Management (North) Ltd,98569122,0.48,T&S UK - Accommodation
BEIS,UKRI - BBSRC,04/09/2019,T&S UK - Accommodation,FG - Estates,Corporate Travel Management (North) Ltd,98569122,0.80,T&S UK - Accommodation
BEIS,UKRI - BBSRC,04/09/2019,T&S UK - Accommodation,FG - Estates,Corporate Travel Management (North) Ltd,98569122,112.00,T&S UK - Accommodation
BEIS,UKRI - BBSRC,04/09/2019,T&S UK - Accommodation,FG - Estates,Corporate Travel Management (North) Ltd,98569122,1.60,T&S UK - Accommodation
BEIS,UKRI - BBSRC,04/09/2019,T&S UK - Accommodation,FG - Estates,Corporate Travel Management (North) Ltd,98569122,401.72,T&S UK - Accommodation
BEIS,UKRI - BBSRC,04/09/2019,T&S UK - Accommodation,FG - Estates,Corporate Travel Management (North) Ltd,98569122,0.80,T&S UK - Accommodation
BEIS,UKRI - BBSRC,04/09/2019,T&S UK - Accommodation,FG - Estates,Corporate Travel Management (North) Ltd,98569122,89.99,T&S UK - Accommodation
BEIS,UKRI - BBSRC,04/09/2019,T&S UK - Accommodation,FG - Estates,Corporate Travel Management (North) Ltd,98569122,0.50,T&S UK - Accommodation
BEIS,UKRI - BBSRC,04/09/2019,T&S UK - Accommodation,FG - Estates,Corporate Travel Management (North) Ltd,98569122,187.00,T&S UK - Accommodation
BEIS,UKRI - BBSRC,04/09/2019,T&S UK - Accommodation,FG - Estates,Corporate Travel Management (North) Ltd,98569122,0.50,T&S UK - Accommodation
BEIS,UKRI - BBSRC,04/09/2019,T&S UK - Accommodation,FG - Estates,Corporate Travel Management (North) Ltd,98569122,107.10,T&S UK - Accommodation
BEIS,UKRI - BBSRC,04/09/2019,T&S UK - Accommodation,FG - Estates,Corporate Travel Management (North) Ltd,98569122,0.80,T&S UK - Accommodation
BEIS,UKRI - BBSRC,04/09/2019,T&S UK - Accommodation,FG - Estates,Corporate Travel Management (North) Ltd,98569122,238.00,T&S UK - Accommodation
BEIS,UKRI - BBSRC,04/09/2019,T&S UK - Accommodation,FG - Estates,Corporate Travel Management (North) Ltd,98569122,0.80,T&S UK - Accommodation
BEIS,UKRI - BBSRC,04/09/2019,T&S UK - Accommodation,FG - Estates,Corporate Travel Management (North) Ltd,98569122,70.00,T&S UK - Accommodation
BEIS,UKRI - BBSRC,04/09/2019,T&S UK - Accommodation,FG - Estates,Corporate Travel Management (North) Ltd,98569122,1.16,T&S UK - Accommodation
BEIS,UKRI - BBSRC,04/09/2019,T&S UK - Accommodation,RISD - UKRO,Corporate Travel Management (North) Ltd,98569122,109.72,T&S UK - Accommodation
BEIS,UKRI - BBSRC,04/09/2019,T&S UK - Accommodation,RISD - UKRO,Corporate Travel Management (North) Ltd,98569122,0.80,T&S UK - Accommodation
BEIS,UKRI - BBSRC,04/09/2019,T&S UK - Accommodation,RISD - UKRO,Corporate Travel Management (North) Ltd,98569122,117.75,T&S UK - Accommodation
BEIS,UKRI - BBSRC,04/09/2019,T&S UK - Accommodation,RISD - UKRO,Corporate Travel Management (North) Ltd,98569122,0.16,T&S UK - Accommodation
BEIS,UKRI - BBSRC,04/09/2019,T&S UK - Accommodation,Science Group,Corporate Travel Management (North) Ltd,98569122,0.80,T&S UK - Accommodation
BEIS,UKRI - BBSRC,04/09/2019,T&S UK - Accommodation,Science Group,Corporate Travel Management (North) Ltd,98569122,55.75,T&S UK - Accommodation
BEIS,UKRI - BBSRC,04/09/2019,T&S UK - Accommodation,Science Group,Corporate Travel Management (North) Ltd,98569122,0.80,T&S UK - Accommodation
BEIS,UKRI - BBSRC,04/09/2019,T&S UK - Accommodation,Science Group,Corporate Travel Management (North) Ltd,98569122,86.09,T&S UK - Accommodation
BEIS,UKRI - BBSRC,04/09/2019,T&S UK - Accommodation,Science Group,Corporate Travel Management (North) Ltd,98569122,0.80,T&S UK - Accommodation
BEIS,UKRI - BBSRC,04/09/2019,T&S UK - Accommodation,Science Group,Corporate Travel Management (North) Ltd,98569122,113.25,T&S UK - Accommodation
BEIS,UKRI - BBSRC,04/09/2019,T&S UK - Accommodation,Science Group,Corporate Travel Management (North) Ltd,98569122,0.48,T&S UK - Accommodation
BEIS,UKRI - BBSRC,04/09/2019,T&S UK - Flights,CE - Chief Executive,Corporate Travel Management (North) Ltd,98569122,2.50,T&S UK - Flights
BEIS,UKRI - BBSRC,04/09/2019,T&S UK - Flights,CE - Chief Executive,Corporate Travel Management (North) Ltd,98569122,85.99,T&S UK - Flights
BEIS,UKRI - BBSRC,04/09/2019,T&S UK - Flights,Innovation and Skills Group,Corporate Travel Management (North) Ltd,98569122,2.50,T&S UK - Flights
BEIS,UKRI - BBSRC,04/09/2019,T&S UK - Flights,Innovation and Skills Group,Corporate Travel Management (North) Ltd,98569122,64.48,T&S UK - Flights
BEIS,UKRI - BBSRC,04/09/2019,T&S UK - Flights,Science Group,Corporate Travel Management (North) Ltd,98569122,2.50,T&S UK - Flights
BEIS,UKRI - BBSRC,04/09/2019,T&S UK - Flights,Science Group,Corporate Travel Management (North) Ltd,98569122,84.68,T&S UK - Flights
BEIS,UKRI - BBSRC,04/09/2019,T&S UK - Flights,Science Group,Corporate Travel Management (North) Ltd,98569122,2.50,T&S UK - Flights
BEIS,UKRI - BBSRC,04/09/2019,T&S UK - Flights,Science Group,Corporate Travel Management (North) Ltd,98569122,78.62,T&S UK - Flights
BEIS,UKRI - BBSRC,04/09/2019,T&S UK - Public Transport,CE - CPS,Corporate Travel Management (North) Ltd,98569122,0.25,T&S UK - Public Transport
BEIS,UKRI - BBSRC,04/09/2019,T&S UK - Public Transport,CE - CPS,Corporate Travel Management (North) Ltd,98569122,20.60,T&S UK - Public Transport
BEIS,UKRI - BBSRC,04/09/2019,T&S UK - Public Transport,CE - CPS,Corporate Travel Management (North) Ltd,98569122,0.25,T&S UK - Public Transport
BEIS,UKRI - BBSRC,04/09/2019,T&S UK - Public Transport,CE - CPS,Corporate Travel Management (North) Ltd,98569122,131.60,T&S UK - Public Transport
BEIS,UKRI - BBSRC,04/09/2019,T&S UK - Public Transport,CE - CPS,Corporate Travel Management (North) Ltd,98569122,0.25,T&S UK - Public Transport
BEIS,UKRI - BBSRC,04/09/2019,T&S UK - Public Transport,CE - CPS,Corporate Travel Management (North) Ltd,98569122,103.80,T&S UK - Public Transport
BEIS,UKRI - BBSRC,04/09/2019,T&S UK - Public Transport,CE - CPS,Corporate Travel Management (North) Ltd,98569122,0.25,T&S UK - Public Transport
BEIS,UKRI - BBSRC,04/09/2019,T&S UK - Public Transport,CE - CPS,Corporate Travel Management (North) Ltd,98569122,23.65,T&S UK - Public Transport
BEIS,UKRI - BBSRC,04/09/2019,T&S UK - Public Transport,CE - Chief Executive,Corporate Travel Management (North) Ltd,98569122,0.25,T&S UK - Public Transport
BEIS,UKRI - BBSRC,04/09/2019,T&S UK - Public Transport,CE - Chief Executive,Corporate Travel Management (North) Ltd,98569122,144.00,T&S UK - Public Transport
BEIS,UKRI - BBSRC,04/09/2019,T&S UK - Public Transport,CE - Chief Executive,Corporate Travel Management (North) Ltd,98569122,0.25,T&S UK - Public Transport
BEIS,UKRI - BBSRC,04/09/2019,T&S UK - Public Transport,CE - Chief Executive,Corporate Travel Management (North) Ltd,98569122,89.00,T&S UK - Public Transport
BEIS,UKRI - BBSRC,04/09/2019,T&S UK - Public Transport,CE - Chief Executive,Corporate Travel Management (North) Ltd,98569122,0.25,T&S UK - Public Transport
BEIS,UKRI - BBSRC,04/09/2019,T&S UK - Public Transport,CE - Chief Executive,Corporate Travel Management (North) Ltd,98569122,178.00,T&S UK - Public Transport
BEIS,UKRI - BBSRC,04/09/2019,T&S UK - Public Transport,CE - Chief Executive,Corporate Travel Management (North) Ltd,98569122,0.25,T&S UK - Public Transport
BEIS,UKRI - BBSRC,04/09/2019,T&S UK - Public Transport,CE - Chief Executive,Corporate Travel Management (North) Ltd,98569122,178.00,T&S UK - Public Transport
BEIS,UKRI - BBSRC,04/09/2019,T&S UK - Public Transport,CE - Chief Executive,Corporate Travel Management (North) Ltd,98569122,0.25,T&S UK - Public Transport
BEIS,UKRI - BBSRC,04/09/2019,T&S UK - Public Transport,CE - Chief Executive,Corporate Travel Management (North) Ltd,98569122,114.40,T&S UK - Public Transport
BEIS,UKRI - BBSRC,04/09/2019,T&S UK - Public Transport,CE - Chief Executive,Corporate Travel Management (North) Ltd,98569122,0.25,T&S UK - Public Transport
BEIS,UKRI - BBSRC,04/09/2019,T&S UK - Public Transport,CE - Chief Executive,Corporate Travel Management (North) Ltd,98569122,151.00,T&S UK - Public Transport
BEIS,UKRI - BBSRC,04/09/2019,T&S UK - Public Transport,CE - Chief Executive,Corporate Travel Management (North) Ltd,98569122,0.25,T&S UK - Public Transport
BEIS,UKRI - BBSRC,04/09/2019,T&S UK - Public Transport,CE - Chief Executive,Corporate Travel Management (North) Ltd,98569122,69.90,T&S UK - Public Transport
BEIS,UKRI - BBSRC,04/09/2019,T&S UK - Public Transport,CE - IRU,Corporate Travel Management (North) Ltd,98569122,0.25,T&S UK - Public Transport
BEIS,UKRI - BBSRC,04/09/2019,T&S UK - Public Transport,CE - IRU,Corporate Travel Management (North) Ltd,98569122,54.10,T&S UK - Public Transport
BEIS,UKRI - BBSRC,04/09/2019,T&S UK - Public Transport,CE - IRU,Corporate Travel Management (North) Ltd,98569122,0.25,T&S UK - Public Transport
BEIS,UKRI - BBSRC,04/09/2019,T&S UK - Public Transport,CE - IRU,Corporate Travel Management (North) Ltd,98569122,165.00,T&S UK - Public Transport
BEIS,UKRI - BBSRC,04/09/2019,T&S UK - Public Transport,CE - IRU,Corporate Travel Management (North) Ltd,98569122,0.25,T&S UK - Public Transport
BEIS,UKRI - BBSRC,04/09/2019,T&S UK - Public Transport,CE - IRU,Corporate Travel Management (North) Ltd,98569122,114.40,T&S UK - Public Transport
BEIS,UKRI - BBSRC,04/09/2019,T&S UK - Public Transport,CE - IRU,Corporate Travel Management (North) Ltd,98569122,0.25,T&S UK - Public Transport
BEIS,UKRI - BBSRC,04/09/2019,T&S UK - Public Transport,CE - IRU,Corporate Travel Management (North) Ltd,98569122,0.25,T&S UK - Public Transport
BEIS,UKRI - BBSRC,04/09/2019,T&S UK - Public Transport,CE - IRU,Corporate Travel Management (North) Ltd,98569122,18.75,T&S UK - Public Transport
BEIS,UKRI - BBSRC,04/09/2019,T&S UK - Public Transport,CE - IRU,Corporate Travel Management (North) Ltd,98569122,48.85,T&S UK - Public Transport
BEIS,UKRI - BBSRC,04/09/2019,T&S UK - Public Transport,CE - IRU,Corporate Travel Management (North) Ltd,98569122,0.25,T&S UK - Public Transport
BEIS,UKRI - BBSRC,04/09/2019,T&S UK - Public Transport,CE - IRU,Corporate Travel Management (North) Ltd,98569122,46.85,T&S UK - Public Transport
BEIS,UKRI - BBSRC,04/09/2019,T&S UK - Public Transport,CIMG - Programme Office,Corporate Travel Management (North) Ltd,98569122,0.25,T&S UK - Public Transport
BEIS,UKRI - BBSRC,04/09/2019,T&S UK - Public Transport,CIMG - Programme Office,Corporate Travel Management (North) Ltd,98569122,19.60,T&S UK - Public Transport
BEIS,UKRI - BBSRC,04/09/2019,T&S UK - Public Transport,European Initiatives,Corporate Travel Management (North) Ltd,98569122,-17.00,T&S UK - Public Transport
BEIS,UKRI - BBSRC,04/09/2019,T&S UK - Public Transport,European Initiatives,Corporate Travel Management (North) Ltd,98569122,0.25,T&S UK - Public Transport
BEIS,UKRI - BBSRC,04/09/2019,T&S UK - Public Transport,European Initiatives,Corporate Travel Management (North) Ltd,98569122,114.40,T&S UK - Public Transport
BEIS,UKRI - BBSRC,04/09/2019,T&S UK - Public Transport,FG - Estates,Corporate Travel Management (North) Ltd,98569122,-67.60,T&S UK - Public Transport
BEIS,UKRI - BBSRC,04/09/2019,T&S UK - Public Transport,FG - RCUK Assurance,Corporate Travel Management (North) Ltd,98569122,0.25,T&S UK - Public Transport
BEIS,UKRI - BBSRC,04/09/2019,T&S UK - Public Transport,FG - RCUK Assurance,Corporate Travel Management (North) Ltd,98569122,69.90,T&S UK - Public Transport
BEIS,UKRI - BBSRC,04/09/2019,T&S UK - Public Transport,Innovation and Skills Group,Corporate Travel Management (North) Ltd,98569122,-52.70,T&S UK - Public Transport
BEIS,UKRI - BBSRC,04/09/2019,T&S UK - Public Transport,Innovation and Skills Group,Corporate Travel Management (North) Ltd,98569122,-172.00,T&S UK - Public Transport
BEIS,UKRI - BBSRC,04/09/2019,T&S UK - Public Transport,Innovation and Skills Group,Corporate Travel Management (North) Ltd,98569122,0.25,T&S UK - Public Transport
BEIS,UKRI - BBSRC,04/09/2019,T&S UK - Public Transport,Innovation and Skills Group,Corporate Travel Management (North) Ltd,98569122,114.40,T&S UK - Public Transport
BEIS,UKRI - BBSRC,04/09/2019,T&S UK - Public Transport,Innovation and Skills Group,Corporate Travel Management (North) Ltd,98569122,0.25,T&S UK - Public Transport
BEIS,UKRI - BBSRC,04/09/2019,T&S UK - Public Transport,Innovation and Skills Group,Corporate Travel Management (North) Ltd,98569122,43.25,T&S UK - Public Transport
BEIS,UKRI - BBSRC,04/09/2019,T&S UK - Public Transport,Innovation and Skills Group,Corporate Travel Management (North) Ltd,98569122,0.25,T&S UK - Public Transport
BEIS,UKRI - BBSRC,04/09/2019,T&S UK - Public Transport,Innovation and Skills Group,Corporate Travel Management (North) Ltd,98569122,69.90,T&S UK - Public Transport
BEIS,UKRI - BBSRC,04/09/2019,T&S UK - Public Transport,Innovation and Skills Group,Corporate Travel Management (North) Ltd,98569122,0.25,T&S UK - Public Transport
BEIS,UKRI - BBSRC,04/09/2019,T&S UK - Public Transport,Innovation and Skills Group,Corporate Travel Management (North) Ltd,98569122,72.60,T&S UK - Public Transport
BEIS,UKRI - BBSRC,04/09/2019,T&S UK - Public Transport,Innovation and Skills Group,Corporate Travel Management (North) Ltd,98569122,0.25,T&S UK - Public Transport
BEIS,UKRI - BBSRC,04/09/2019,T&S UK - Public Transport,Innovation and Skills Group,Corporate Travel Management (North) Ltd,98569122,177.70,T&S UK - Public Transport
BEIS,UKRI - BBSRC,04/09/2019,T&S UK - Public Transport,Innovation and Skills Group,Corporate Travel Management (North) Ltd,98569122,0.25,T&S UK - Public Transport
BEIS,UKRI - BBSRC,04/09/2019,T&S UK - Public Transport,Innovation and Skills Group,Corporate Travel Management (North) Ltd,98569122,89.45,T&S UK - Public Transport
BEIS,UKRI - BBSRC,04/09/2019,T&S UK - Public Transport,Innovation and Skills Group,Corporate Travel Management (North) Ltd,98569122,0.25,T&S UK - Public Transport
BEIS,UKRI - BBSRC,04/09/2019,T&S UK - Public Transport,Innovation and Skills Group,Corporate Travel Management (North) Ltd,98569122,35.70,T&S UK - Public Transport
BEIS,UKRI - BBSRC,04/09/2019,T&S UK - Public Transport,Innovation and Skills Group,Corporate Travel Management (North) Ltd,98569122,0.25,T&S UK - Public Transport
BEIS,UKRI - BBSRC,04/09/2019,T&S UK - Public Transport,Innovation and Skills Group,Corporate Travel Management (North) Ltd,98569122,144.00,T&S UK - Public Transport
BEIS,UKRI - BBSRC,04/09/2019,T&S UK - Public Transport,Innovation and Skills Group,Corporate Travel Management (North) Ltd,98569122,0.25,T&S UK - Public Transport
BEIS,UKRI - BBSRC,04/09/2019,T&S UK - Public Transport,Innovation and Skills Group,Corporate Travel Management (North) Ltd,98569122,124.00,T&S UK - Public Transport
BEIS,UKRI - BBSRC,04/09/2019,T&S UK - Public Transport,Innovation and Skills Group,Corporate Travel Management (North) Ltd,98569122,0.50,T&S UK - Public Transport
BEIS,UKRI - BBSRC,04/09/2019,T&S UK - Public Transport,Innovation and Skills Group,Corporate Travel Management (North) Ltd,98569122,142.80,T&S UK - Public Transport
BEIS,UKRI - BBSRC,04/09/2019,T&S UK - Public Transport,Innovation and Skills Group,Corporate Travel Management (North) Ltd,98569122,-163.40,T&S UK - Public Transport
BEIS,UKRI - BBSRC,04/09/2019,T&S UK - Public Transport,Innovation and Skills Group,Corporate Travel Management (North) Ltd,98569122,0.25,T&S UK - Public Transport
BEIS,UKRI - BBSRC,04/09/2019,T&S UK - Public Transport,Innovation and Skills Group,Corporate Travel Management (North) Ltd,98569122,30.35,T&S UK - Public Transport
BEIS,UKRI - BBSRC,04/09/2019,T&S UK - Public Transport,Innovation and Skills Group,Corporate Travel Management (North) Ltd,98569122,0.25,T&S UK - Public Transport
BEIS,UKRI - BBSRC,04/09/2019,T&S UK - Public Transport,Innovation and Skills Group,Corporate Travel Management (North) Ltd,98569122,53.65,T&S UK - Public Transport
BEIS,UKRI - BBSRC,04/09/2019,T&S UK - Public Transport,Innovation and Skills Group,Corporate Travel Management (North) Ltd,98569122,0.25,T&S UK - Public Transport
BEIS,UKRI - BBSRC,04/09/2019,T&S UK - Public Transport,Innovation and Skills Group,Corporate Travel Management (North) Ltd,98569122,103.80,T&S UK - Public Transport
BEIS,UKRI - BBSRC,04/09/2019,T&S UK - Public Transport,JBOS - Staff,Corporate Travel Management (North) Ltd,98569122,5.00,T&S UK - Public Transport
BEIS,UKRI - BBSRC,04/09/2019,T&S UK - Public Transport,JBOS - Staff,Corporate Travel Management (North) Ltd,98569122,-139.70,T&S UK - Public Transport
BEIS,UKRI - BBSRC,04/09/2019,T&S UK - Public Transport,RISD - UKRO,Corporate Travel Management (North) Ltd,98569122,4.50,T&S UK - Public Transport
BEIS,UKRI - BBSRC,04/09/2019,T&S UK - Public Transport,RISD - UKRO,Corporate Travel Management (North) Ltd,98569122,0.25,T&S UK - Public Transport
BEIS,UKRI - BBSRC,04/09/2019,T&S UK - Public Transport,RISD - UKRO,Corporate Travel Management (North) Ltd,98569122,155.00,T&S UK - Public Transport
BEIS,UKRI - BBSRC,04/09/2019,T&S UK - Public Transport,RISD - UKRO,Corporate Travel Management (North) Ltd,98569122,91.00,T&S UK - Public Transport
BEIS,UKRI - BBSRC,04/09/2019,T&S UK - Public Transport,RISD - UKRO,Corporate Travel Management (North) Ltd,98569122,0.25,T&S UK - Public Transport
BEIS,UKRI - BBSRC,04/09/2019,T&S UK - Public Transport,RISD - UKRO,Corporate Travel Management (North) Ltd,98569122,33.05,T&S UK - Public Transport
BEIS,UKRI - BBSRC,04/09/2019,T&S UK - Public Transport,RISD - UKRO,Corporate Travel Management (North) Ltd,98569122,0.25,T&S UK - Public Transport
BEIS,UKRI - BBSRC,04/09/2019,T&S UK - Public Transport,RISD - UKRO,Corporate Travel Management (North) Ltd,98569122,8.50,T&S UK - Public Transport
BEIS,UKRI - BBSRC,04/09/2019,T&S UK - Public Transport,Science Group,Corporate Travel Management (North) Ltd,98569122,0.25,T&S UK - Public Transport
BEIS,UKRI - BBSRC,04/09/2019,T&S UK - Public Transport,Science Group,Corporate Travel Management (North) Ltd,98569122,30.60,T&S UK - Public Transport
BEIS,UKRI - BBSRC,04/09/2019,T&S UK - Public Transport,Science Group,Corporate Travel Management (North) Ltd,98569122,0.25,T&S UK - Public Transport
BEIS,UKRI - BBSRC,04/09/2019,T&S UK - Public Transport,Science Group,Corporate Travel Management (North) Ltd,98569122,144.00,T&S UK - Public Transport
BEIS,UKRI - BBSRC,04/09/2019,T&S UK - Public Transport,Science Group,Corporate Travel Management (North) Ltd,98569122,0.25,T&S UK - Public Transport
BEIS,UKRI - BBSRC,04/09/2019,T&S UK - Public Transport,Science Group,Corporate Travel Management (North) Ltd,98569122,55.20,T&S UK - Public Transport
BEIS,UKRI - BBSRC,04/09/2019,T&S UK - Public Transport,Science Group,Corporate Travel Management (North) Ltd,98569122,5.00,T&S UK - Public Transport
BEIS,UKRI - BBSRC,04/09/2019,T&S UK - Public Transport,Science Group,Corporate Travel Management (North) Ltd,98569122,-135.10,T&S UK - Public Transport
BEIS,UKRI - BBSRC,04/09/2019,T&S UK - Public Transport,Science Group,Corporate Travel Management (North) Ltd,98569122,0.25,T&S UK - Public Transport
BEIS,UKRI - BBSRC,04/09/2019,T&S UK - Public Transport,Science Group,Corporate Travel Management (North) Ltd,98569122,69.90,T&S UK - Public Transport
BEIS,UKRI - BBSRC,04/09/2019,T&S UK - Public Transport,Science Group,Corporate Travel Management (North) Ltd,98569122,0.25,T&S UK - Public Transport
BEIS,UKRI - BBSRC,04/09/2019,T&S UK - Public Transport,Science Group,Corporate Travel Management (North) Ltd,98569122,106.60,T&S UK - Public Transport
BEIS,UKRI - BBSRC,04/09/2019,T&S UK - Public Transport,Science Group,Corporate Travel Management (North) Ltd,98569122,0.25,T&S UK - Public Transport
BEIS,UKRI - BBSRC,04/09/2019,T&S UK - Public Transport,Science Group,Corporate Travel Management (North) Ltd,98569122,58.80,T&S UK - Public Transport
BEIS,UKRI - BBSRC,04/09/2019,T&S UK - Public Transport,Science Group,Corporate Travel Management (North) Ltd,98569122,0.75,T&S UK - Public Transport
BEIS,UKRI - BBSRC,04/09/2019,T&S UK - Public Transport,Science Group,Corporate Travel Management (North) Ltd,98569122,207.85,T&S UK - Public Transport
BEIS,UKRI - BBSRC,04/09/2019,T&S UK - Public Transport,Science Group,Corporate Travel Management (North) Ltd,98569122,0.25,T&S UK - Public Transport
BEIS,UKRI - BBSRC,04/09/2019,T&S UK - Public Transport,Science Group,Corporate Travel Management (North) Ltd,98569122,54.10,T&S UK - Public Transport
BEIS,UKRI - BBSRC,04/09/2019,T&S UK - Public Transport,Science Group,Corporate Travel Management (North) Ltd,98569122,0.25,T&S UK - Public Transport
BEIS,UKRI - BBSRC,04/09/2019,T&S UK - Public Transport,Science Group,Corporate Travel Management (North) Ltd,98569122,118.20,T&S UK - Public Transport
BEIS,UKRI - BBSRC,04/09/2019,T&S UK - Public Transport,Science Group,Corporate Travel Management (North) Ltd,98569122,0.25,T&S UK - Public Transport
BEIS,UKRI - BBSRC,04/09/2019,T&S UK - Public Transport,Science Group,Corporate Travel Management (North) Ltd,98569122,209.00,T&S UK - Public Transport
BEIS,UKRI - BBSRC,04/09/2019,T&S UK - Public Transport,Science Group,Corporate Travel Management (North) Ltd,98569122,0.50,T&S UK - Public Transport
BEIS,UKRI - BBSRC,04/09/2019,T&S UK - Public Transport,Science Group,Corporate Travel Management (North) Ltd,98569122,192.70,T&S UK - Public Transport
BEIS,UKRI - BBSRC,04/09/2019,T&S UK - Public Transport,Science Group,Corporate Travel Management (North) Ltd,98569122,0.25,T&S UK - Public Transport
BEIS,UKRI - BBSRC,04/09/2019,T&S UK - Public Transport,Science Group,Corporate Travel Management (North) Ltd,98569122,57.70,T&S UK - Public Transport
BEIS,UKRI - BBSRC,04/09/2019,T&S UK - Public Transport,Science Group,Corporate Travel Management (North) Ltd,98569122,0.25,T&S UK - Public Transport
BEIS,UKRI - BBSRC,04/09/2019,T&S UK - Public Transport,Science Group,Corporate Travel Management (North) Ltd,98569122,163.00,T&S UK - Public Transport
BEIS,UKRI - BBSRC,04/09/2019,T&S UK - Public Transport,Science Group,Corporate Travel Management (North) Ltd,98569122,-139.00,T&S UK - Public Transport
BEIS,UKRI - BBSRC,04/09/2019,T&S UK - Public Transport,Science Group,Corporate Travel Management (North) Ltd,98569122,5.00,T&S UK - Public Transport
BEIS,UKRI - BBSRC,04/09/2019,T&S UK - Public Transport,Science Group,Corporate Travel Management (North) Ltd,98569122,-121.50,T&S UK - Public Transport
BEIS,UKRI - BBSRC,04/09/2019,T&S UK - Public Transport,Science Group,Corporate Travel Management (North) Ltd,98569122,0.25,T&S UK - Public Transport
BEIS,UKRI - BBSRC,04/09/2019,T&S UK - Public Transport,Science Group,Corporate Travel Management (North) Ltd,98569122,102.60,T&S UK - Public Transport
BEIS,UKRI - BBSRC,04/09/2019,T&S UK - Public Transport,Science Group,Corporate Travel Management (North) Ltd,98569122,0.25,T&S UK - Public Transport
BEIS,UKRI - BBSRC,04/09/2019,T&S UK - Public Transport,Science Group,Corporate Travel Management (North) Ltd,98569122,123.70,T&S UK - Public Transport
BEIS,UKRI - BBSRC,04/09/2019,T&S UK - Public Transport,Science Group,Corporate Travel Management (North) Ltd,98569122,0.25,T&S UK - Public Transport
BEIS,UKRI - BBSRC,04/09/2019,T&S UK - Public Transport,Science Group,Corporate Travel Management (North) Ltd,98569122,56.70,T&S UK - Public Transport
BEIS,UKRI - BBSRC,04/09/2019,T&S UK - Public Transport,Science Group,Corporate Travel Management (North) Ltd,98569122,0.25,T&S UK - Public Transport
BEIS,UKRI - BBSRC,04/09/2019,T&S UK - Public Transport,Science Group,Corporate Travel Management (North) Ltd,98569122,84.90,T&S UK - Public Transport
BEIS,UKRI - BBSRC,04/09/2019,T&S UK - Public Transport,Science Group,Corporate Travel Management (North) Ltd,98569122,0.25,T&S UK - Public Transport
BEIS,UKRI - BBSRC,04/09/2019,T&S UK - Public Transport,Science Group,Corporate Travel Management (North) Ltd,98569122,174.50,T&S UK - Public Transport
BEIS,UKRI - BBSRC,04/09/2019,T&S UK - Public Transport,Science Group,Corporate Travel Management (North) Ltd,98569122,0.25,T&S UK - Public Transport
BEIS,UKRI - BBSRC,04/09/2019,T&S UK - Public Transport,Science Group,Corporate Travel Management (North) Ltd,98569122,69.90,T&S UK - Public Transport
BEIS,UKRI - BBSRC,04/09/2019,T&S UK - Public Transport,Science Group,Corporate Travel Management (North) Ltd,98569122,0.25,T&S UK - Public Transport
BEIS,UKRI - BBSRC,04/09/2019,T&S UK - Public Transport,Science Group,Corporate Travel Management (North) Ltd,98569122,91.10,T&S UK - Public Transport
BEIS,UKRI - BBSRC,04/09/2019,T&S UK - Public Transport,Science Group,Corporate Travel Management (North) Ltd,98569122,0.25,T&S UK - Public Transport
BEIS,UKRI - BBSRC,04/09/2019,T&S UK - Public Transport,Science Group,Corporate Travel Management (North) Ltd,98569122,68.50,T&S UK - Public Transport
BEIS,UKRI - BBSRC,04/09/2019,T&S UK - Public Transport,Science Group,Corporate Travel Management (North) Ltd,98569122,0.25,T&S UK - Public Transport
BEIS,UKRI - BBSRC,04/09/2019,T&S UK - Public Transport,Science Group,Corporate Travel Management (North) Ltd,98569122,111.20,T&S UK - Public Transport
BEIS,UKRI - BBSRC,04/09/2019,T&S UK - Public Transport,Science Group,Corporate Travel Management (North) Ltd,98569122,-102.30,T&S UK - Public Transport
BEIS,UKRI - BBSRC,04/09/2019,T&S UK - Public Transport,Science Group,Corporate Travel Management (North) Ltd,98569122,0.25,T&S UK - Public Transport
BEIS,UKRI - BBSRC,04/09/2019,T&S UK - Public Transport,Science Group,Corporate Travel Management (North) Ltd,98569122,28.60,T&S UK - Public Transport
BEIS,UKRI - BBSRC,04/09/2019,T&S UK - Public Transport,Science Group,Corporate Travel Management (North) Ltd,98569122,0.25,T&S UK - Public Transport
BEIS,UKRI - BBSRC,04/09/2019,T&S UK - Public Transport,Science Group,Corporate Travel Management (North) Ltd,98569122,36.00,T&S UK - Public Transport
BEIS,UKRI - BBSRC,04/09/2019,T&S UK - Public Transport,Science Group,Corporate Travel Management (North) Ltd,98569122,0.25,T&S UK - Public Transport
BEIS,UKRI - BBSRC,04/09/2019,T&S UK - Public Transport,Science Group,Corporate Travel Management (North) Ltd,98569122,16.00,T&S UK - Public Transport
BEIS,UKRI - BBSRC,04/09/2019,T&S UK - Public Transport,Science Group,Corporate Travel Management (North) Ltd,98569122,0.25,T&S UK - Public Transport
BEIS,UKRI - BBSRC,04/09/2019,T&S UK - Public Transport,Science Group,Corporate Travel Management (North) Ltd,98569122,36.00,T&S UK - Public Transport
BEIS,UKRI - BBSRC,04/09/2019,T&S UK - Public Transport,Science Group,Corporate Travel Management (North) Ltd,98569122,0.25,T&S UK - Public Transport
BEIS,UKRI - BBSRC,04/09/2019,T&S UK - Public Transport,Science Group,Corporate Travel Management (North) Ltd,98569122,209.00,T&S UK - Public Transport
BEIS,UKRI - BBSRC,04/09/2019,T&S UK - Public Transport,Science Group,Corporate Travel Management (North) Ltd,98569122,0.25,T&S UK - Public Transport
BEIS,UKRI - BBSRC,04/09/2019,T&S UK - Public Transport,Science Group,Corporate Travel Management (North) Ltd,98569122,59.30,T&S UK - Public Transport
BEIS,UKRI - BBSRC,04/09/2019,T&S UK - Public Transport,Science Group,Corporate Travel Management (North) Ltd,98569122,0.25,T&S UK - Public Transport
BEIS,UKRI - BBSRC,04/09/2019,T&S UK - Public Transport,Science Group,Corporate Travel Management (North) Ltd,98569122,167.10,T&S UK - Public Transport
BEIS,UKRI - BBSRC,04/09/2019,T&S UK - Public Transport,Science Group,Corporate Travel Management (North) Ltd,98569122,0.25,T&S UK - Public Transport
BEIS,UKRI - BBSRC,04/09/2019,T&S UK - Public Transport,Science Group,Corporate Travel Management (North) Ltd,98569122,46.00,T&S UK - Public Transport
BEIS,UKRI - BBSRC,04/09/2019,T&S UK - Public Transport,Science Group,Corporate Travel Management (North) Ltd,98569122,0.25,T&S UK - Public Transport
BEIS,UKRI - BBSRC,04/09/2019,T&S UK - Public Transport,Science Group,Corporate Travel Management (North) Ltd,98569122,71.20,T&S UK - Public Transport
BEIS,UKRI - BBSRC,04/09/2019,T&S UK - Public Transport,Science Group,Corporate Travel Management (North) Ltd,98569122,0.25,T&S UK - Public Transport
BEIS,UKRI - BBSRC,04/09/2019,T&S UK - Public Transport,Science Group,Corporate Travel Management (North) Ltd,98569122,86.40,T&S UK - Public Transport
BEIS,UKRI - BBSRC,04/09/2019,T&S UK - Public Transport,Science Group - Delivery Function,Corporate Travel Management (North) Ltd,98569122,0.25,T&S UK - Public Transport
BEIS,UKRI - BBSRC,04/09/2019,T&S UK - Public Transport,Science Group - Delivery Function,Corporate Travel Management (North) Ltd,98569122,126.50,T&S UK - Public Transport
BEIS,UKRI - BBSRC,04/09/2019,T&S UK - Public Transport,Science Group - Delivery Function,Corporate Travel Management (North) Ltd,98569122,0.06,T&S UK - Public Transport
BEIS,UKRI - BBSRC,04/09/2019,T&S UK - Public Transport,Science Group - Delivery Function,Corporate Travel Management (North) Ltd,98569122,36.00,T&S UK - Public Transport
BEIS,UKRI - BBSRC,04/09/2019,T&S UK - Public Transport,Science Group - Delivery Function,Corporate Travel Management (North) Ltd,98569122,0.25,T&S UK - Public Transport
BEIS,UKRI - BBSRC,04/09/2019,T&S UK - Public Transport,Science Group - Delivery Function,Corporate Travel Management (North) Ltd,98569122,36.00,T&S UK - Public Transport
BEIS,UKRI - BBSRC,04/09/2019,T&S UK - Public Transport,Science Group - Delivery Function,Corporate Travel Management (North) Ltd,98569122,0.06,T&S UK - Public Transport
BEIS,UKRI - BBSRC,04/09/2019,T&S UK - Public Transport,Science Group - Delivery Function,Corporate Travel Management (North) Ltd,98569122,36.00,T&S UK - Public Transport
BEIS,UKRI - BBSRC,04/09/2019,T&S UK - Public Transport,Science Group - Delivery Function,Corporate Travel Management (North) Ltd,98569122,0.07,T&S UK - Public Transport
BEIS,UKRI - BBSRC,04/09/2019,T&S UK - Public Transport,Science Group - Delivery Function,Corporate Travel Management (North) Ltd,98569122,36.00,T&S UK - Public Transport
BEIS,UKRI - BBSRC,04/09/2019,T&S UK - Public Transport,Science Group - Delivery Function,Corporate Travel Management (North) Ltd,98569122,0.06,T&S UK - Public Transport
BEIS,UKRI - BBSRC,04/09/2019,T&S UK - Public Transport,Science Group - Delivery Function,Corporate Travel Management (North) Ltd,98569122,36.00,T&S UK - Public Transport
BEIS,UKRI - BBSRC,04/09/2019,T&S UK - Public Transport,Science Group - Delivery Function,Corporate Travel Management (North) Ltd,98569122,0.25,T&S UK - Public Transport
BEIS,UKRI - BBSRC,04/09/2019,T&S UK - Public Transport,Science Group - Delivery Function,Corporate Travel Management (North) Ltd,98569122,51.10,T&S UK - Public Transport
BEIS,UKRI - BBSRC,04/09/2019,T&S UK - Public Transport,Science Group - Delivery Function,Corporate Travel Management (North) Ltd,98569122,0.25,T&S UK - Public Transport
BEIS,UKRI - BBSRC,04/09/2019,T&S UK - Public Transport,Science Group - Delivery Function,Corporate Travel Management (North) Ltd,98569122,36.00,T&S UK - Public Transport
BEIS,UKRI - BBSRC,04/09/2019,T&S UK - Public Transport,Science Group - Delivery Function,Corporate Travel Management (North) Ltd,98569122,0.12,T&S UK - Public Transport
BEIS,UKRI - BBSRC,04/09/2019,T&S UK - Public Transport,Science Group - Delivery Function,Corporate Travel Management (North) Ltd,98569122,36.00,T&S UK - Public Transport
BEIS,UKRI - BBSRC,04/09/2019,T&S UK - Public Transport,Science Group - Delivery Function,Corporate Travel Management (North) Ltd,98569122,0.13,T&S UK - Public Transport
BEIS,UKRI - BBSRC,04/09/2019,T&S UK - Public Transport,Science Group - Delivery Function,Corporate Travel Management (North) Ltd,98569122,36.00,T&S UK - Public Transport
BEIS,UKRI - BBSRC,04/09/2019,T&S UK - Vehicle Hire,FG - Director,Corporate Travel Management (North) Ltd,98569122,20.27,T&S UK - Vehicle Hire
BEIS,UKRI - BBSRC,04/09/2019,T&S UK - Vehicle Hire,FG - Director,Corporate Travel Management (North) Ltd,98569122,20.62,T&S UK - Vehicle Hire
BEIS,UKRI - BBSRC,04/09/2019,T&S UK - Vehicle Hire,Innovation and Skills Group,Corporate Travel Management (North) Ltd,98569122,46.81,T&S UK - Vehicle Hire
BEIS,UKRI - BBSRC,04/09/2019,T&S UK - Vehicle Hire,Innovation and Skills Group,Corporate Travel Management (North) Ltd,98569122,58.44,T&S UK - Vehicle Hire
BEIS,UKRI - BBSRC,04/09/2019,T&S UK - Vehicle Hire,Innovation and Skills Group,Corporate Travel Management (North) Ltd,98569122,58.44,T&S UK - Vehicle Hire
BEIS,UKRI - BBSRC,04/09/2019,T&S UK - Vehicle Hire,Innovation and Skills Group,Corporate Travel Management (North) Ltd,98569122,36.82,T&S UK - Vehicle Hire
BEIS,UKRI - BBSRC,04/09/2019,T&S UK - Vehicle Hire,Innovation and Skills Group,Corporate Travel Management (North) Ltd,98569122,61.10,T&S UK - Vehicle Hire
BEIS,UKRI - BBSRC,04/09/2019,T&S UK - Vehicle Hire,Innovation and Skills Group,Corporate Travel Management (North) Ltd,98569122,61.10,T&S UK - Vehicle Hire
BEIS,UKRI - BBSRC,04/09/2019,T&S UK - Vehicle Hire,Innovation and Skills Group,Corporate Travel Management (North) Ltd,98569122,16.56,T&S UK - Vehicle Hire
BEIS,UKRI - BBSRC,04/09/2019,T&S UK - Vehicle Hire,Innovation and Skills Group,Corporate Travel Management (North) Ltd,98569122,15.89,T&S UK - Vehicle Hire
BEIS,UKRI - BBSRC,04/09/2019,T&S UK - Vehicle Hire,Innovation and Skills Group,Corporate Travel Management (North) Ltd,98569122,17.90,T&S UK - Vehicle Hire
BEIS,UKRI - BBSRC,04/09/2019,T&S UK - Vehicle Hire,Innovation and Skills Group,Corporate Travel Management (North) Ltd,98569122,17.46,T&S UK - Vehicle Hire
BEIS,UKRI - BBSRC,04/09/2019,T&S UK - Vehicle Hire,Innovation and Skills Group,Corporate Travel Management (North) Ltd,98569122,18.08,T&S UK - Vehicle Hire
BEIS,UKRI - BBSRC,04/09/2019,T&S UK - Vehicle Hire,Innovation and Skills Group,Corporate Travel Management (North) Ltd,98569122,26.35,T&S UK - Vehicle Hire
BEIS,UKRI - BBSRC,04/09/2019,T&S UK - Vehicle Hire,Innovation and Skills Group,Corporate Travel Management (North) Ltd,98569122,18.08,T&S UK - Vehicle Hire
BEIS,UKRI - BBSRC,04/09/2019,T&S UK - Vehicle Hire,Science Group,Corporate Travel Management (North) Ltd,98569122,18.96,T&S UK - Vehicle Hire
BEIS,UKRI - BBSRC,04/09/2019,T&S UK - Vehicle Hire,Science Group,Corporate Travel Management (North) Ltd,98569122,23.34,T&S UK - Vehicle Hire
BEIS,UKRI - BBSRC,04/09/2019,T&S UK - Vehicle Hire,Science Group,Corporate Travel Management (North) Ltd,98569122,23.34,T&S UK - Vehicle Hire
BEIS,UKRI - BBSRC,04/09/2019,T&S UK - Vehicle Hire,Science Group,Corporate Travel Management (North) Ltd,98569122,24.98,T&S UK - Vehicle Hire
BEIS,UKRI - BBSRC,04/09/2019,T&S UK - Vehicle Hire,Science Group,Corporate Travel Management (North) Ltd,98569122,69.31,T&S UK - Vehicle Hire
BEIS,UKRI - BBSRC,04/09/2019,T&S UK - Vehicle Hire,Science Group,Corporate Travel Management (North) Ltd,98569122,107.80,T&S UK - Vehicle Hire
BEIS,UKRI - BBSRC,04/09/2019,T&S UK - Vehicle Hire,Science Group,Corporate Travel Management (North) Ltd,98569122,238.34,T&S UK - Vehicle Hire
BEIS,UKRI - BBSRC,04/09/2019,T&S UK - Vehicle Hire,Science Group,Corporate Travel Management (North) Ltd,98569122,45.23,T&S UK - Vehicle Hire
BEIS,UKRI - BBSRC,04/09/2019,T&S UK - Other Charges,CE - IRU,Unspecified,98572269,9.14,T&S UK - Other Charges
BEIS,UKRI - BBSRC,04/09/2019,T&S UK - Public Transport,CE - IRU,Unspecified,98572269,121.15,T&S UK - Public Transport
BEIS,UKRI - BBSRC,04/09/2019,T&S UK - Public Transport,CE - IRU,Unspecified,98572269,1.50,T&S UK - Public Transport
BEIS,UKRI - BBSRC,04/09/2019,T&S UK - Subsistence,CE - IRU,Unspecified,98572269,54.60,T&S UK - Subsistence
BEIS,UKRI - BBSRC,04/09/2019,T&S UK - Subsistence,CE - IRU,Unspecified,98572269,41.72,T&S UK - Subsistence
BEIS,UKRI - BBSRC,04/09/2019,T&S UK - Subsistence,CE - IRU,Unspecified,98572269,28.06,T&S UK - Subsistence
BEIS,UKRI - BBSRC,04/09/2019,T&S UK - Subsistence,CE - IRU,Unspecified,98572269,45.00,T&S UK - Subsistence
BEIS,UKRI - BBSRC,04/09/2019,T&S UK - Subsistence,CE - IRU,Unspecified,98572269,11.28,T&S UK - Subsistence
BEIS,UKRI - BBSRC,04/09/2019,T&S UK - Public Transport,CE - CPS,Unspecified,98572270,9.00,T&S UK - Public Transport
BEIS,UKRI - BBSRC,04/09/2019,T&S UK - Subsistence,CE - CPS,Unspecified,98572270,4.70,T&S UK - Subsistence
BEIS,UKRI - BBSRC,05/09/2019,Legal & Professional Services,Innovation and Skills Group CDSU,KNOWLEDGE TRANSFER NETWORK LTD,98567919,19086.36,Legal & Professional Services
BEIS,UKRI - BBSRC,05/09/2019,Other Programme Costs,Innovation and Skills Group CDSU,The United Kingdom Science Park Association,98568259,1674.00,Other Programme Costs
BEIS,UKRI - BBSRC,05/09/2019,Agency Staff,FG - Director,Reed Specialist Recruitment Ltd,98573311,763.96,Agency Staff
BEIS,UKRI - BBSRC,06/09/2019,Non-Capital Building Construction,JBOS - Maintenance,ISS Mediclean Ltd,98561233,116400.00,Non-Capital Building Construction
BEIS,UKRI - BBSRC,06/09/2019,Recruitment Costs,PDG - Director,Agenda Resource Management Ltd,98573262,155.91,Recruitment Costs
BEIS,UKRI - BBSRC,06/09/2019,T&S UK - Vehicle Hire,JBOS Health and Safety,Cross Street Cars,98574444,7.00,T&S UK - Vehicle Hire
BEIS,UKRI - BBSRC,06/09/2019,T&S UK - Vehicle Hire,JBOS Health and Safety,Cross Street Cars,98574444,8.20,T&S UK - Vehicle Hire
BEIS,UKRI - BBSRC,06/09/2019,Recruitment Costs,PDG - Director,Onefix Recruitment Ltd,98574519,55.50,Recruitment Costs
BEIS,UKRI - BBSRC,09/09/2019,Mechanical & Electrical Maintenance,JBOS - Maintenance,ISS Mediclean Ltd,98561216,1388.45,Mechanical & Electrical Maintenance
BEIS,UKRI - BBSRC,09/09/2019,Data Storage & Recovery,CIMG - Information Management,Iron Mountain (UK) PLC,98574478,498.82,Data Storage & Recovery
BEIS,UKRI - BBSRC,09/09/2019,Research Institutes - Capital Grants: Minor Works,Estates - Projects,Anglia Innovation Partnership LLP,98574884,25120.37,Research Institutes - Capital Grants: Minor Works
BEIS,UKRI - BBSRC,09/09/2019,Agency Staff,FG - Director,Reed Specialist Recruitment Ltd,98576310,1027.86,Agency Staff
BEIS,UKRI - BBSRC,09/09/2019,T&S UK - Other Charges,Innovation and Skills Group CDSU,Unspecified,98577452,3.99,T&S UK - Other Charges
BEIS,UKRI - BBSRC,09/09/2019,T&S UK - Public Transport,Innovation and Skills Group CDSU,Unspecified,98577452,9.50,T&S UK - Public Transport
BEIS,UKRI - BBSRC,09/09/2019,T&S UK - Public Transport,Innovation and Skills Group CDSU,Unspecified,98577452,22.80,T&S UK - Public Transport
BEIS,UKRI - BBSRC,09/09/2019,T&S UK - Subsistence,Innovation and Skills Group CDSU,Unspecified,98577452,5.95,T&S UK - Subsistence
BEIS,UKRI - BBSRC,09/09/2019,T&S UK - Subsistence,Innovation and Skills Group CDSU,Unspecified,98577452,44.15,T&S UK - Subsistence
BEIS,UKRI - BBSRC,09/09/2019,T&S UK - Subsistence,Innovation and Skills Group CDSU,Unspecified,98577452,19.10,T&S UK - Subsistence
BEIS,UKRI - BBSRC,09/09/2019,T&S UK - Subsistence,Innovation and Skills Group CDSU,Unspecified,98577452,10.00,T&S UK - Subsistence
BEIS,UKRI - BBSRC,09/09/2019,T&S UK - Subsistence,FG - Estates,Unspecified,98577453,9.45,T&S UK - Subsistence
BEIS,UKRI - BBSRC,09/09/2019,T&S UK - Subsistence,FG - Estates,Unspecified,98577453,12.50,T&S UK - Subsistence
BEIS,UKRI - BBSRC,09/09/2019,T&S UK - Subsistence,FG - Estates,Unspecified,98577453,5.00,T&S UK - Subsistence
BEIS,UKRI - BBSRC,09/09/2019,T&S UK - Vehicle Hire,FG - Estates,Unspecified,98577453,59.13,T&S UK - Vehicle Hire
BEIS,UKRI - BBSRC,09/09/2019,T&S UK - Subsistence,CE - IRU,Unspecified,98577628,-13.55,T&S UK - Subsistence
BEIS,UKRI - BBSRC,10/09/2019,Telecoms - Tele/ Video conferencing,CE - IRU,MeetingZone Ltd,98573214,138.20,Telecoms - Tele/ Video conferencing
BEIS,UKRI - BBSRC,10/09/2019,Telecoms - Tele/ Video conferencing,Science Group,MeetingZone Ltd,98573214,68.48,Telecoms - Tele/ Video conferencing
BEIS,UKRI - BBSRC,10/09/2019,Recruitment Costs,PDG - Director,Onefix Recruitment Ltd,98576620,402.00,Recruitment Costs
BEIS,UKRI - BBSRC,10/09/2019,Other Programme Costs,FG - Director,The Pirbright Institute,98577443,11565.81,Other Programme Costs
BEIS,UKRI - BBSRC,10/09/2019,Research Grant Expenditure,Research: Strategic,UKRI - Engineering & Physical Sciences Research Council,98577742,43217.02,Research Grant Expenditure
BEIS,UKRI - BBSRC,10/09/2019,Research Grant Expenditure,Science Group,UKRI - Engineering & Physical Sciences Research Council,98577765,33320.09,Research Grant Expenditure
BEIS,UKRI - BBSRC,10/09/2019,Research Institutes - Capital Grants: Major Works,Pirbright,The Pirbright Institute,98577879,32535.80,Research Institutes - Capital Grants: Major Works
BEIS,UKRI - BBSRC,10/09/2019,T&S UK - Vehicle Hire,FG - Estates,Enterprise Rent-A-Car UK Ltd,98579636,206.95,T&S UK - Vehicle Hire
BEIS,UKRI - BBSRC,10/09/2019,T&S UK - Vehicle Hire,FG - Estates,Enterprise Rent-A-Car UK Ltd,98579636,78.61,T&S UK - Vehicle Hire
BEIS,UKRI - BBSRC,10/09/2019,T&S UK - Vehicle Hire,FG - Estates,Enterprise Rent-A-Car UK Ltd,98579636,57.11,T&S UK - Vehicle Hire
BEIS,UKRI - BBSRC,10/09/2019,T&S UK - Subsistence,Science Group,Unspecified,98579640,11.65,T&S UK - Subsistence
BEIS,UKRI - BBSRC,10/09/2019,T&S UK - Subsistence,Science Group,Unspecified,98579640,8.04,T&S UK - Subsistence
BEIS,UKRI - BBSRC,10/09/2019,T&S UK - Vehicle Hire,Science Group,Unspecified,98579640,36.29,T&S UK - Vehicle Hire
BEIS,UKRI - BBSRC,10/09/2019,Health & Safety (inc. Medicals & Opticians),Science Group - Delivery Function,Unspecified,98579642,19.50,Health & Safety (inc. Medicals & Opticians)
BEIS,UKRI - BBSRC,10/09/2019,T&S UK - Other Charges,Science Group - Delivery Function,Unspecified,98579642,98.00,T&S UK - Other Charges
BEIS,UKRI - BBSRC,11/09/2019,Other Programme Costs,FG - Accounts & Business Planning,MediCongress Services NV,98573233,198.97,Other Programme Costs
BEIS,UKRI - BBSRC,11/09/2019,Recruitment Costs,PDG - Director,Warwick University Services Ltd,98579709,300.00,Recruitment Costs
BEIS,UKRI - BBSRC,11/09/2019,Recruitment Costs,PDG - Director,Onefix Recruitment Ltd,98579930,2346.00,Recruitment Costs
BEIS,UKRI - BBSRC,11/09/2019,Telecoms - Tele/ Video conferencing,CE - Chief Executive,BT Conferencing,98580198,3.69,Telecoms - Tele/ Video conferencing
BEIS,UKRI - BBSRC,11/09/2019,Telecoms - Tele/ Video conferencing,CE - Chief Executive,BT Conferencing,98580198,18.45,Telecoms - Tele/ Video conferencing
BEIS,UKRI - BBSRC,11/09/2019,Telecoms - Tele/ Video conferencing,FG - Director,BT Conferencing,98580198,5.31,Telecoms - Tele/ Video conferencing
BEIS,UKRI - BBSRC,11/09/2019,Telecoms - Tele/ Video conferencing,FG - Director,BT Conferencing,98580198,26.55,Telecoms - Tele/ Video conferencing
BEIS,UKRI - BBSRC,11/09/2019,Telecoms - Tele/ Video conferencing,Innovation and Skills Group,BT Conferencing,98580198,7.70,Telecoms - Tele/ Video conferencing
BEIS,UKRI - BBSRC,11/09/2019,Telecoms - Tele/ Video conferencing,Innovation and Skills Group,BT Conferencing,98580198,38.49,Telecoms - Tele/ Video conferencing
BEIS,UKRI - BBSRC,11/09/2019,T&S UK - Parking Tolls Congestion Charges,Science Group,Unspecified,98580770,9.90,T&S UK - Parking Tolls Congestion Charges
BEIS,UKRI - BBSRC,11/09/2019,Health & Safety (inc. Medicals & Opticians),Science Group - Delivery Function,Unspecified,98580771,10.00,Health & Safety (inc. Medicals & Opticians)
BEIS,UKRI - BBSRC,11/09/2019,T&S UK - Public Transport,CE - IRU,Unspecified,98580772,26.00,T&S UK - Public Transport
BEIS,UKRI - BBSRC,11/09/2019,T&S UK - Subsistence,CE - IRU,Unspecified,98580772,12.25,T&S UK - Subsistence
BEIS,UKRI - BBSRC,11/09/2019,Other Programme Costs,Innovation and Skills Group CDSU,Non Employee Expenses Supplier,98580950,10000.00,Other Programme Costs
BEIS,UKRI - BBSRC,11/09/2019,Research Grant Expenditure,Research: Strategic,Technology Strategy Board (Innovate UK),98580996,1500000.00,Research Grant Expenditure
BEIS,UKRI - BBSRC,12/09/2019,PAYE Payable Salaries,Balance Sheet,HM Revenue & Customs,98576633,70318.00,PAYE Payable Salaries
BEIS,UKRI - BBSRC,12/09/2019,Student Loans,Balance Sheet,HM Revenue & Customs,98576634,4054.00,Student Loans
BEIS,UKRI - BBSRC,12/09/2019,NI Payable Salaries,Balance Sheet,HM Revenue & Customs,98576635,92672.83,NI Payable Salaries
BEIS,UKRI - BBSRC,12/09/2019,Apprenticeship Levy,FG - Accounts & Business Planning,HM Revenue & Customs,98576636,2487.00,Apprenticeship Levy
BEIS,UKRI - BBSRC,12/09/2019,PAYE Payable Salaries,Balance Sheet,HM Revenue & Customs,98580144,8624.56,PAYE Payable Salaries
BEIS,UKRI - BBSRC,12/09/2019,NI Payable Salaries,Balance Sheet,HM Revenue & Customs,98580145,88.84,NI Payable Salaries
BEIS,UKRI - BBSRC,12/09/2019,Apprenticeship Levy,FG - Accounts & Business Planning,HM Revenue & Customs,98580146,123.00,Apprenticeship Levy
BEIS,UKRI - BBSRC,12/09/2019,Conferences & Seminars,Innovation and Skills Group CDSU,Calder Conference Ltd,98581830,127.20,Conferences & Seminars
BEIS,UKRI - BBSRC,12/09/2019,T&S UK - Subsistence,CE - Chief Executive,Unspecified,98581916,10.00,T&S UK - Subsistence
BEIS,UKRI - BBSRC,12/09/2019,T&S UK - Public Transport,Science Group,Unspecified,98581918,4.50,T&S UK - Public Transport
BEIS,UKRI - BBSRC,12/09/2019,T&S UK - Public Transport,Science Group,Unspecified,98581918,26.40,T&S UK - Public Transport
BEIS,UKRI - BBSRC,12/09/2019,T&S UK - Subsistence,Science Group,Unspecified,98581918,32.65,T&S UK - Subsistence
BEIS,UKRI - BBSRC,12/09/2019,T&S UK - Subsistence,Science Group,Unspecified,98581918,15.00,T&S UK - Subsistence
BEIS,UKRI - BBSRC,12/09/2019,T&S UK - Mileage,CE - CPS,Unspecified,98581919,140.00,T&S UK - Mileage
BEIS,UKRI - BBSRC,12/09/2019,Agency Staff,FG - Director,Reed Specialist Recruitment Ltd,98581945,944.52,Agency Staff
BEIS,UKRI - BBSRC,12/09/2019,Research Institutes - Capital Grants: Major Works,JIC,John Innes Centre,98582104,2531.72,Research Institutes - Capital Grants: Major Works
BEIS,UKRI - BBSRC,13/09/2019,Ers Pension Deductions - MyCSP,Balance Sheet,Cabinet Office RM Shared Services,98576632,23131.13,Ers Pension Deductions - MyCSP
BEIS,UKRI - BBSRC,13/09/2019,Union Deductions,Balance Sheet,PCS Union,98576637,71.71,Union Deductions
BEIS,UKRI - BBSRC,13/09/2019,Ees Pension Deductions - JSS,Balance Sheet,RCPS Pension,98576639,26530.01,Ees Pension Deductions - JSS
BEIS,UKRI - BBSRC,13/09/2019,Ers Pension Deductions - JSS,Balance Sheet,RCPS Pension,98576640,111723.20,Ers Pension Deductions - JSS
BEIS,UKRI - BBSRC,13/09/2019,Partnership Pension Deductions,Balance Sheet,Scottish Widows Life Assurance,98576641,688.64,Partnership Pension Deductions
BEIS,UKRI - BBSRC,13/09/2019,Other Pension Deductions,Balance Sheet,Scottish Widows Life Assurance,98576642,10.00,Other Pension Deductions
BEIS,UKRI - BBSRC,13/09/2019,Ers Pension Deductions - JSS,Balance Sheet,Cabinet Office RM Shared Services,98576643,12.83,Ers Pension Deductions - JSS
BEIS,UKRI - BBSRC,13/09/2019,Ees Pension Deductions - MyCSP,Balance Sheet,Cabinet Office RM Shared Services,98576644,4616.87,Ees Pension Deductions - MyCSP
BEIS,UKRI - BBSRC,13/09/2019,Voluntary Deductions,Balance Sheet,St Elizabeth�s Centre,98580147,570.83,Voluntary Deductions
BEIS,UKRI - BBSRC,13/09/2019,T&S UK - Public Transport,CE - Chief Executive,Unspecified,98582590,20.00,T&S UK - Public Transport
BEIS,UKRI - BBSRC,13/09/2019,T&S UK - Subsistence,CE - Chief Executive,Unspecified,98582590,3.80,T&S UK - Subsistence
BEIS,UKRI - BBSRC,13/09/2019,T&S UK - Subsistence,CE - Chief Executive,Unspecified,98582590,16.00,T&S UK - Subsistence
BEIS,UKRI - BBSRC,13/09/2019,Health & Safety (inc. Medicals & Opticians),Science Group - Delivery Function,Unspecified,98582591,19.00,Health & Safety (inc. Medicals & Opticians)
BEIS,UKRI - BBSRC,13/09/2019,T&S UK - Public Transport,Science Group,Unspecified,98582593,19.78,T&S UK - Public Transport
BEIS,UKRI - BBSRC,16/09/2019,T&S UK - Subsistence,Science Group,Unspecified,98584148,23.00,T&S UK - Subsistence
BEIS,UKRI - BBSRC,17/09/2019,Secondments,CE - IRU,UKRI - Science & Technology Facilities Council,98494101,5601.46,Secondments
BEIS,UKRI - BBSRC,17/09/2019,Research Institutes - Capital Grants: Major Works,Estates - Projects,EMBL (European Molecular Biology Laboratory),98567075,-76843.37,Research Institutes - Capital Grants: Major Works
BEIS,UKRI - BBSRC,17/09/2019,Research Institutes - Capital Grants: Major Works,Estates - Projects,EMBL (European Molecular Biology Laboratory),98567078,-11458.20,Research Institutes - Capital Grants: Major Works
BEIS,UKRI - BBSRC,17/09/2019,Research Grant Expenditure,Science Group,UKRI - Engineering & Physical Sciences Research Council,98577723,825920.19,Research Grant Expenditure
BEIS,UKRI - BBSRC,17/09/2019,Research Institutes - Capital Grants: Major Works,Estates - Projects,EMBL (European Molecular Biology Laboratory),98580199,76843.37,Research Institutes - Capital Grants: Major Works
BEIS,UKRI - BBSRC,17/09/2019,Other Programme Costs,CIMG - Programme Office,Calder Conference Ltd,98581829,120.00,Other Programme Costs
BEIS,UKRI - BBSRC,17/09/2019,Corporate Events,CIMG - Council Secretariat,Calder Conference Ltd,98581831,744.60,Corporate Events
BEIS,UKRI - BBSRC,17/09/2019,Research Grant Expenditure,Science Group,UKRI - Engineering & Physical Sciences Research Council,98582329,6850.35,Research Grant Expenditure
BEIS,UKRI - BBSRC,17/09/2019,Other Training Awards,Future Leaders: Fellows,UKRI - Engineering & Physical Sciences Research Council,98582330,22956.94,Other Training Awards
BEIS,UKRI - BBSRC,17/09/2019,Fellowships,Innovation and Skills Group,UKRI - Engineering & Physical Sciences Research Council,98582334,15182.49,Fellowships
BEIS,UKRI - BBSRC,17/09/2019,Fellowships,Innovation and Skills Group,UKRI - Engineering & Physical Sciences Research Council,98582335,18489.12,Fellowships
BEIS,UKRI - BBSRC,17/09/2019,Research Grant Expenditure,Science Group,UKRI - Engineering & Physical Sciences Research Council,98582336,8143.87,Research Grant Expenditure
BEIS,UKRI - BBSRC,17/09/2019,Fellowships,Innovation and Skills Group,UKRI - Engineering & Physical Sciences Research Council,98582338,6262.77,Fellowships
BEIS,UKRI - BBSRC,17/09/2019,Fellowships,Innovation and Skills Group,UKRI - Engineering & Physical Sciences Research Council,98582340,16107.91,Fellowships
BEIS,UKRI - BBSRC,17/09/2019,Fellowships,Innovation and Skills Group,UKRI - Engineering & Physical Sciences Research Council,98582341,7728.38,Fellowships
BEIS,UKRI - BBSRC,17/09/2019,Research Grant Expenditure,Science Group,UKRI - Engineering & Physical Sciences Research Council,98582342,1330.14,Research Grant Expenditure
BEIS,UKRI - BBSRC,17/09/2019,Fellowships,Innovation and Skills Group,UKRI - Engineering & Physical Sciences Research Council,98582343,8615.83,Fellowships
BEIS,UKRI - BBSRC,17/09/2019,Research Grant Expenditure,Science Group,UKRI - Engineering & Physical Sciences Research Council,98582367,5418.38,Research Grant Expenditure
BEIS,UKRI - BBSRC,17/09/2019,Research Grant Expenditure,Innovation and Skills Group,UKRI - Engineering & Physical Sciences Research Council,98582374,44736.61,Research Grant Expenditure
BEIS,UKRI - BBSRC,17/09/2019,Research Grant Expenditure,Innovation and Skills Group,UKRI - Engineering & Physical Sciences Research Council,98582375,56741.28,Research Grant Expenditure
BEIS,UKRI - BBSRC,17/09/2019,Research Grant Expenditure,Innovation and Skills Group,UKRI - Engineering & Physical Sciences Research Council,98582377,84324.15,Research Grant Expenditure
BEIS,UKRI - BBSRC,17/09/2019,Research Grant Expenditure,Science Group,UKRI - Engineering & Physical Sciences Research Council,98582380,221.02,Research Grant Expenditure
BEIS,UKRI - BBSRC,17/09/2019,Research Grant Expenditure,Innovation and Skills Group,UKRI - Engineering & Physical Sciences Research Council,98582382,8922.04,Research Grant Expenditure
